{"text_format":"3","workbook":"xlsx","n_sheets":14,"sheets":["Setări","Ianuarie","Februarie","Martie","Aprilie","Mai","Iunie","Iulie","August","Septembrie","Octombrie","Noiembrie","Decembrie","Sărbători"],"not_rendered":{"defined_names":20},"read":"whole","date_system":"1900"}

{"sheet":"Setări","index":0,"n_rows":34,"n_cols":32,"rows_kept":34,"merged":[[1,17,2,23],[3,1,3,8],[3,9,3,12],[3,17,7,31],[4,1,4,8],[5,1,5,8],[8,1,8,7],[8,9,8,15],[8,17,8,23],[8,25,8,31],[9,1,9,7],[9,9,9,15],[9,17,9,23],[9,25,9,31],[17,1,17,7],[17,9,17,15],[17,17,17,23],[17,25,17,31],[18,1,18,7],[18,9,18,15],[18,17,18,23],[18,25,18,31],[26,1,26,7],[26,9,26,15],[26,17,26,23],[26,25,26,31],[27,1,27,7],[27,9,27,15],[27,17,27,23],[27,25,27,31]]}
[]
[null,"SETĂRI CALENDAR",{"$nulls":15},"AN"]
[]
[null,"SĂPTĂMÂNA ÎNCEPE",{"$nulls":7},"DUMINICĂ",{"$nulls":7},{"$f":"YEAR(TODAY())","v":2018}]
[null,"AFIȘAȚI SĂRBĂTORILE",{"$nulls":7},true]
[null,"AFIȘARE CELEBRATE OFICIAL",{"$nulls":7},true]
[{"$nulls":9},{"$f":"IF(AfișareSărbători,Celebrat_oficial,AfișareSărbători)","v":true}]
[null,"VIZUALIZARE ANUALĂ"]
[null,{"$f":"DATE(AnCal,1,1)","v":43101},{"$nulls":7},{"$f":"DATE(AnCal,2,1)","v":43132},{"$nulls":7},{"$f":"DATE(AnCal,3,1)","v":43160},{"$nulls":7},{"$f":"DATE(AnCal,4,1)","v":43191}]
[null,{"$f":"UPPER(TEXT(B9,\"MMMM\"))","v":"IANUARIE"},{"$nulls":7},{"$f":"UPPER(TEXT(J9,\"MMMM\"))","v":"FEBRUARIE"},{"$nulls":7},{"$f":"UPPER(TEXT(R9,\"MMMM\"))","v":"MARTIE"},{"$nulls":7},{"$f":"UPPER(TEXT(Z9,\"MMMM\"))","v":"APRILIE"}]
[1,{"$f":"Zile+DATE(AnCal,MONTH($B$9),1)-WEEKDAY(DATE(AnCal,MONTH($B$9),1),(ÎnceputSăptămână=\"Luni\")+1)+$A11*7-6","v":"2017-12-31"},"2018-01-01","2018-01-02","2018-01-03","2018-01-04","2018-01-05","2018-01-06",null,{"$f":"Zile+DATE(AnCal,MONTH($J$9),1)-WEEKDAY(DATE(AnCal,MONTH($J$9),1),(ÎnceputSăptămână=\"Luni\")+1)+$A11*7-6","v":"2018-01-28"},"2018-01-29","2018-01-30","2018-01-31","2018-02-01","2018-02-02","2018-02-03",null,{"$f":"Zile+DATE(AnCal,MONTH($R$9),1)-WEEKDAY(DATE(AnCal,MONTH($R$9),1),(ÎnceputSăptămână=\"Luni\")+1)+$A11*7-6","v":"2018-02-25"},"2018-02-26","2018-02-27","2018-02-28","2018-03-01","2018-03-02","2018-03-03",null,{"$f":"Zile+DATE(AnCal,MONTH($Z$9),1)-WEEKDAY(DATE(AnCal,MONTH($Z$9),1),(ÎnceputSăptămână=\"Luni\")+1)+$A11*7-6","v":"2018-04-01"},"2018-04-02","2018-04-03","2018-04-04","2018-04-05","2018-04-06","2018-04-07"]
[2,{"$f":"Zile+DATE(AnCal,MONTH($B$9),1)-WEEKDAY(DATE(AnCal,MONTH($B$9),1),(ÎnceputSăptămână=\"Luni\")+1)+$A12*7-6","v":"2018-01-07"},"2018-01-08","2018-01-09","2018-01-10","2018-01-11","2018-01-12","2018-01-13",null,{"$f":"Zile+DATE(AnCal,MONTH($J$9),1)-WEEKDAY(DATE(AnCal,MONTH($J$9),1),(ÎnceputSăptămână=\"Luni\")+1)+$A12*7-6","v":"2018-02-04"},"2018-02-05","2018-02-06","2018-02-07","2018-02-08","2018-02-09","2018-02-10",null,{"$f":"Zile+DATE(AnCal,MONTH($R$9),1)-WEEKDAY(DATE(AnCal,MONTH($R$9),1),(ÎnceputSăptămână=\"Luni\")+1)+$A12*7-6","v":"2018-03-04"},"2018-03-05","2018-03-06","2018-03-07","2018-03-08","2018-03-09","2018-03-10",null,{"$f":"Zile+DATE(AnCal,MONTH($Z$9),1)-WEEKDAY(DATE(AnCal,MONTH($Z$9),1),(ÎnceputSăptămână=\"Luni\")+1)+$A12*7-6","v":"2018-04-08"},"2018-04-09","2018-04-10","2018-04-11","2018-04-12","2018-04-13","2018-04-14"]
[3,{"$f":"Zile+DATE(AnCal,MONTH($B$9),1)-WEEKDAY(DATE(AnCal,MONTH($B$9),1),(ÎnceputSăptămână=\"Luni\")+1)+$A13*7-6","v":"2018-01-14"},"2018-01-15","2018-01-16","2018-01-17","2018-01-18","2018-01-19","2018-01-20",null,{"$f":"Zile+DATE(AnCal,MONTH($J$9),1)-WEEKDAY(DATE(AnCal,MONTH($J$9),1),(ÎnceputSăptămână=\"Luni\")+1)+$A13*7-6","v":"2018-02-11"},"2018-02-12","2018-02-13","2018-02-14","2018-02-15","2018-02-16","2018-02-17",null,{"$f":"Zile+DATE(AnCal,MONTH($R$9),1)-WEEKDAY(DATE(AnCal,MONTH($R$9),1),(ÎnceputSăptămână=\"Luni\")+1)+$A13*7-6","v":"2018-03-11"},"2018-03-12","2018-03-13","2018-03-14","2018-03-15","2018-03-16","2018-03-17",null,{"$f":"Zile+DATE(AnCal,MONTH($Z$9),1)-WEEKDAY(DATE(AnCal,MONTH($Z$9),1),(ÎnceputSăptămână=\"Luni\")+1)+$A13*7-6","v":"2018-04-15"},"2018-04-16","2018-04-17","2018-04-18","2018-04-19","2018-04-20","2018-04-21"]
[4,{"$f":"Zile+DATE(AnCal,MONTH($B$9),1)-WEEKDAY(DATE(AnCal,MONTH($B$9),1),(ÎnceputSăptămână=\"Luni\")+1)+$A14*7-6","v":"2018-01-21"},"2018-01-22","2018-01-23","2018-01-24","2018-01-25","2018-01-26","2018-01-27",null,{"$f":"Zile+DATE(AnCal,MONTH($J$9),1)-WEEKDAY(DATE(AnCal,MONTH($J$9),1),(ÎnceputSăptămână=\"Luni\")+1)+$A14*7-6","v":"2018-02-18"},"2018-02-19","2018-02-20","2018-02-21","2018-02-22","2018-02-23","2018-02-24",null,{"$f":"Zile+DATE(AnCal,MONTH($R$9),1)-WEEKDAY(DATE(AnCal,MONTH($R$9),1),(ÎnceputSăptămână=\"Luni\")+1)+$A14*7-6","v":"2018-03-18"},"2018-03-19","2018-03-20","2018-03-21","2018-03-22","2018-03-23","2018-03-24",null,{"$f":"Zile+DATE(AnCal,MONTH($Z$9),1)-WEEKDAY(DATE(AnCal,MONTH($Z$9),1),(ÎnceputSăptămână=\"Luni\")+1)+$A14*7-6","v":"2018-04-22"},"2018-04-23","2018-04-24","2018-04-25","2018-04-26","2018-04-27","2018-04-28"]
[5,{"$f":"Zile+DATE(AnCal,MONTH($B$9),1)-WEEKDAY(DATE(AnCal,MONTH($B$9),1),(ÎnceputSăptămână=\"Luni\")+1)+$A15*7-6","v":"2018-01-28"},"2018-01-29","2018-01-30","2018-01-31","2018-02-01","2018-02-02","2018-02-03",null,{"$f":"Zile+DATE(AnCal,MONTH($J$9),1)-WEEKDAY(DATE(AnCal,MONTH($J$9),1),(ÎnceputSăptămână=\"Luni\")+1)+$A15*7-6","v":"2018-02-25"},"2018-02-26","2018-02-27","2018-02-28","2018-03-01","2018-03-02","2018-03-03",null,{"$f":"Zile+DATE(AnCal,MONTH($R$9),1)-WEEKDAY(DATE(AnCal,MONTH($R$9),1),(ÎnceputSăptămână=\"Luni\")+1)+$A15*7-6","v":"2018-03-25"},"2018-03-26","2018-03-27","2018-03-28","2018-03-29","2018-03-30","2018-03-31",null,{"$f":"Zile+DATE(AnCal,MONTH($Z$9),1)-WEEKDAY(DATE(AnCal,MONTH($Z$9),1),(ÎnceputSăptămână=\"Luni\")+1)+$A15*7-6","v":"2018-04-29"},"2018-04-30","2018-05-01","2018-05-02","2018-05-03","2018-05-04","2018-05-05"]
[6,{"$f":"Zile+DATE(AnCal,MONTH($B$9),1)-WEEKDAY(DATE(AnCal,MONTH($B$9),1),(ÎnceputSăptămână=\"Luni\")+1)+$A16*7-6","v":"2018-02-04"},"2018-02-05","2018-02-06","2018-02-07","2018-02-08","2018-02-09","2018-02-10",null,{"$f":"Zile+DATE(AnCal,MONTH($J$9),1)-WEEKDAY(DATE(AnCal,MONTH($J$9),1),(ÎnceputSăptămână=\"Luni\")+1)+$A16*7-6","v":"2018-03-04"},"2018-03-05","2018-03-06","2018-03-07","2018-03-08","2018-03-09","2018-03-10",null,{"$f":"Zile+DATE(AnCal,MONTH($R$9),1)-WEEKDAY(DATE(AnCal,MONTH($R$9),1),(ÎnceputSăptămână=\"Luni\")+1)+$A16*7-6","v":"2018-04-01"},"2018-04-02","2018-04-03","2018-04-04","2018-04-05","2018-04-06","2018-04-07",null,{"$f":"Zile+DATE(AnCal,MONTH($Z$9),1)-WEEKDAY(DATE(AnCal,MONTH($Z$9),1),(ÎnceputSăptămână=\"Luni\")+1)+$A16*7-6","v":"2018-05-06"},"2018-05-07","2018-05-08","2018-05-09","2018-05-10","2018-05-11","2018-05-12"]
[]
[null,{"$f":"DATE(AnCal,5,1)","v":43221},{"$nulls":7},{"$f":"DATE(AnCal,6,1)","v":43252},{"$nulls":7},{"$f":"DATE(AnCal,7,1)","v":43282},{"$nulls":7},{"$f":"DATE(AnCal,8,1)","v":43313}]
[null,{"$f":"UPPER(TEXT(B18,\"MMMM\"))","v":"MAI"},{"$nulls":7},{"$f":"UPPER(TEXT(J18,\"MMMM\"))","v":"IUNIE"},{"$nulls":7},{"$f":"UPPER(TEXT(R18,\"MMMM\"))","v":"IULIE"},{"$nulls":7},{"$f":"UPPER(TEXT(Z18,\"MMMM\"))","v":"AUGUST"}]
[1,{"$f":"Zile+DATE(AnCal,MONTH($B$18),1)-WEEKDAY(DATE(AnCal,MONTH($B$18),1),(ÎnceputSăptămână=\"Luni\")+1)+$A20*7-6","v":"2018-04-29"},"2018-04-30","2018-05-01","2018-05-02","2018-05-03","2018-05-04","2018-05-05",null,{"$f":"Zile+DATE(AnCal,MONTH($J$18),1)-WEEKDAY(DATE(AnCal,MONTH($J$18),1),(ÎnceputSăptămână=\"Luni\")+1)+$A20*7-6","v":"2018-05-27"},"2018-05-28","2018-05-29","2018-05-30","2018-05-31","2018-06-01","2018-06-02",null,{"$f":"Zile+DATE(AnCal,MONTH($R$18),1)-WEEKDAY(DATE(AnCal,MONTH($R$18),1),(ÎnceputSăptămână=\"Luni\")+1)+$A20*7-6","v":"2018-07-01"},"2018-07-02","2018-07-03","2018-07-04","2018-07-05","2018-07-06","2018-07-07",null,{"$f":"Zile+DATE(AnCal,MONTH($Z$18),1)-WEEKDAY(DATE(AnCal,MONTH($Z$18),1),(ÎnceputSăptămână=\"Luni\")+1)+$A20*7-6","v":"2018-07-29"},"2018-07-30","2018-07-31","2018-08-01","2018-08-02","2018-08-03","2018-08-04"]
[2,{"$f":"Zile+DATE(AnCal,MONTH($B$18),1)-WEEKDAY(DATE(AnCal,MONTH($B$18),1),(ÎnceputSăptămână=\"Luni\")+1)+$A21*7-6","v":"2018-05-06"},"2018-05-07","2018-05-08","2018-05-09","2018-05-10","2018-05-11","2018-05-12",null,{"$f":"Zile+DATE(AnCal,MONTH($J$18),1)-WEEKDAY(DATE(AnCal,MONTH($J$18),1),(ÎnceputSăptămână=\"Luni\")+1)+$A21*7-6","v":"2018-06-03"},"2018-06-04","2018-06-05","2018-06-06","2018-06-07","2018-06-08","2018-06-09",null,{"$f":"Zile+DATE(AnCal,MONTH($R$18),1)-WEEKDAY(DATE(AnCal,MONTH($R$18),1),(ÎnceputSăptămână=\"Luni\")+1)+$A21*7-6","v":"2018-07-08"},"2018-07-09","2018-07-10","2018-07-11","2018-07-12","2018-07-13","2018-07-14",null,{"$f":"Zile+DATE(AnCal,MONTH($Z$18),1)-WEEKDAY(DATE(AnCal,MONTH($Z$18),1),(ÎnceputSăptămână=\"Luni\")+1)+$A21*7-6","v":"2018-08-05"},"2018-08-06","2018-08-07","2018-08-08","2018-08-09","2018-08-10","2018-08-11"]
[3,{"$f":"Zile+DATE(AnCal,MONTH($B$18),1)-WEEKDAY(DATE(AnCal,MONTH($B$18),1),(ÎnceputSăptămână=\"Luni\")+1)+$A22*7-6","v":"2018-05-13"},"2018-05-14","2018-05-15","2018-05-16","2018-05-17","2018-05-18","2018-05-19",null,{"$f":"Zile+DATE(AnCal,MONTH($J$18),1)-WEEKDAY(DATE(AnCal,MONTH($J$18),1),(ÎnceputSăptămână=\"Luni\")+1)+$A22*7-6","v":"2018-06-10"},"2018-06-11","2018-06-12","2018-06-13","2018-06-14","2018-06-15","2018-06-16",null,{"$f":"Zile+DATE(AnCal,MONTH($R$18),1)-WEEKDAY(DATE(AnCal,MONTH($R$18),1),(ÎnceputSăptămână=\"Luni\")+1)+$A22*7-6","v":"2018-07-15"},"2018-07-16","2018-07-17","2018-07-18","2018-07-19","2018-07-20","2018-07-21",null,{"$f":"Zile+DATE(AnCal,MONTH($Z$18),1)-WEEKDAY(DATE(AnCal,MONTH($Z$18),1),(ÎnceputSăptămână=\"Luni\")+1)+$A22*7-6","v":"2018-08-12"},"2018-08-13","2018-08-14","2018-08-15","2018-08-16","2018-08-17","2018-08-18"]
[4,{"$f":"Zile+DATE(AnCal,MONTH($B$18),1)-WEEKDAY(DATE(AnCal,MONTH($B$18),1),(ÎnceputSăptămână=\"Luni\")+1)+$A23*7-6","v":"2018-05-20"},"2018-05-21","2018-05-22","2018-05-23","2018-05-24","2018-05-25","2018-05-26",null,{"$f":"Zile+DATE(AnCal,MONTH($J$18),1)-WEEKDAY(DATE(AnCal,MONTH($J$18),1),(ÎnceputSăptămână=\"Luni\")+1)+$A23*7-6","v":"2018-06-17"},"2018-06-18","2018-06-19","2018-06-20","2018-06-21","2018-06-22","2018-06-23",null,{"$f":"Zile+DATE(AnCal,MONTH($R$18),1)-WEEKDAY(DATE(AnCal,MONTH($R$18),1),(ÎnceputSăptămână=\"Luni\")+1)+$A23*7-6","v":"2018-07-22"},"2018-07-23","2018-07-24","2018-07-25","2018-07-26","2018-07-27","2018-07-28",null,{"$f":"Zile+DATE(AnCal,MONTH($Z$18),1)-WEEKDAY(DATE(AnCal,MONTH($Z$18),1),(ÎnceputSăptămână=\"Luni\")+1)+$A23*7-6","v":"2018-08-19"},"2018-08-20","2018-08-21","2018-08-22","2018-08-23","2018-08-24","2018-08-25"]
[5,{"$f":"Zile+DATE(AnCal,MONTH($B$18),1)-WEEKDAY(DATE(AnCal,MONTH($B$18),1),(ÎnceputSăptămână=\"Luni\")+1)+$A24*7-6","v":"2018-05-27"},"2018-05-28","2018-05-29","2018-05-30","2018-05-31","2018-06-01","2018-06-02",null,{"$f":"Zile+DATE(AnCal,MONTH($J$18),1)-WEEKDAY(DATE(AnCal,MONTH($J$18),1),(ÎnceputSăptămână=\"Luni\")+1)+$A24*7-6","v":"2018-06-24"},"2018-06-25","2018-06-26","2018-06-27","2018-06-28","2018-06-29","2018-06-30",null,{"$f":"Zile+DATE(AnCal,MONTH($R$18),1)-WEEKDAY(DATE(AnCal,MONTH($R$18),1),(ÎnceputSăptămână=\"Luni\")+1)+$A24*7-6","v":"2018-07-29"},"2018-07-30","2018-07-31","2018-08-01","2018-08-02","2018-08-03","2018-08-04",null,{"$f":"Zile+DATE(AnCal,MONTH($Z$18),1)-WEEKDAY(DATE(AnCal,MONTH($Z$18),1),(ÎnceputSăptămână=\"Luni\")+1)+$A24*7-6","v":"2018-08-26"},"2018-08-27","2018-08-28","2018-08-29","2018-08-30","2018-08-31","2018-09-01"]
[6,{"$f":"Zile+DATE(AnCal,MONTH($B$18),1)-WEEKDAY(DATE(AnCal,MONTH($B$18),1),(ÎnceputSăptămână=\"Luni\")+1)+$A25*7-6","v":"2018-06-03"},"2018-06-04","2018-06-05","2018-06-06","2018-06-07","2018-06-08","2018-06-09",null,{"$f":"Zile+DATE(AnCal,MONTH($J$18),1)-WEEKDAY(DATE(AnCal,MONTH($J$18),1),(ÎnceputSăptămână=\"Luni\")+1)+$A25*7-6","v":"2018-07-01"},"2018-07-02","2018-07-03","2018-07-04","2018-07-05","2018-07-06","2018-07-07",null,{"$f":"Zile+DATE(AnCal,MONTH($R$18),1)-WEEKDAY(DATE(AnCal,MONTH($R$18),1),(ÎnceputSăptămână=\"Luni\")+1)+$A25*7-6","v":"2018-08-05"},"2018-08-06","2018-08-07","2018-08-08","2018-08-09","2018-08-10","2018-08-11",null,{"$f":"Zile+DATE(AnCal,MONTH($Z$18),1)-WEEKDAY(DATE(AnCal,MONTH($Z$18),1),(ÎnceputSăptămână=\"Luni\")+1)+$A25*7-6","v":"2018-09-02"},"2018-09-03","2018-09-04","2018-09-05","2018-09-06","2018-09-07","2018-09-08"]
[]
[null,{"$f":"DATE(AnCal,9,1)","v":43344},{"$nulls":7},{"$f":"DATE(AnCal,10,1)","v":43374},{"$nulls":7},{"$f":"DATE(AnCal,11,1)","v":43405},{"$nulls":7},{"$f":"DATE(AnCal,12,1)","v":43435}]
[null,{"$f":"UPPER(TEXT(B27,\"MMMM\"))","v":"SEPTEMBRIE"},{"$nulls":7},{"$f":"UPPER(TEXT(J27,\"MMMM\"))","v":"OCTOMBRIE"},{"$nulls":7},{"$f":"UPPER(TEXT(R27,\"MMMM\"))","v":"NOIEMBRIE"},{"$nulls":7},{"$f":"UPPER(TEXT(Z27,\"MMMM\"))","v":"DECEMBRIE"}]
[1,{"$f":"Zile+DATE(AnCal,MONTH($B$27),1)-WEEKDAY(DATE(AnCal,MONTH($B$27),1),(ÎnceputSăptămână=\"Luni\")+1)+$A29*7-6","v":"2018-08-26"},"2018-08-27","2018-08-28","2018-08-29","2018-08-30","2018-08-31","2018-09-01",null,{"$f":"Zile+DATE(AnCal,MONTH($J$27),1)-WEEKDAY(DATE(AnCal,MONTH($J$27),1),(ÎnceputSăptămână=\"Luni\")+1)+$A29*7-6","v":"2018-09-30"},"2018-10-01","2018-10-02","2018-10-03","2018-10-04","2018-10-05","2018-10-06",null,{"$f":"Zile+DATE(AnCal,MONTH($R$27),1)-WEEKDAY(DATE(AnCal,MONTH($R$27),1),(ÎnceputSăptămână=\"Luni\")+1)+$A29*7-6","v":"2018-10-28"},"2018-10-29","2018-10-30","2018-10-31","2018-11-01","2018-11-02","2018-11-03",null,{"$f":"Zile+DATE(AnCal,MONTH($Z$27),1)-WEEKDAY(DATE(AnCal,MONTH($Z$27),1),(ÎnceputSăptămână=\"Luni\")+1)+$A29*7-6","v":"2018-11-25"},"2018-11-26","2018-11-27","2018-11-28","2018-11-29","2018-11-30","2018-12-01"]
[2,{"$f":"Zile+DATE(AnCal,MONTH($B$27),1)-WEEKDAY(DATE(AnCal,MONTH($B$27),1),(ÎnceputSăptămână=\"Luni\")+1)+$A30*7-6","v":"2018-09-02"},"2018-09-03","2018-09-04","2018-09-05","2018-09-06","2018-09-07","2018-09-08",null,{"$f":"Zile+DATE(AnCal,MONTH($J$27),1)-WEEKDAY(DATE(AnCal,MONTH($J$27),1),(ÎnceputSăptămână=\"Luni\")+1)+$A30*7-6","v":"2018-10-07"},"2018-10-08","2018-10-09","2018-10-10","2018-10-11","2018-10-12","2018-10-13",null,{"$f":"Zile+DATE(AnCal,MONTH($R$27),1)-WEEKDAY(DATE(AnCal,MONTH($R$27),1),(ÎnceputSăptămână=\"Luni\")+1)+$A30*7-6","v":"2018-11-04"},"2018-11-05","2018-11-06","2018-11-07","2018-11-08","2018-11-09","2018-11-10",null,{"$f":"Zile+DATE(AnCal,MONTH($Z$27),1)-WEEKDAY(DATE(AnCal,MONTH($Z$27),1),(ÎnceputSăptămână=\"Luni\")+1)+$A30*7-6","v":"2018-12-02"},"2018-12-03","2018-12-04","2018-12-05","2018-12-06","2018-12-07","2018-12-08"]
[3,{"$f":"Zile+DATE(AnCal,MONTH($B$27),1)-WEEKDAY(DATE(AnCal,MONTH($B$27),1),(ÎnceputSăptămână=\"Luni\")+1)+$A31*7-6","v":"2018-09-09"},"2018-09-10","2018-09-11","2018-09-12","2018-09-13","2018-09-14","2018-09-15",null,{"$f":"Zile+DATE(AnCal,MONTH($J$27),1)-WEEKDAY(DATE(AnCal,MONTH($J$27),1),(ÎnceputSăptămână=\"Luni\")+1)+$A31*7-6","v":"2018-10-14"},"2018-10-15","2018-10-16","2018-10-17","2018-10-18","2018-10-19","2018-10-20",null,{"$f":"Zile+DATE(AnCal,MONTH($R$27),1)-WEEKDAY(DATE(AnCal,MONTH($R$27),1),(ÎnceputSăptămână=\"Luni\")+1)+$A31*7-6","v":"2018-11-11"},"2018-11-12","2018-11-13","2018-11-14","2018-11-15","2018-11-16","2018-11-17",null,{"$f":"Zile+DATE(AnCal,MONTH($Z$27),1)-WEEKDAY(DATE(AnCal,MONTH($Z$27),1),(ÎnceputSăptămână=\"Luni\")+1)+$A31*7-6","v":"2018-12-09"},"2018-12-10","2018-12-11","2018-12-12","2018-12-13","2018-12-14","2018-12-15"]
[4,{"$f":"Zile+DATE(AnCal,MONTH($B$27),1)-WEEKDAY(DATE(AnCal,MONTH($B$27),1),(ÎnceputSăptămână=\"Luni\")+1)+$A32*7-6","v":"2018-09-16"},"2018-09-17","2018-09-18","2018-09-19","2018-09-20","2018-09-21","2018-09-22",null,{"$f":"Zile+DATE(AnCal,MONTH($J$27),1)-WEEKDAY(DATE(AnCal,MONTH($J$27),1),(ÎnceputSăptămână=\"Luni\")+1)+$A32*7-6","v":"2018-10-21"},"2018-10-22","2018-10-23","2018-10-24","2018-10-25","2018-10-26","2018-10-27",null,{"$f":"Zile+DATE(AnCal,MONTH($R$27),1)-WEEKDAY(DATE(AnCal,MONTH($R$27),1),(ÎnceputSăptămână=\"Luni\")+1)+$A32*7-6","v":"2018-11-18"},"2018-11-19","2018-11-20","2018-11-21","2018-11-22","2018-11-23","2018-11-24",null,{"$f":"Zile+DATE(AnCal,MONTH($Z$27),1)-WEEKDAY(DATE(AnCal,MONTH($Z$27),1),(ÎnceputSăptămână=\"Luni\")+1)+$A32*7-6","v":"2018-12-16"},"2018-12-17","2018-12-18","2018-12-19","2018-12-20","2018-12-21","2018-12-22"]
[5,{"$f":"Zile+DATE(AnCal,MONTH($B$27),1)-WEEKDAY(DATE(AnCal,MONTH($B$27),1),(ÎnceputSăptămână=\"Luni\")+1)+$A33*7-6","v":"2018-09-23"},"2018-09-24","2018-09-25","2018-09-26","2018-09-27","2018-09-28","2018-09-29",null,{"$f":"Zile+DATE(AnCal,MONTH($J$27),1)-WEEKDAY(DATE(AnCal,MONTH($J$27),1),(ÎnceputSăptămână=\"Luni\")+1)+$A33*7-6","v":"2018-10-28"},"2018-10-29","2018-10-30","2018-10-31","2018-11-01","2018-11-02","2018-11-03",null,{"$f":"Zile+DATE(AnCal,MONTH($R$27),1)-WEEKDAY(DATE(AnCal,MONTH($R$27),1),(ÎnceputSăptămână=\"Luni\")+1)+$A33*7-6","v":"2018-11-25"},"2018-11-26","2018-11-27","2018-11-28","2018-11-29","2018-11-30","2018-12-01",null,{"$f":"Zile+DATE(AnCal,MONTH($Z$27),1)-WEEKDAY(DATE(AnCal,MONTH($Z$27),1),(ÎnceputSăptămână=\"Luni\")+1)+$A33*7-6","v":"2018-12-23"},"2018-12-24","2018-12-25","2018-12-26","2018-12-27","2018-12-28","2018-12-29"]
[6,{"$f":"Zile+DATE(AnCal,MONTH($B$27),1)-WEEKDAY(DATE(AnCal,MONTH($B$27),1),(ÎnceputSăptămână=\"Luni\")+1)+$A34*7-6","v":"2018-09-30"},"2018-10-01","2018-10-02","2018-10-03","2018-10-04","2018-10-05","2018-10-06",null,{"$f":"Zile+DATE(AnCal,MONTH($J$27),1)-WEEKDAY(DATE(AnCal,MONTH($J$27),1),(ÎnceputSăptămână=\"Luni\")+1)+$A34*7-6","v":"2018-11-04"},"2018-11-05","2018-11-06","2018-11-07","2018-11-08","2018-11-09","2018-11-10",null,{"$f":"Zile+DATE(AnCal,MONTH($R$27),1)-WEEKDAY(DATE(AnCal,MONTH($R$27),1),(ÎnceputSăptămână=\"Luni\")+1)+$A34*7-6","v":"2018-12-02"},"2018-12-03","2018-12-04","2018-12-05","2018-12-06","2018-12-07","2018-12-08",null,{"$f":"Zile+DATE(AnCal,MONTH($Z$27),1)-WEEKDAY(DATE(AnCal,MONTH($Z$27),1),(ÎnceputSăptămână=\"Luni\")+1)+$A34*7-6","v":"2018-12-30"},"2018-12-31","2019-01-01","2019-01-02","2019-01-03","2019-01-04","2019-01-05"]

{"sheet":"Ianuarie","index":1,"n_rows":17,"n_cols":8,"rows_kept":17,"merged":[[1,1,1,3],[14,3,14,7],[15,3,15,7],[16,1,16,7]]}
[]
[null,{"$f":"B9","v":"2018-01-14"}]
[]
[null,{"$f":"ÎnceputSăptămână","v":"DUMINICĂ"},{"$f":"UPPER(TEXT(C5,\"dddd\"))","v":"LUNI"},"MARȚI","MIERCURI","JOI","VINERI","SÂMBĂTĂ"]
[null,{"$f":"Zile+DATE(AnCal,1,1)-WEEKDAY(DATE(AnCal,1,1),(ÎnceputSăptămână=\"Luni\")+1)+1","v":"2017-12-31"},"2018-01-01","2018-01-02","2018-01-03","2018-01-04","2018-01-05","2018-01-06"]
[null,{"$f":"IFERROR(IF(AfișareSărbători,IF(INDEX(tblSărbători[],MATCH(DATE(AnCal-(DAY(B5)>15)+(ROW()>6),MONTH(B5),DAY(B5)),IF(AfișareCelebrateOficial,tblSărbători[RECTIFICAT],tblSărbători[ZIUA]),0),6),INDEX(tblSărbători[],MATCH(DATE(AnCal-(DAY(B5)>15)+(ROW()>6),MONTH(B5),DAY(B5)),IF(AfișareCelebrateOficial,tblSărbători[RECTIFICAT],tblSărbători[ZIUA]),0),2),\"\"),\"\"),\"\")","v":""},{"$f":"IFERROR(IF(AfișareSărbători,IF(INDEX(tblSărbători[],MATCH(DATE(AnCal-(DAY(C5)>15)+(ROW()>6),MONTH(C5),DAY(C5)),IF(AfișareCelebrateOficial,tblSărbători[RECTIFICAT],tblSărbători[ZIUA]),0),6),INDEX(tblSărbători[],MATCH(DATE(AnCal-(DAY(C5)>15)+(ROW()>6),MONTH(C5),DAY(C5)),IF(AfișareCelebrateOficial,tblSărbători[RECTIFICAT],tblSărbători[ZIUA]),0),2),\"\"),\"\"),\"\")","v":"Anul Nou"},{"$f":"IFERROR(IF(AfișareSărbători,IF(INDEX(tblSărbători[],MATCH(DATE(AnCal-(DAY(D5)>15)+(ROW()>6),MONTH(D5),DAY(D5)),IF(AfișareCelebrateOficial,tblSărbători[RECTIFICAT],tblSărbători[ZIUA]),0),6),INDEX(tblSărbători[],MATCH(DATE(AnCal-(DAY(D5)>15)+(ROW()>6),MONTH(D5),DAY(D5)),IF(AfișareCelebrateOficial,tblSărbători[RECTIFICAT],tblSărbători[ZIUA]),0),2),\"\"),\"\"),\"\")","v":""},{"$f":"IFERROR(IF(AfișareSărbători,IF(INDEX(tblSărbători[],MATCH(DATE(AnCal-(DAY(E5)>15)+(ROW()>6),MONTH(E5),DAY(E5)),IF(AfișareCelebrateOficial,tblSărbători[RECTIFICAT],tblSărbători[ZIUA]),0),6),INDEX(tblSărbători[],MATCH(DATE(AnCal-(DAY(E5)>15)+(ROW()>6),MONTH(E5),DAY(E5)),IF(AfișareCelebrateOficial,tblSărbători[RECTIFICAT],tblSărbători[ZIUA]),0),2),\"\"),\"\"),\"\")","v":""},{"$f":"IFERROR(IF(AfișareSărbători,IF(INDEX(tblSărbători[],MATCH(DATE(AnCal-(DAY(F5)>15)+(ROW()>6),MONTH(F5),DAY(F5)),IF(AfișareCelebrateOficial,tblSărbători[RECTIFICAT],tblSărbători[ZIUA]),0),6),INDEX(tblSărbători[],MATCH(DATE(AnCal-(DAY(F5)>15)+(ROW()>6),MONTH(F5),DAY(F5)),IF(AfișareCelebrateOficial,tblSărbători[RECTIFICAT],tblSărbători[ZIUA]),0),2),\"\"),\"\"),\"\")","v":""},{"$f":"IFERROR(IF(AfișareSărbători,IF(INDEX(tblSărbători[],MATCH(DATE(AnCal-(DAY(G5)>15)+(ROW()>6),MONTH(G5),DAY(G5)),IF(AfișareCelebrateOficial,tblSărbători[RECTIFICAT],tblSărbători[ZIUA]),0),6),INDEX(tblSărbători[],MATCH(DATE(AnCal-(DAY(G5)>15)+(ROW()>6),MONTH(G5),DAY(G5)),IF(AfișareCelebrateOficial,tblSărbători[RECTIFICAT],tblSărbători[ZIUA]),0),2),\"\"),\"\"),\"\")","v":""},{"$f":"IFERROR(IF(AfișareSărbători,IF(INDEX(tblSărbători[],MATCH(DATE(AnCal-(DAY(H5)>15)+(ROW()>6),MONTH(H5),DAY(H5)),IF(AfișareCelebrateOficial,tblSărbători[RECTIFICAT],tblSărbători[ZIUA]),0),6),INDEX(tblSărbători[],MATCH(DATE(AnCal-(DAY(H5)>15)+(ROW()>6),MONTH(H5),DAY(H5)),IF(AfișareCelebrateOficial,tblSărbători[RECTIFICAT],tblSărbători[ZIUA]),0),2),\"\"),\"\"),\"\")","v":""}]
[null,{"$f":"Zile+DATE(AnCal,1,1)-WEEKDAY(DATE(AnCal,1,1),(ÎnceputSăptămână=\"Luni\")+1)+8","v":"2018-01-07"},"2018-01-08","2018-01-09","2018-01-10","2018-01-11","2018-01-12","2018-01-13"]
[null,{"$f":"IFERROR(IF(AfișareSărbători,IF(INDEX(tblSărbători[],MATCH(DATE(AnCal,MONTH(B7),DAY(B7)),IF(AfișareCelebrateOficial,tblSărbători[RECTIFICAT],tblSărbători[ZIUA]),0),6),INDEX(tblSărbători[],MATCH(DATE(AnCal,MONTH(B7),DAY(B7)),IF(AfișareCelebrateOficial,tblSărbători[RECTIFICAT],tblSărbători[ZIUA]),0),2),\"\"),\"\"),\"\")","v":""},{"$f":"IFERROR(IF(AfișareSărbători,IF(INDEX(tblSărbători[],MATCH(DATE(AnCal,MONTH(C7),DAY(C7)),IF(AfișareCelebrateOficial,tblSărbători[RECTIFICAT],tblSărbători[ZIUA]),0),6),INDEX(tblSărbători[],MATCH(DATE(AnCal,MONTH(C7),DAY(C7)),IF(AfișareCelebrateOficial,tblSărbători[RECTIFICAT],tblSărbători[ZIUA]),0),2),\"\"),\"\"),\"\")","v":""},{"$f":"IFERROR(IF(AfișareSărbători,IF(INDEX(tblSărbători[],MATCH(DATE(AnCal,MONTH(D7),DAY(D7)),IF(AfișareCelebrateOficial,tblSărbători[RECTIFICAT],tblSărbători[ZIUA]),0),6),INDEX(tblSărbători[],MATCH(DATE(AnCal,MONTH(D7),DAY(D7)),IF(AfișareCelebrateOficial,tblSărbători[RECTIFICAT],tblSărbători[ZIUA]),0),2),\"\"),\"\"),\"\")","v":""},{"$f":"IFERROR(IF(AfișareSărbători,IF(INDEX(tblSărbători[],MATCH(DATE(AnCal,MONTH(E7),DAY(E7)),IF(AfișareCelebrateOficial,tblSărbători[RECTIFICAT],tblSărbători[ZIUA]),0),6),INDEX(tblSărbători[],MATCH(DATE(AnCal,MONTH(E7),DAY(E7)),IF(AfișareCelebrateOficial,tblSărbători[RECTIFICAT],tblSărbători[ZIUA]),0),2),\"\"),\"\"),\"\")","v":""},{"$f":"IFERROR(IF(AfișareSărbători,IF(INDEX(tblSărbători[],MATCH(DATE(AnCal,MONTH(F7),DAY(F7)),IF(AfișareCelebrateOficial,tblSărbători[RECTIFICAT],tblSărbători[ZIUA]),0),6),INDEX(tblSărbători[],MATCH(DATE(AnCal,MONTH(F7),DAY(F7)),IF(AfișareCelebrateOficial,tblSărbători[RECTIFICAT],tblSărbători[ZIUA]),0),2),\"\"),\"\"),\"\")","v":""},{"$f":"IFERROR(IF(AfișareSărbători,IF(INDEX(tblSărbători[],MATCH(DATE(AnCal,MONTH(G7),DAY(G7)),IF(AfișareCelebrateOficial,tblSărbători[RECTIFICAT],tblSărbători[ZIUA]),0),6),INDEX(tblSărbători[],MATCH(DATE(AnCal,MONTH(G7),DAY(G7)),IF(AfișareCelebrateOficial,tblSărbători[RECTIFICAT],tblSărbători[ZIUA]),0),2),\"\"),\"\"),\"\")","v":""},{"$f":"IFERROR(IF(AfișareSărbători,IF(INDEX(tblSărbători[],MATCH(DATE(AnCal,MONTH(H7),DAY(H7)),IF(AfișareCelebrateOficial,tblSărbători[RECTIFICAT],tblSărbători[ZIUA]),0),6),INDEX(tblSărbători[],MATCH(DATE(AnCal,MONTH(H7),DAY(H7)),IF(AfișareCelebrateOficial,tblSărbători[RECTIFICAT],tblSărbători[ZIUA]),0),2),\"\"),\"\"),\"\")","v":""}]
[null,{"$f":"Zile+DATE(AnCal,1,1)-WEEKDAY(DATE(AnCal,1,1),(ÎnceputSăptămână=\"Luni\")+1)+15","v":"2018-01-14"},"2018-01-15","2018-01-16","2018-01-17","2018-01-18","2018-01-19","2018-01-20"]
[null,{"$f":"IFERROR(IF(AfișareSărbători,IF(INDEX(tblSărbători[],MATCH(DATE(AnCal,MONTH(B9),DAY(B9)),IF(AfișareCelebrateOficial,tblSărbători[RECTIFICAT],tblSărbători[ZIUA]),0),6),INDEX(tblSărbători[],MATCH(DATE(AnCal,MONTH(B9),DAY(B9)),IF(AfișareCelebrateOficial,tblSărbători[RECTIFICAT],tblSărbători[ZIUA]),0),2),\"\"),\"\"),\"\")","v":""},{"$f":"IFERROR(IF(AfișareSărbători,IF(INDEX(tblSărbători[],MATCH(DATE(AnCal,MONTH(C9),DAY(C9)),IF(AfișareCelebrateOficial,tblSărbători[RECTIFICAT],tblSărbători[ZIUA]),0),6),INDEX(tblSărbători[],MATCH(DATE(AnCal,MONTH(C9),DAY(C9)),IF(AfișareCelebrateOficial,tblSărbători[RECTIFICAT],tblSărbători[ZIUA]),0),2),\"\"),\"\"),\"\")","v":""},{"$f":"IFERROR(IF(AfișareSărbători,IF(INDEX(tblSărbători[],MATCH(DATE(AnCal,MONTH(D9),DAY(D9)),IF(AfișareCelebrateOficial,tblSărbători[RECTIFICAT],tblSărbători[ZIUA]),0),6),INDEX(tblSărbători[],MATCH(DATE(AnCal,MONTH(D9),DAY(D9)),IF(AfișareCelebrateOficial,tblSărbători[RECTIFICAT],tblSărbători[ZIUA]),0),2),\"\"),\"\"),\"\")","v":""},{"$f":"IFERROR(IF(AfișareSărbători,IF(INDEX(tblSărbători[],MATCH(DATE(AnCal,MONTH(E9),DAY(E9)),IF(AfișareCelebrateOficial,tblSărbători[RECTIFICAT],tblSărbători[ZIUA]),0),6),INDEX(tblSărbători[],MATCH(DATE(AnCal,MONTH(E9),DAY(E9)),IF(AfișareCelebrateOficial,tblSărbători[RECTIFICAT],tblSărbători[ZIUA]),0),2),\"\"),\"\"),\"\")","v":""},{"$f":"IFERROR(IF(AfișareSărbători,IF(INDEX(tblSărbători[],MATCH(DATE(AnCal,MONTH(F9),DAY(F9)),IF(AfișareCelebrateOficial,tblSărbători[RECTIFICAT],tblSărbători[ZIUA]),0),6),INDEX(tblSărbători[],MATCH(DATE(AnCal,MONTH(F9),DAY(F9)),IF(AfișareCelebrateOficial,tblSărbători[RECTIFICAT],tblSărbători[ZIUA]),0),2),\"\"),\"\"),\"\")","v":""},{"$f":"IFERROR(IF(AfișareSărbători,IF(INDEX(tblSărbători[],MATCH(DATE(AnCal,MONTH(G9),DAY(G9)),IF(AfișareCelebrateOficial,tblSărbători[RECTIFICAT],tblSărbători[ZIUA]),0),6),INDEX(tblSărbători[],MATCH(DATE(AnCal,MONTH(G9),DAY(G9)),IF(AfișareCelebrateOficial,tblSărbători[RECTIFICAT],tblSărbători[ZIUA]),0),2),\"\"),\"\"),\"\")","v":""},{"$f":"IFERROR(IF(AfișareSărbători,IF(INDEX(tblSărbători[],MATCH(DATE(AnCal,MONTH(H9),DAY(H9)),IF(AfișareCelebrateOficial,tblSărbători[RECTIFICAT],tblSărbători[ZIUA]),0),6),INDEX(tblSărbători[],MATCH(DATE(AnCal,MONTH(H9),DAY(H9)),IF(AfișareCelebrateOficial,tblSărbători[RECTIFICAT],tblSărbători[ZIUA]),0),2),\"\"),\"\"),\"\")","v":""}]
[null,{"$f":"Zile+DATE(AnCal,1,1)-WEEKDAY(DATE(AnCal,1,1),(ÎnceputSăptămână=\"Luni\")+1)+22","v":"2018-01-21"},"2018-01-22","2018-01-23","2018-01-24","2018-01-25","2018-01-26","2018-01-27"]
[null,{"$f":"IFERROR(IF(AfișareSărbători,IF(INDEX(tblSărbători[],MATCH(DATE(AnCal,MONTH(B11),DAY(B11)),IF(AfișareCelebrateOficial,tblSărbători[RECTIFICAT],tblSărbători[ZIUA]),0),6),INDEX(tblSărbători[],MATCH(DATE(AnCal,MONTH(B11),DAY(B11)),IF(AfișareCelebrateOficial,tblSărbători[RECTIFICAT],tblSărbători[ZIUA]),0),2),\"\"),\"\"),\"\")","v":""},{"$f":"IFERROR(IF(AfișareSărbători,IF(INDEX(tblSărbători[],MATCH(DATE(AnCal,MONTH(C11),DAY(C11)),IF(AfișareCelebrateOficial,tblSărbători[RECTIFICAT],tblSărbători[ZIUA]),0),6),INDEX(tblSărbători[],MATCH(DATE(AnCal,MONTH(C11),DAY(C11)),IF(AfișareCelebrateOficial,tblSărbători[RECTIFICAT],tblSărbători[ZIUA]),0),2),\"\"),\"\"),\"\")","v":""},{"$f":"IFERROR(IF(AfișareSărbători,IF(INDEX(tblSărbători[],MATCH(DATE(AnCal,MONTH(D11),DAY(D11)),IF(AfișareCelebrateOficial,tblSărbători[RECTIFICAT],tblSărbători[ZIUA]),0),6),INDEX(tblSărbători[],MATCH(DATE(AnCal,MONTH(D11),DAY(D11)),IF(AfișareCelebrateOficial,tblSărbători[RECTIFICAT],tblSărbători[ZIUA]),0),2),\"\"),\"\"),\"\")","v":""},{"$f":"IFERROR(IF(AfișareSărbători,IF(INDEX(tblSărbători[],MATCH(DATE(AnCal,MONTH(E11),DAY(E11)),IF(AfișareCelebrateOficial,tblSărbători[RECTIFICAT],tblSărbători[ZIUA]),0),6),INDEX(tblSărbători[],MATCH(DATE(AnCal,MONTH(E11),DAY(E11)),IF(AfișareCelebrateOficial,tblSărbători[RECTIFICAT],tblSărbători[ZIUA]),0),2),\"\"),\"\"),\"\")","v":""},{"$f":"IFERROR(IF(AfișareSărbători,IF(INDEX(tblSărbători[],MATCH(DATE(AnCal,MONTH(F11),DAY(F11)),IF(AfișareCelebrateOficial,tblSărbători[RECTIFICAT],tblSărbători[ZIUA]),0),6),INDEX(tblSărbători[],MATCH(DATE(AnCal,MONTH(F11),DAY(F11)),IF(AfișareCelebrateOficial,tblSărbători[RECTIFICAT],tblSărbători[ZIUA]),0),2),\"\"),\"\"),\"\")","v":""},{"$f":"IFERROR(IF(AfișareSărbători,IF(INDEX(tblSărbători[],MATCH(DATE(AnCal,MONTH(G11),DAY(G11)),IF(AfișareCelebrateOficial,tblSărbători[RECTIFICAT],tblSărbători[ZIUA]),0),6),INDEX(tblSărbători[],MATCH(DATE(AnCal,MONTH(G11),DAY(G11)),IF(AfișareCelebrateOficial,tblSărbători[RECTIFICAT],tblSărbători[ZIUA]),0),2),\"\"),\"\"),\"\")","v":""},{"$f":"IFERROR(IF(AfișareSărbători,IF(INDEX(tblSărbători[],MATCH(DATE(AnCal,MONTH(H11),DAY(H11)),IF(AfișareCelebrateOficial,tblSărbători[RECTIFICAT],tblSărbători[ZIUA]),0),6),INDEX(tblSărbători[],MATCH(DATE(AnCal,MONTH(H11),DAY(H11)),IF(AfișareCelebrateOficial,tblSărbători[RECTIFICAT],tblSărbători[ZIUA]),0),2),\"\"),\"\"),\"\")","v":""}]
[null,{"$f":"Zile+DATE(AnCal,1,1)-WEEKDAY(DATE(AnCal,1,1),(ÎnceputSăptămână=\"Luni\")+1)+29","v":"2018-01-28"},"2018-01-29","2018-01-30","2018-01-31","2018-02-01","2018-02-02","2018-02-03"]
[null,{"$f":"IFERROR(IF(AfișareSărbători,IF(INDEX(tblSărbători[],MATCH(DATE(AnCal,MONTH(B13),DAY(B13)),IF(AfișareCelebrateOficial,tblSărbători[RECTIFICAT],tblSărbători[ZIUA]),0),6),INDEX(tblSărbători[],MATCH(DATE(AnCal,MONTH(B13),DAY(B13)),IF(AfișareCelebrateOficial,tblSărbători[RECTIFICAT],tblSărbători[ZIUA]),0),2),\"\"),\"\"),\"\")","v":""},{"$f":"IFERROR(IF(AfișareSărbători,IF(INDEX(tblSărbători[],MATCH(DATE(AnCal,MONTH(C13),DAY(C13)),IF(AfișareCelebrateOficial,tblSărbători[RECTIFICAT],tblSărbători[ZIUA]),0),6),INDEX(tblSărbători[],MATCH(DATE(AnCal,MONTH(C13),DAY(C13)),IF(AfișareCelebrateOficial,tblSărbători[RECTIFICAT],tblSărbători[ZIUA]),0),2),\"\"),\"\"),\"\")","v":""},{"$f":"IFERROR(IF(AfișareSărbători,IF(INDEX(tblSărbători[],MATCH(DATE(AnCal,MONTH(D13),DAY(D13)),IF(AfișareCelebrateOficial,tblSărbători[RECTIFICAT],tblSărbători[ZIUA]),0),6),INDEX(tblSărbători[],MATCH(DATE(AnCal,MONTH(D13),DAY(D13)),IF(AfișareCelebrateOficial,tblSărbători[RECTIFICAT],tblSărbători[ZIUA]),0),2),\"\"),\"\"),\"\")","v":""},{"$f":"IFERROR(IF(AfișareSărbători,IF(INDEX(tblSărbători[],MATCH(DATE(AnCal,MONTH(E13),DAY(E13)),IF(AfișareCelebrateOficial,tblSărbători[RECTIFICAT],tblSărbători[ZIUA]),0),6),INDEX(tblSărbători[],MATCH(DATE(AnCal,MONTH(E13),DAY(E13)),IF(AfișareCelebrateOficial,tblSărbători[RECTIFICAT],tblSărbători[ZIUA]),0),2),\"\"),\"\"),\"\")","v":""},{"$f":"IFERROR(IF(AfișareSărbători,IF(INDEX(tblSărbători[],MATCH(DATE(AnCal,MONTH(F13),DAY(F13)),IF(AfișareCelebrateOficial,tblSărbători[RECTIFICAT],tblSărbători[ZIUA]),0),6),INDEX(tblSărbători[],MATCH(DATE(AnCal,MONTH(F13),DAY(F13)),IF(AfișareCelebrateOficial,tblSărbători[RECTIFICAT],tblSărbători[ZIUA]),0),2),\"\"),\"\"),\"\")","v":""},{"$f":"IFERROR(IF(AfișareSărbători,IF(INDEX(tblSărbători[],MATCH(DATE(AnCal,MONTH(G13),DAY(G13)),IF(AfișareCelebrateOficial,tblSărbători[RECTIFICAT],tblSărbători[ZIUA]),0),6),INDEX(tblSărbători[],MATCH(DATE(AnCal,MONTH(G13),DAY(G13)),IF(AfișareCelebrateOficial,tblSărbători[RECTIFICAT],tblSărbători[ZIUA]),0),2),\"\"),\"\"),\"\")","v":""},{"$f":"IFERROR(IF(AfișareSărbători,IF(INDEX(tblSărbători[],MATCH(DATE(AnCal,MONTH(H13),DAY(H13)),IF(AfișareCelebrateOficial,tblSărbători[RECTIFICAT],tblSărbători[ZIUA]),0),6),INDEX(tblSărbători[],MATCH(DATE(AnCal,MONTH(H13),DAY(H13)),IF(AfișareCelebrateOficial,tblSărbători[RECTIFICAT],tblSărbători[ZIUA]),0),2),\"\"),\"\"),\"\")","v":""}]
[null,{"$f":"Zile+DATE(AnCal,1,1)-WEEKDAY(DATE(AnCal,1,1),(ÎnceputSăptămână=\"Luni\")+1)+36","v":"2018-02-04"},"2018-02-05","NOTE"]
[null,{"$f":"IFERROR(IF(AfișareSărbători,IF(INDEX(tblSărbători[],MATCH(DATE(AnCal,MONTH(B15),DAY(B15)),IF(AfișareCelebrateOficial,tblSărbători[RECTIFICAT],tblSărbători[ZIUA]),0),6),INDEX(tblSărbători[],MATCH(DATE(AnCal,MONTH(B15),DAY(B15)),IF(AfișareCelebrateOficial,tblSărbători[RECTIFICAT],tblSărbători[ZIUA]),0),2),\"\"),\"\"),\"\")","v":""},{"$f":"IFERROR(IF(AfișareSărbători,IF(INDEX(tblSărbători[],MATCH(DATE(AnCal,MONTH(C15),DAY(C15)),IF(AfișareCelebrateOficial,tblSărbători[RECTIFICAT],tblSărbători[ZIUA]),0),6),INDEX(tblSărbători[],MATCH(DATE(AnCal,MONTH(C15),DAY(C15)),IF(AfișareCelebrateOficial,tblSărbători[RECTIFICAT],tblSărbători[ZIUA]),0),2),\"\"),\"\"),\"\")","v":""}]
[null,{"$f":"IF(Sărbători!#REF!=\"Martin Luther King, Jr. Day *\",\"* Martin Luther King Jr. Day and Inaguration Day\", \"\")","v":{"$error":"#REF!"}}]

{"sheet":"Februarie","index":2,"n_rows":16,"n_cols":8,"rows_kept":16,"merged":[[1,1,1,3],[14,3,14,7],[15,3,15,7],[16,1,16,7]]}
[]
[null,{"$f":"B9","v":"2018-02-11"}]
[]
[null,{"$f":"ÎnceputSăptămână","v":"DUMINICĂ"},{"$f":"UPPER(TEXT(C5,\"dddd\"))","v":"LUNI"},"MARȚI","MIERCURI","JOI","VINERI","SÂMBĂTĂ"]
[null,{"$f":"Zile+DATE(AnCal,2,1)-WEEKDAY(DATE(AnCal,2,1),(ÎnceputSăptămână=\"Luni\")+1)+1","v":"2018-01-28"},"2018-01-29","2018-01-30","2018-01-31","2018-02-01","2018-02-02","2018-02-03"]
[null,{"$f":"IFERROR(IF(AfișareSărbători,IF(INDEX(tblSărbători[],MATCH(DATE(AnCal-(DAY(B5)>15)+(ROW()>6),MONTH(B5),DAY(B5)),IF(AfișareCelebrateOficial,tblSărbători[RECTIFICAT],tblSărbători[ZIUA]),0),6),INDEX(tblSărbători[],MATCH(DATE(AnCal-(DAY(B5)>15)+(ROW()>6),MONTH(B5),DAY(B5)),IF(AfișareCelebrateOficial,tblSărbători[RECTIFICAT],tblSărbători[ZIUA]),0),2),\"\"),\"\"),\"\")","v":""},{"$f":"IFERROR(IF(AfișareSărbători,IF(INDEX(tblSărbători[],MATCH(DATE(AnCal-(DAY(C5)>15)+(ROW()>6),MONTH(C5),DAY(C5)),IF(AfișareCelebrateOficial,tblSărbători[RECTIFICAT],tblSărbători[ZIUA]),0),6),INDEX(tblSărbători[],MATCH(DATE(AnCal-(DAY(C5)>15)+(ROW()>6),MONTH(C5),DAY(C5)),IF(AfișareCelebrateOficial,tblSărbători[RECTIFICAT],tblSărbători[ZIUA]),0),2),\"\"),\"\"),\"\")","v":""},{"$f":"IFERROR(IF(AfișareSărbători,IF(INDEX(tblSărbători[],MATCH(DATE(AnCal-(DAY(D5)>15)+(ROW()>6),MONTH(D5),DAY(D5)),IF(AfișareCelebrateOficial,tblSărbători[RECTIFICAT],tblSărbători[ZIUA]),0),6),INDEX(tblSărbători[],MATCH(DATE(AnCal-(DAY(D5)>15)+(ROW()>6),MONTH(D5),DAY(D5)),IF(AfișareCelebrateOficial,tblSărbători[RECTIFICAT],tblSărbători[ZIUA]),0),2),\"\"),\"\"),\"\")","v":""},{"$f":"IFERROR(IF(AfișareSărbători,IF(INDEX(tblSărbători[],MATCH(DATE(AnCal-(DAY(E5)>15)+(ROW()>6),MONTH(E5),DAY(E5)),IF(AfișareCelebrateOficial,tblSărbători[RECTIFICAT],tblSărbători[ZIUA]),0),6),INDEX(tblSărbători[],MATCH(DATE(AnCal-(DAY(E5)>15)+(ROW()>6),MONTH(E5),DAY(E5)),IF(AfișareCelebrateOficial,tblSărbători[RECTIFICAT],tblSărbători[ZIUA]),0),2),\"\"),\"\"),\"\")","v":""},{"$f":"IFERROR(IF(AfișareSărbători,IF(INDEX(tblSărbători[],MATCH(DATE(AnCal-(DAY(F5)>15)+(ROW()>6),MONTH(F5),DAY(F5)),IF(AfișareCelebrateOficial,tblSărbători[RECTIFICAT],tblSărbători[ZIUA]),0),6),INDEX(tblSărbători[],MATCH(DATE(AnCal-(DAY(F5)>15)+(ROW()>6),MONTH(F5),DAY(F5)),IF(AfișareCelebrateOficial,tblSărbători[RECTIFICAT],tblSărbători[ZIUA]),0),2),\"\"),\"\"),\"\")","v":""},{"$f":"IFERROR(IF(AfișareSărbători,IF(INDEX(tblSărbători[],MATCH(DATE(AnCal-(DAY(G5)>15)+(ROW()>6),MONTH(G5),DAY(G5)),IF(AfișareCelebrateOficial,tblSărbători[RECTIFICAT],tblSărbători[ZIUA]),0),6),INDEX(tblSărbători[],MATCH(DATE(AnCal-(DAY(G5)>15)+(ROW()>6),MONTH(G5),DAY(G5)),IF(AfișareCelebrateOficial,tblSărbători[RECTIFICAT],tblSărbători[ZIUA]),0),2),\"\"),\"\"),\"\")","v":""},{"$f":"IFERROR(IF(AfișareSărbători,IF(INDEX(tblSărbători[],MATCH(DATE(AnCal-(DAY(H5)>15)+(ROW()>6),MONTH(H5),DAY(H5)),IF(AfișareCelebrateOficial,tblSărbători[RECTIFICAT],tblSărbători[ZIUA]),0),6),INDEX(tblSărbători[],MATCH(DATE(AnCal-(DAY(H5)>15)+(ROW()>6),MONTH(H5),DAY(H5)),IF(AfișareCelebrateOficial,tblSărbători[RECTIFICAT],tblSărbători[ZIUA]),0),2),\"\"),\"\"),\"\")","v":""}]
[null,{"$f":"Zile+DATE(AnCal,2,1)-WEEKDAY(DATE(AnCal,2,1),(ÎnceputSăptămână=\"Luni\")+1)+8","v":"2018-02-04"},"2018-02-05","2018-02-06","2018-02-07","2018-02-08","2018-02-09","2018-02-10"]
[null,{"$f":"IFERROR(IF(AfișareSărbători,IF(INDEX(tblSărbători[],MATCH(DATE(AnCal,MONTH(B7),DAY(B7)),IF(AfișareCelebrateOficial,tblSărbători[RECTIFICAT],tblSărbători[ZIUA]),0),6),INDEX(tblSărbători[],MATCH(DATE(AnCal,MONTH(B7),DAY(B7)),IF(AfișareCelebrateOficial,tblSărbători[RECTIFICAT],tblSărbători[ZIUA]),0),2),\"\"),\"\"),\"\")","v":""},{"$f":"IFERROR(IF(AfișareSărbători,IF(INDEX(tblSărbători[],MATCH(DATE(AnCal,MONTH(C7),DAY(C7)),IF(AfișareCelebrateOficial,tblSărbători[RECTIFICAT],tblSărbători[ZIUA]),0),6),INDEX(tblSărbători[],MATCH(DATE(AnCal,MONTH(C7),DAY(C7)),IF(AfișareCelebrateOficial,tblSărbători[RECTIFICAT],tblSărbători[ZIUA]),0),2),\"\"),\"\"),\"\")","v":""},{"$f":"IFERROR(IF(AfișareSărbători,IF(INDEX(tblSărbători[],MATCH(DATE(AnCal,MONTH(D7),DAY(D7)),IF(AfișareCelebrateOficial,tblSărbători[RECTIFICAT],tblSărbători[ZIUA]),0),6),INDEX(tblSărbători[],MATCH(DATE(AnCal,MONTH(D7),DAY(D7)),IF(AfișareCelebrateOficial,tblSărbători[RECTIFICAT],tblSărbători[ZIUA]),0),2),\"\"),\"\"),\"\")","v":""},{"$f":"IFERROR(IF(AfișareSărbători,IF(INDEX(tblSărbători[],MATCH(DATE(AnCal,MONTH(E7),DAY(E7)),IF(AfișareCelebrateOficial,tblSărbători[RECTIFICAT],tblSărbători[ZIUA]),0),6),INDEX(tblSărbători[],MATCH(DATE(AnCal,MONTH(E7),DAY(E7)),IF(AfișareCelebrateOficial,tblSărbători[RECTIFICAT],tblSărbători[ZIUA]),0),2),\"\"),\"\"),\"\")","v":""},{"$f":"IFERROR(IF(AfișareSărbători,IF(INDEX(tblSărbători[],MATCH(DATE(AnCal,MONTH(F7),DAY(F7)),IF(AfișareCelebrateOficial,tblSărbători[RECTIFICAT],tblSărbători[ZIUA]),0),6),INDEX(tblSărbători[],MATCH(DATE(AnCal,MONTH(F7),DAY(F7)),IF(AfișareCelebrateOficial,tblSărbători[RECTIFICAT],tblSărbători[ZIUA]),0),2),\"\"),\"\"),\"\")","v":""},{"$f":"IFERROR(IF(AfișareSărbători,IF(INDEX(tblSărbători[],MATCH(DATE(AnCal,MONTH(G7),DAY(G7)),IF(AfișareCelebrateOficial,tblSărbători[RECTIFICAT],tblSărbători[ZIUA]),0),6),INDEX(tblSărbători[],MATCH(DATE(AnCal,MONTH(G7),DAY(G7)),IF(AfișareCelebrateOficial,tblSărbători[RECTIFICAT],tblSărbători[ZIUA]),0),2),\"\"),\"\"),\"\")","v":""},{"$f":"IFERROR(IF(AfișareSărbători,IF(INDEX(tblSărbători[],MATCH(DATE(AnCal,MONTH(H7),DAY(H7)),IF(AfișareCelebrateOficial,tblSărbători[RECTIFICAT],tblSărbători[ZIUA]),0),6),INDEX(tblSărbători[],MATCH(DATE(AnCal,MONTH(H7),DAY(H7)),IF(AfișareCelebrateOficial,tblSărbători[RECTIFICAT],tblSărbători[ZIUA]),0),2),\"\"),\"\"),\"\")","v":""}]
[null,{"$f":"Zile+DATE(AnCal,2,1)-WEEKDAY(DATE(AnCal,2,1),(ÎnceputSăptămână=\"Luni\")+1)+15","v":"2018-02-11"},"2018-02-12","2018-02-13","2018-02-14","2018-02-15","2018-02-16","2018-02-17"]
[null,{"$f":"IFERROR(IF(AfișareSărbători,IF(INDEX(tblSărbători[],MATCH(DATE(AnCal,MONTH(B9),DAY(B9)),IF(AfișareCelebrateOficial,tblSărbători[RECTIFICAT],tblSărbători[ZIUA]),0),6),INDEX(tblSărbători[],MATCH(DATE(AnCal,MONTH(B9),DAY(B9)),IF(AfișareCelebrateOficial,tblSărbători[RECTIFICAT],tblSărbători[ZIUA]),0),2),\"\"),\"\"),\"\")","v":""},{"$f":"IFERROR(IF(AfișareSărbători,IF(INDEX(tblSărbători[],MATCH(DATE(AnCal,MONTH(C9),DAY(C9)),IF(AfișareCelebrateOficial,tblSărbători[RECTIFICAT],tblSărbători[ZIUA]),0),6),INDEX(tblSărbători[],MATCH(DATE(AnCal,MONTH(C9),DAY(C9)),IF(AfișareCelebrateOficial,tblSărbători[RECTIFICAT],tblSărbători[ZIUA]),0),2),\"\"),\"\"),\"\")","v":""},{"$f":"IFERROR(IF(AfișareSărbători,IF(INDEX(tblSărbători[],MATCH(DATE(AnCal,MONTH(D9),DAY(D9)),IF(AfișareCelebrateOficial,tblSărbători[RECTIFICAT],tblSărbători[ZIUA]),0),6),INDEX(tblSărbători[],MATCH(DATE(AnCal,MONTH(D9),DAY(D9)),IF(AfișareCelebrateOficial,tblSărbători[RECTIFICAT],tblSărbători[ZIUA]),0),2),\"\"),\"\"),\"\")","v":""},{"$f":"IFERROR(IF(AfișareSărbători,IF(INDEX(tblSărbători[],MATCH(DATE(AnCal,MONTH(E9),DAY(E9)),IF(AfișareCelebrateOficial,tblSărbători[RECTIFICAT],tblSărbători[ZIUA]),0),6),INDEX(tblSărbători[],MATCH(DATE(AnCal,MONTH(E9),DAY(E9)),IF(AfișareCelebrateOficial,tblSărbători[RECTIFICAT],tblSărbători[ZIUA]),0),2),\"\"),\"\"),\"\")","v":""},{"$f":"IFERROR(IF(AfișareSărbători,IF(INDEX(tblSărbători[],MATCH(DATE(AnCal,MONTH(F9),DAY(F9)),IF(AfișareCelebrateOficial,tblSărbători[RECTIFICAT],tblSărbători[ZIUA]),0),6),INDEX(tblSărbători[],MATCH(DATE(AnCal,MONTH(F9),DAY(F9)),IF(AfișareCelebrateOficial,tblSărbători[RECTIFICAT],tblSărbători[ZIUA]),0),2),\"\"),\"\"),\"\")","v":""},{"$f":"IFERROR(IF(AfișareSărbători,IF(INDEX(tblSărbători[],MATCH(DATE(AnCal,MONTH(G9),DAY(G9)),IF(AfișareCelebrateOficial,tblSărbători[RECTIFICAT],tblSărbători[ZIUA]),0),6),INDEX(tblSărbători[],MATCH(DATE(AnCal,MONTH(G9),DAY(G9)),IF(AfișareCelebrateOficial,tblSărbători[RECTIFICAT],tblSărbători[ZIUA]),0),2),\"\"),\"\"),\"\")","v":""},{"$f":"IFERROR(IF(AfișareSărbători,IF(INDEX(tblSărbători[],MATCH(DATE(AnCal,MONTH(H9),DAY(H9)),IF(AfișareCelebrateOficial,tblSărbători[RECTIFICAT],tblSărbători[ZIUA]),0),6),INDEX(tblSărbători[],MATCH(DATE(AnCal,MONTH(H9),DAY(H9)),IF(AfișareCelebrateOficial,tblSărbători[RECTIFICAT],tblSărbători[ZIUA]),0),2),\"\"),\"\"),\"\")","v":""}]
[null,{"$f":"Zile+DATE(AnCal,2,1)-WEEKDAY(DATE(AnCal,2,1),(ÎnceputSăptămână=\"Luni\")+1)+22","v":"2018-02-18"},"2018-02-19","2018-02-20","2018-02-21","2018-02-22","2018-02-23","2018-02-24"]
[null,{"$f":"IFERROR(IF(AfișareSărbători,IF(INDEX(tblSărbători[],MATCH(DATE(AnCal,MONTH(B11),DAY(B11)),IF(AfișareCelebrateOficial,tblSărbători[RECTIFICAT],tblSărbători[ZIUA]),0),6),INDEX(tblSărbători[],MATCH(DATE(AnCal,MONTH(B11),DAY(B11)),IF(AfișareCelebrateOficial,tblSărbători[RECTIFICAT],tblSărbători[ZIUA]),0),2),\"\"),\"\"),\"\")","v":""},{"$f":"IFERROR(IF(AfișareSărbători,IF(INDEX(tblSărbători[],MATCH(DATE(AnCal,MONTH(C11),DAY(C11)),IF(AfișareCelebrateOficial,tblSărbători[RECTIFICAT],tblSărbători[ZIUA]),0),6),INDEX(tblSărbători[],MATCH(DATE(AnCal,MONTH(C11),DAY(C11)),IF(AfișareCelebrateOficial,tblSărbători[RECTIFICAT],tblSărbători[ZIUA]),0),2),\"\"),\"\"),\"\")","v":"Ziua Președinților"},{"$f":"IFERROR(IF(AfișareSărbători,IF(INDEX(tblSărbători[],MATCH(DATE(AnCal,MONTH(D11),DAY(D11)),IF(AfișareCelebrateOficial,tblSărbători[RECTIFICAT],tblSărbători[ZIUA]),0),6),INDEX(tblSărbători[],MATCH(DATE(AnCal,MONTH(D11),DAY(D11)),IF(AfișareCelebrateOficial,tblSărbători[RECTIFICAT],tblSărbători[ZIUA]),0),2),\"\"),\"\"),\"\")","v":""},{"$f":"IFERROR(IF(AfișareSărbători,IF(INDEX(tblSărbători[],MATCH(DATE(AnCal,MONTH(E11),DAY(E11)),IF(AfișareCelebrateOficial,tblSărbători[RECTIFICAT],tblSărbători[ZIUA]),0),6),INDEX(tblSărbători[],MATCH(DATE(AnCal,MONTH(E11),DAY(E11)),IF(AfișareCelebrateOficial,tblSărbători[RECTIFICAT],tblSărbători[ZIUA]),0),2),\"\"),\"\"),\"\")","v":""},{"$f":"IFERROR(IF(AfișareSărbători,IF(INDEX(tblSărbători[],MATCH(DATE(AnCal,MONTH(F11),DAY(F11)),IF(AfișareCelebrateOficial,tblSărbători[RECTIFICAT],tblSărbători[ZIUA]),0),6),INDEX(tblSărbători[],MATCH(DATE(AnCal,MONTH(F11),DAY(F11)),IF(AfișareCelebrateOficial,tblSărbători[RECTIFICAT],tblSărbători[ZIUA]),0),2),\"\"),\"\"),\"\")","v":""},{"$f":"IFERROR(IF(AfișareSărbători,IF(INDEX(tblSărbători[],MATCH(DATE(AnCal,MONTH(G11),DAY(G11)),IF(AfișareCelebrateOficial,tblSărbători[RECTIFICAT],tblSărbători[ZIUA]),0),6),INDEX(tblSărbători[],MATCH(DATE(AnCal,MONTH(G11),DAY(G11)),IF(AfișareCelebrateOficial,tblSărbători[RECTIFICAT],tblSărbători[ZIUA]),0),2),\"\"),\"\"),\"\")","v":""},{"$f":"IFERROR(IF(AfișareSărbători,IF(INDEX(tblSărbători[],MATCH(DATE(AnCal,MONTH(H11),DAY(H11)),IF(AfișareCelebrateOficial,tblSărbători[RECTIFICAT],tblSărbători[ZIUA]),0),6),INDEX(tblSărbători[],MATCH(DATE(AnCal,MONTH(H11),DAY(H11)),IF(AfișareCelebrateOficial,tblSărbători[RECTIFICAT],tblSărbători[ZIUA]),0),2),\"\"),\"\"),\"\")","v":""}]
[null,{"$f":"Zile+DATE(AnCal,2,1)-WEEKDAY(DATE(AnCal,2,1),(ÎnceputSăptămână=\"Luni\")+1)+29","v":"2018-02-25"},"2018-02-26","2018-02-27","2018-02-28","2018-03-01","2018-03-02","2018-03-03"]
[null,{"$f":"IFERROR(IF(AfișareSărbători,IF(INDEX(tblSărbători[],MATCH(DATE(AnCal,MONTH(B13),DAY(B13)),IF(AfișareCelebrateOficial,tblSărbători[RECTIFICAT],tblSărbători[ZIUA]),0),6),INDEX(tblSărbători[],MATCH(DATE(AnCal,MONTH(B13),DAY(B13)),IF(AfișareCelebrateOficial,tblSărbători[RECTIFICAT],tblSărbători[ZIUA]),0),2),\"\"),\"\"),\"\")","v":""},{"$f":"IFERROR(IF(AfișareSărbători,IF(INDEX(tblSărbători[],MATCH(DATE(AnCal,MONTH(C13),DAY(C13)),IF(AfișareCelebrateOficial,tblSărbători[RECTIFICAT],tblSărbători[ZIUA]),0),6),INDEX(tblSărbători[],MATCH(DATE(AnCal,MONTH(C13),DAY(C13)),IF(AfișareCelebrateOficial,tblSărbători[RECTIFICAT],tblSărbători[ZIUA]),0),2),\"\"),\"\"),\"\")","v":""},{"$f":"IFERROR(IF(AfișareSărbători,IF(INDEX(tblSărbători[],MATCH(DATE(AnCal,MONTH(D13),DAY(D13)),IF(AfișareCelebrateOficial,tblSărbători[RECTIFICAT],tblSărbători[ZIUA]),0),6),INDEX(tblSărbători[],MATCH(DATE(AnCal,MONTH(D13),DAY(D13)),IF(AfișareCelebrateOficial,tblSărbători[RECTIFICAT],tblSărbători[ZIUA]),0),2),\"\"),\"\"),\"\")","v":""},{"$f":"IFERROR(IF(AfișareSărbători,IF(INDEX(tblSărbători[],MATCH(DATE(AnCal,MONTH(E13),DAY(E13)),IF(AfișareCelebrateOficial,tblSărbători[RECTIFICAT],tblSărbători[ZIUA]),0),6),INDEX(tblSărbători[],MATCH(DATE(AnCal,MONTH(E13),DAY(E13)),IF(AfișareCelebrateOficial,tblSărbători[RECTIFICAT],tblSărbători[ZIUA]),0),2),\"\"),\"\"),\"\")","v":""},{"$f":"IFERROR(IF(AfișareSărbători,IF(INDEX(tblSărbători[],MATCH(DATE(AnCal,MONTH(F13),DAY(F13)),IF(AfișareCelebrateOficial,tblSărbători[RECTIFICAT],tblSărbători[ZIUA]),0),6),INDEX(tblSărbători[],MATCH(DATE(AnCal,MONTH(F13),DAY(F13)),IF(AfișareCelebrateOficial,tblSărbători[RECTIFICAT],tblSărbători[ZIUA]),0),2),\"\"),\"\"),\"\")","v":""},{"$f":"IFERROR(IF(AfișareSărbători,IF(INDEX(tblSărbători[],MATCH(DATE(AnCal,MONTH(G13),DAY(G13)),IF(AfișareCelebrateOficial,tblSărbători[RECTIFICAT],tblSărbători[ZIUA]),0),6),INDEX(tblSărbători[],MATCH(DATE(AnCal,MONTH(G13),DAY(G13)),IF(AfișareCelebrateOficial,tblSărbători[RECTIFICAT],tblSărbători[ZIUA]),0),2),\"\"),\"\"),\"\")","v":""},{"$f":"IFERROR(IF(AfișareSărbători,IF(INDEX(tblSărbători[],MATCH(DATE(AnCal,MONTH(H13),DAY(H13)),IF(AfișareCelebrateOficial,tblSărbători[RECTIFICAT],tblSărbători[ZIUA]),0),6),INDEX(tblSărbători[],MATCH(DATE(AnCal,MONTH(H13),DAY(H13)),IF(AfișareCelebrateOficial,tblSărbători[RECTIFICAT],tblSărbători[ZIUA]),0),2),\"\"),\"\"),\"\")","v":""}]
[null,{"$f":"Zile+DATE(AnCal,2,1)-WEEKDAY(DATE(AnCal,2,1),(ÎnceputSăptămână=\"Luni\")+1)+36","v":"2018-03-04"},"2018-03-05","NOTE"]
[null,{"$f":"IFERROR(IF(AfișareSărbători,IF(INDEX(tblSărbători[],MATCH(DATE(AnCal,MONTH(B15),DAY(B15)),IF(AfișareCelebrateOficial,tblSărbători[RECTIFICAT],tblSărbători[ZIUA]),0),6),INDEX(tblSărbători[],MATCH(DATE(AnCal,MONTH(B15),DAY(B15)),IF(AfișareCelebrateOficial,tblSărbători[RECTIFICAT],tblSărbători[ZIUA]),0),2),\"\"),\"\"),\"\")","v":""},{"$f":"IFERROR(IF(AfișareSărbători,IF(INDEX(tblSărbători[],MATCH(DATE(AnCal,MONTH(C15),DAY(C15)),IF(AfișareCelebrateOficial,tblSărbători[RECTIFICAT],tblSărbători[ZIUA]),0),6),INDEX(tblSărbători[],MATCH(DATE(AnCal,MONTH(C15),DAY(C15)),IF(AfișareCelebrateOficial,tblSărbători[RECTIFICAT],tblSărbători[ZIUA]),0),2),\"\"),\"\"),\"\")","v":""}]

{"sheet":"Martie","index":3,"n_rows":16,"n_cols":8,"rows_kept":16,"merged":[[1,1,1,3],[14,3,14,7],[15,3,15,7],[16,1,16,7]]}
[]
[null,{"$f":"B9","v":"2018-03-11"}]
[]
[null,{"$f":"ÎnceputSăptămână","v":"DUMINICĂ"},{"$f":"UPPER(TEXT(C5,\"dddd\"))","v":"LUNI"},"MARȚI","MIERCURI","JOI","VINERI","SÂMBĂTĂ"]
[null,{"$f":"Zile+DATE(AnCal,3,1)-WEEKDAY(DATE(AnCal,3,1),(ÎnceputSăptămână=\"Luni\")+1)+1","v":"2018-02-25"},"2018-02-26","2018-02-27","2018-02-28","2018-03-01","2018-03-02","2018-03-03"]
[null,{"$f":"IFERROR(IF(AfișareSărbători,IF(INDEX(tblSărbători[],MATCH(DATE(AnCal-(DAY(B5)>15)+(ROW()>6),MONTH(B5),DAY(B5)),IF(AfișareCelebrateOficial,tblSărbători[RECTIFICAT],tblSărbători[ZIUA]),0),6),INDEX(tblSărbători[],MATCH(DATE(AnCal-(DAY(B5)>15)+(ROW()>6),MONTH(B5),DAY(B5)),IF(AfișareCelebrateOficial,tblSărbători[RECTIFICAT],tblSărbători[ZIUA]),0),2),\"\"),\"\"),\"\")","v":""},{"$f":"IFERROR(IF(AfișareSărbători,IF(INDEX(tblSărbători[],MATCH(DATE(AnCal-(DAY(C5)>15)+(ROW()>6),MONTH(C5),DAY(C5)),IF(AfișareCelebrateOficial,tblSărbători[RECTIFICAT],tblSărbători[ZIUA]),0),6),INDEX(tblSărbători[],MATCH(DATE(AnCal-(DAY(C5)>15)+(ROW()>6),MONTH(C5),DAY(C5)),IF(AfișareCelebrateOficial,tblSărbători[RECTIFICAT],tblSărbători[ZIUA]),0),2),\"\"),\"\"),\"\")","v":""},{"$f":"IFERROR(IF(AfișareSărbători,IF(INDEX(tblSărbători[],MATCH(DATE(AnCal-(DAY(D5)>15)+(ROW()>6),MONTH(D5),DAY(D5)),IF(AfișareCelebrateOficial,tblSărbători[RECTIFICAT],tblSărbători[ZIUA]),0),6),INDEX(tblSărbători[],MATCH(DATE(AnCal-(DAY(D5)>15)+(ROW()>6),MONTH(D5),DAY(D5)),IF(AfișareCelebrateOficial,tblSărbători[RECTIFICAT],tblSărbători[ZIUA]),0),2),\"\"),\"\"),\"\")","v":""},{"$f":"IFERROR(IF(AfișareSărbători,IF(INDEX(tblSărbători[],MATCH(DATE(AnCal-(DAY(E5)>15)+(ROW()>6),MONTH(E5),DAY(E5)),IF(AfișareCelebrateOficial,tblSărbători[RECTIFICAT],tblSărbători[ZIUA]),0),6),INDEX(tblSărbători[],MATCH(DATE(AnCal-(DAY(E5)>15)+(ROW()>6),MONTH(E5),DAY(E5)),IF(AfișareCelebrateOficial,tblSărbători[RECTIFICAT],tblSărbători[ZIUA]),0),2),\"\"),\"\"),\"\")","v":""},{"$f":"IFERROR(IF(AfișareSărbători,IF(INDEX(tblSărbători[],MATCH(DATE(AnCal-(DAY(F5)>15)+(ROW()>6),MONTH(F5),DAY(F5)),IF(AfișareCelebrateOficial,tblSărbători[RECTIFICAT],tblSărbători[ZIUA]),0),6),INDEX(tblSărbători[],MATCH(DATE(AnCal-(DAY(F5)>15)+(ROW()>6),MONTH(F5),DAY(F5)),IF(AfișareCelebrateOficial,tblSărbători[RECTIFICAT],tblSărbători[ZIUA]),0),2),\"\"),\"\"),\"\")","v":""},{"$f":"IFERROR(IF(AfișareSărbători,IF(INDEX(tblSărbători[],MATCH(DATE(AnCal-(DAY(G5)>15)+(ROW()>6),MONTH(G5),DAY(G5)),IF(AfișareCelebrateOficial,tblSărbători[RECTIFICAT],tblSărbători[ZIUA]),0),6),INDEX(tblSărbători[],MATCH(DATE(AnCal-(DAY(G5)>15)+(ROW()>6),MONTH(G5),DAY(G5)),IF(AfișareCelebrateOficial,tblSărbători[RECTIFICAT],tblSărbători[ZIUA]),0),2),\"\"),\"\"),\"\")","v":""},{"$f":"IFERROR(IF(AfișareSărbători,IF(INDEX(tblSărbători[],MATCH(DATE(AnCal-(DAY(H5)>15)+(ROW()>6),MONTH(H5),DAY(H5)),IF(AfișareCelebrateOficial,tblSărbători[RECTIFICAT],tblSărbători[ZIUA]),0),6),INDEX(tblSărbători[],MATCH(DATE(AnCal-(DAY(H5)>15)+(ROW()>6),MONTH(H5),DAY(H5)),IF(AfișareCelebrateOficial,tblSărbători[RECTIFICAT],tblSărbători[ZIUA]),0),2),\"\"),\"\"),\"\")","v":""}]
[null,{"$f":"Zile+DATE(AnCal,3,1)-WEEKDAY(DATE(AnCal,3,1),(ÎnceputSăptămână=\"Luni\")+1)+8","v":"2018-03-04"},"2018-03-05","2018-03-06","2018-03-07","2018-03-08","2018-03-09","2018-03-10"]
[null,{"$f":"IFERROR(IF(AfișareSărbători,IF(INDEX(tblSărbători[],MATCH(DATE(AnCal,MONTH(B7),DAY(B7)),IF(AfișareCelebrateOficial,tblSărbători[RECTIFICAT],tblSărbători[ZIUA]),0),6),INDEX(tblSărbători[],MATCH(DATE(AnCal,MONTH(B7),DAY(B7)),IF(AfișareCelebrateOficial,tblSărbători[RECTIFICAT],tblSărbători[ZIUA]),0),2),\"\"),\"\"),\"\")","v":""},{"$f":"IFERROR(IF(AfișareSărbători,IF(INDEX(tblSărbători[],MATCH(DATE(AnCal,MONTH(C7),DAY(C7)),IF(AfișareCelebrateOficial,tblSărbători[RECTIFICAT],tblSărbători[ZIUA]),0),6),INDEX(tblSărbători[],MATCH(DATE(AnCal,MONTH(C7),DAY(C7)),IF(AfișareCelebrateOficial,tblSărbători[RECTIFICAT],tblSărbători[ZIUA]),0),2),\"\"),\"\"),\"\")","v":""},{"$f":"IFERROR(IF(AfișareSărbători,IF(INDEX(tblSărbători[],MATCH(DATE(AnCal,MONTH(D7),DAY(D7)),IF(AfișareCelebrateOficial,tblSărbători[RECTIFICAT],tblSărbători[ZIUA]),0),6),INDEX(tblSărbători[],MATCH(DATE(AnCal,MONTH(D7),DAY(D7)),IF(AfișareCelebrateOficial,tblSărbători[RECTIFICAT],tblSărbători[ZIUA]),0),2),\"\"),\"\"),\"\")","v":""},{"$f":"IFERROR(IF(AfișareSărbători,IF(INDEX(tblSărbători[],MATCH(DATE(AnCal,MONTH(E7),DAY(E7)),IF(AfișareCelebrateOficial,tblSărbători[RECTIFICAT],tblSărbători[ZIUA]),0),6),INDEX(tblSărbători[],MATCH(DATE(AnCal,MONTH(E7),DAY(E7)),IF(AfișareCelebrateOficial,tblSărbători[RECTIFICAT],tblSărbători[ZIUA]),0),2),\"\"),\"\"),\"\")","v":""},{"$f":"IFERROR(IF(AfișareSărbători,IF(INDEX(tblSărbători[],MATCH(DATE(AnCal,MONTH(F7),DAY(F7)),IF(AfișareCelebrateOficial,tblSărbători[RECTIFICAT],tblSărbători[ZIUA]),0),6),INDEX(tblSărbători[],MATCH(DATE(AnCal,MONTH(F7),DAY(F7)),IF(AfișareCelebrateOficial,tblSărbători[RECTIFICAT],tblSărbători[ZIUA]),0),2),\"\"),\"\"),\"\")","v":""},{"$f":"IFERROR(IF(AfișareSărbători,IF(INDEX(tblSărbători[],MATCH(DATE(AnCal,MONTH(G7),DAY(G7)),IF(AfișareCelebrateOficial,tblSărbători[RECTIFICAT],tblSărbători[ZIUA]),0),6),INDEX(tblSărbători[],MATCH(DATE(AnCal,MONTH(G7),DAY(G7)),IF(AfișareCelebrateOficial,tblSărbători[RECTIFICAT],tblSărbători[ZIUA]),0),2),\"\"),\"\"),\"\")","v":""},{"$f":"IFERROR(IF(AfișareSărbători,IF(INDEX(tblSărbători[],MATCH(DATE(AnCal,MONTH(H7),DAY(H7)),IF(AfișareCelebrateOficial,tblSărbători[RECTIFICAT],tblSărbători[ZIUA]),0),6),INDEX(tblSărbători[],MATCH(DATE(AnCal,MONTH(H7),DAY(H7)),IF(AfișareCelebrateOficial,tblSărbători[RECTIFICAT],tblSărbători[ZIUA]),0),2),\"\"),\"\"),\"\")","v":""}]
[null,{"$f":"Zile+DATE(AnCal,3,1)-WEEKDAY(DATE(AnCal,3,1),(ÎnceputSăptămână=\"Luni\")+1)+15","v":"2018-03-11"},"2018-03-12","2018-03-13","2018-03-14","2018-03-15","2018-03-16","2018-03-17"]
[null,{"$f":"IFERROR(IF(AfișareSărbători,IF(INDEX(tblSărbători[],MATCH(DATE(AnCal,MONTH(B9),DAY(B9)),IF(AfișareCelebrateOficial,tblSărbători[RECTIFICAT],tblSărbători[ZIUA]),0),6),INDEX(tblSărbători[],MATCH(DATE(AnCal,MONTH(B9),DAY(B9)),IF(AfișareCelebrateOficial,tblSărbători[RECTIFICAT],tblSărbători[ZIUA]),0),2),\"\"),\"\"),\"\")","v":""},{"$f":"IFERROR(IF(AfișareSărbători,IF(INDEX(tblSărbători[],MATCH(DATE(AnCal,MONTH(C9),DAY(C9)),IF(AfișareCelebrateOficial,tblSărbători[RECTIFICAT],tblSărbători[ZIUA]),0),6),INDEX(tblSărbători[],MATCH(DATE(AnCal,MONTH(C9),DAY(C9)),IF(AfișareCelebrateOficial,tblSărbători[RECTIFICAT],tblSărbători[ZIUA]),0),2),\"\"),\"\"),\"\")","v":""},{"$f":"IFERROR(IF(AfișareSărbători,IF(INDEX(tblSărbători[],MATCH(DATE(AnCal,MONTH(D9),DAY(D9)),IF(AfișareCelebrateOficial,tblSărbători[RECTIFICAT],tblSărbători[ZIUA]),0),6),INDEX(tblSărbători[],MATCH(DATE(AnCal,MONTH(D9),DAY(D9)),IF(AfișareCelebrateOficial,tblSărbători[RECTIFICAT],tblSărbători[ZIUA]),0),2),\"\"),\"\"),\"\")","v":""},{"$f":"IFERROR(IF(AfișareSărbători,IF(INDEX(tblSărbători[],MATCH(DATE(AnCal,MONTH(E9),DAY(E9)),IF(AfișareCelebrateOficial,tblSărbători[RECTIFICAT],tblSărbători[ZIUA]),0),6),INDEX(tblSărbători[],MATCH(DATE(AnCal,MONTH(E9),DAY(E9)),IF(AfișareCelebrateOficial,tblSărbători[RECTIFICAT],tblSărbători[ZIUA]),0),2),\"\"),\"\"),\"\")","v":""},{"$f":"IFERROR(IF(AfișareSărbători,IF(INDEX(tblSărbători[],MATCH(DATE(AnCal,MONTH(F9),DAY(F9)),IF(AfișareCelebrateOficial,tblSărbători[RECTIFICAT],tblSărbători[ZIUA]),0),6),INDEX(tblSărbători[],MATCH(DATE(AnCal,MONTH(F9),DAY(F9)),IF(AfișareCelebrateOficial,tblSărbători[RECTIFICAT],tblSărbători[ZIUA]),0),2),\"\"),\"\"),\"\")","v":""},{"$f":"IFERROR(IF(AfișareSărbători,IF(INDEX(tblSărbători[],MATCH(DATE(AnCal,MONTH(G9),DAY(G9)),IF(AfișareCelebrateOficial,tblSărbători[RECTIFICAT],tblSărbători[ZIUA]),0),6),INDEX(tblSărbători[],MATCH(DATE(AnCal,MONTH(G9),DAY(G9)),IF(AfișareCelebrateOficial,tblSărbători[RECTIFICAT],tblSărbători[ZIUA]),0),2),\"\"),\"\"),\"\")","v":""},{"$f":"IFERROR(IF(AfișareSărbători,IF(INDEX(tblSărbători[],MATCH(DATE(AnCal,MONTH(H9),DAY(H9)),IF(AfișareCelebrateOficial,tblSărbători[RECTIFICAT],tblSărbători[ZIUA]),0),6),INDEX(tblSărbători[],MATCH(DATE(AnCal,MONTH(H9),DAY(H9)),IF(AfișareCelebrateOficial,tblSărbători[RECTIFICAT],tblSărbători[ZIUA]),0),2),\"\"),\"\"),\"\")","v":""}]
[null,{"$f":"Zile+DATE(AnCal,3,1)-WEEKDAY(DATE(AnCal,3,1),(ÎnceputSăptămână=\"Luni\")+1)+22","v":"2018-03-18"},"2018-03-19","2018-03-20","2018-03-21","2018-03-22","2018-03-23","2018-03-24"]
[null,{"$f":"IFERROR(IF(AfișareSărbători,IF(INDEX(tblSărbători[],MATCH(DATE(AnCal,MONTH(B11),DAY(B11)),IF(AfișareCelebrateOficial,tblSărbători[RECTIFICAT],tblSărbători[ZIUA]),0),6),INDEX(tblSărbători[],MATCH(DATE(AnCal,MONTH(B11),DAY(B11)),IF(AfișareCelebrateOficial,tblSărbători[RECTIFICAT],tblSărbători[ZIUA]),0),2),\"\"),\"\"),\"\")","v":""},{"$f":"IFERROR(IF(AfișareSărbători,IF(INDEX(tblSărbători[],MATCH(DATE(AnCal,MONTH(C11),DAY(C11)),IF(AfișareCelebrateOficial,tblSărbători[RECTIFICAT],tblSărbători[ZIUA]),0),6),INDEX(tblSărbători[],MATCH(DATE(AnCal,MONTH(C11),DAY(C11)),IF(AfișareCelebrateOficial,tblSărbători[RECTIFICAT],tblSărbători[ZIUA]),0),2),\"\"),\"\"),\"\")","v":""},{"$f":"IFERROR(IF(AfișareSărbători,IF(INDEX(tblSărbători[],MATCH(DATE(AnCal,MONTH(D11),DAY(D11)),IF(AfișareCelebrateOficial,tblSărbători[RECTIFICAT],tblSărbători[ZIUA]),0),6),INDEX(tblSărbători[],MATCH(DATE(AnCal,MONTH(D11),DAY(D11)),IF(AfișareCelebrateOficial,tblSărbători[RECTIFICAT],tblSărbători[ZIUA]),0),2),\"\"),\"\"),\"\")","v":""},{"$f":"IFERROR(IF(AfișareSărbători,IF(INDEX(tblSărbători[],MATCH(DATE(AnCal,MONTH(E11),DAY(E11)),IF(AfișareCelebrateOficial,tblSărbători[RECTIFICAT],tblSărbători[ZIUA]),0),6),INDEX(tblSărbători[],MATCH(DATE(AnCal,MONTH(E11),DAY(E11)),IF(AfișareCelebrateOficial,tblSărbători[RECTIFICAT],tblSărbători[ZIUA]),0),2),\"\"),\"\"),\"\")","v":""},{"$f":"IFERROR(IF(AfișareSărbători,IF(INDEX(tblSărbători[],MATCH(DATE(AnCal,MONTH(F11),DAY(F11)),IF(AfișareCelebrateOficial,tblSărbători[RECTIFICAT],tblSărbători[ZIUA]),0),6),INDEX(tblSărbători[],MATCH(DATE(AnCal,MONTH(F11),DAY(F11)),IF(AfișareCelebrateOficial,tblSărbători[RECTIFICAT],tblSărbători[ZIUA]),0),2),\"\"),\"\"),\"\")","v":""},{"$f":"IFERROR(IF(AfișareSărbători,IF(INDEX(tblSărbători[],MATCH(DATE(AnCal,MONTH(G11),DAY(G11)),IF(AfișareCelebrateOficial,tblSărbători[RECTIFICAT],tblSărbători[ZIUA]),0),6),INDEX(tblSărbători[],MATCH(DATE(AnCal,MONTH(G11),DAY(G11)),IF(AfișareCelebrateOficial,tblSărbători[RECTIFICAT],tblSărbători[ZIUA]),0),2),\"\"),\"\"),\"\")","v":""},{"$f":"IFERROR(IF(AfișareSărbători,IF(INDEX(tblSărbători[],MATCH(DATE(AnCal,MONTH(H11),DAY(H11)),IF(AfișareCelebrateOficial,tblSărbători[RECTIFICAT],tblSărbători[ZIUA]),0),6),INDEX(tblSărbători[],MATCH(DATE(AnCal,MONTH(H11),DAY(H11)),IF(AfișareCelebrateOficial,tblSărbători[RECTIFICAT],tblSărbători[ZIUA]),0),2),\"\"),\"\"),\"\")","v":""}]
[null,{"$f":"Zile+DATE(AnCal,3,1)-WEEKDAY(DATE(AnCal,3,1),(ÎnceputSăptămână=\"Luni\")+1)+29","v":"2018-03-25"},"2018-03-26","2018-03-27","2018-03-28","2018-03-29","2018-03-30","2018-03-31"]
[null,{"$f":"IFERROR(IF(AfișareSărbători,IF(INDEX(tblSărbători[],MATCH(DATE(AnCal,MONTH(B13),DAY(B13)),IF(AfișareCelebrateOficial,tblSărbători[RECTIFICAT],tblSărbători[ZIUA]),0),6),INDEX(tblSărbători[],MATCH(DATE(AnCal,MONTH(B13),DAY(B13)),IF(AfișareCelebrateOficial,tblSărbători[RECTIFICAT],tblSărbători[ZIUA]),0),2),\"\"),\"\"),\"\")","v":""},{"$f":"IFERROR(IF(AfișareSărbători,IF(INDEX(tblSărbători[],MATCH(DATE(AnCal,MONTH(C13),DAY(C13)),IF(AfișareCelebrateOficial,tblSărbători[RECTIFICAT],tblSărbători[ZIUA]),0),6),INDEX(tblSărbători[],MATCH(DATE(AnCal,MONTH(C13),DAY(C13)),IF(AfișareCelebrateOficial,tblSărbători[RECTIFICAT],tblSărbători[ZIUA]),0),2),\"\"),\"\"),\"\")","v":""},{"$f":"IFERROR(IF(AfișareSărbători,IF(INDEX(tblSărbători[],MATCH(DATE(AnCal,MONTH(D13),DAY(D13)),IF(AfișareCelebrateOficial,tblSărbători[RECTIFICAT],tblSărbători[ZIUA]),0),6),INDEX(tblSărbători[],MATCH(DATE(AnCal,MONTH(D13),DAY(D13)),IF(AfișareCelebrateOficial,tblSărbători[RECTIFICAT],tblSărbători[ZIUA]),0),2),\"\"),\"\"),\"\")","v":""},{"$f":"IFERROR(IF(AfișareSărbători,IF(INDEX(tblSărbători[],MATCH(DATE(AnCal,MONTH(E13),DAY(E13)),IF(AfișareCelebrateOficial,tblSărbători[RECTIFICAT],tblSărbători[ZIUA]),0),6),INDEX(tblSărbători[],MATCH(DATE(AnCal,MONTH(E13),DAY(E13)),IF(AfișareCelebrateOficial,tblSărbători[RECTIFICAT],tblSărbători[ZIUA]),0),2),\"\"),\"\"),\"\")","v":""},{"$f":"IFERROR(IF(AfișareSărbători,IF(INDEX(tblSărbători[],MATCH(DATE(AnCal,MONTH(F13),DAY(F13)),IF(AfișareCelebrateOficial,tblSărbători[RECTIFICAT],tblSărbători[ZIUA]),0),6),INDEX(tblSărbători[],MATCH(DATE(AnCal,MONTH(F13),DAY(F13)),IF(AfișareCelebrateOficial,tblSărbători[RECTIFICAT],tblSărbători[ZIUA]),0),2),\"\"),\"\"),\"\")","v":""},{"$f":"IFERROR(IF(AfișareSărbători,IF(INDEX(tblSărbători[],MATCH(DATE(AnCal,MONTH(G13),DAY(G13)),IF(AfișareCelebrateOficial,tblSărbători[RECTIFICAT],tblSărbători[ZIUA]),0),6),INDEX(tblSărbători[],MATCH(DATE(AnCal,MONTH(G13),DAY(G13)),IF(AfișareCelebrateOficial,tblSărbători[RECTIFICAT],tblSărbători[ZIUA]),0),2),\"\"),\"\"),\"\")","v":""},{"$f":"IFERROR(IF(AfișareSărbători,IF(INDEX(tblSărbători[],MATCH(DATE(AnCal,MONTH(H13),DAY(H13)),IF(AfișareCelebrateOficial,tblSărbători[RECTIFICAT],tblSărbători[ZIUA]),0),6),INDEX(tblSărbători[],MATCH(DATE(AnCal,MONTH(H13),DAY(H13)),IF(AfișareCelebrateOficial,tblSărbători[RECTIFICAT],tblSărbători[ZIUA]),0),2),\"\"),\"\"),\"\")","v":""}]
[null,{"$f":"Zile+DATE(AnCal,3,1)-WEEKDAY(DATE(AnCal,3,1),(ÎnceputSăptămână=\"Luni\")+1)+36","v":"2018-04-01"},"2018-04-02","NOTE"]
[null,{"$f":"IFERROR(IF(AfișareSărbători,IF(INDEX(tblSărbători[],MATCH(DATE(AnCal,MONTH(B15),DAY(B15)),IF(AfișareCelebrateOficial,tblSărbători[RECTIFICAT],tblSărbători[ZIUA]),0),6),INDEX(tblSărbători[],MATCH(DATE(AnCal,MONTH(B15),DAY(B15)),IF(AfișareCelebrateOficial,tblSărbători[RECTIFICAT],tblSărbători[ZIUA]),0),2),\"\"),\"\"),\"\")","v":""},{"$f":"IFERROR(IF(AfișareSărbători,IF(INDEX(tblSărbători[],MATCH(DATE(AnCal,MONTH(C15),DAY(C15)),IF(AfișareCelebrateOficial,tblSărbători[RECTIFICAT],tblSărbători[ZIUA]),0),6),INDEX(tblSărbători[],MATCH(DATE(AnCal,MONTH(C15),DAY(C15)),IF(AfișareCelebrateOficial,tblSărbători[RECTIFICAT],tblSărbători[ZIUA]),0),2),\"\"),\"\"),\"\")","v":""}]

{"sheet":"Aprilie","index":4,"n_rows":16,"n_cols":8,"rows_kept":16,"merged":[[1,1,1,3],[14,3,14,7],[15,3,15,7],[16,1,16,7]]}
[]
[null,{"$f":"B9","v":"2018-04-15"}]
[]
[null,{"$f":"ÎnceputSăptămână","v":"DUMINICĂ"},{"$f":"UPPER(TEXT(C5,\"dddd\"))","v":"LUNI"},"MARȚI","MIERCURI","JOI","VINERI","SÂMBĂTĂ"]
[null,{"$f":"Zile+DATE(AnCal,4,1)-WEEKDAY(DATE(AnCal,4,1),(ÎnceputSăptămână=\"Luni\")+1)+1","v":"2018-04-01"},"2018-04-02","2018-04-03","2018-04-04","2018-04-05","2018-04-06","2018-04-07"]
[null,{"$f":"IFERROR(IF(AfișareSărbători,IF(INDEX(tblSărbători[],MATCH(DATE(AnCal-(DAY(B5)>15)+(ROW()>6),MONTH(B5),DAY(B5)),IF(AfișareCelebrateOficial,tblSărbători[RECTIFICAT],tblSărbători[ZIUA]),0),6),INDEX(tblSărbători[],MATCH(DATE(AnCal-(DAY(B5)>15)+(ROW()>6),MONTH(B5),DAY(B5)),IF(AfișareCelebrateOficial,tblSărbători[RECTIFICAT],tblSărbători[ZIUA]),0),2),\"\"),\"\"),\"\")","v":""},{"$f":"IFERROR(IF(AfișareSărbători,IF(INDEX(tblSărbători[],MATCH(DATE(AnCal-(DAY(C5)>15)+(ROW()>6),MONTH(C5),DAY(C5)),IF(AfișareCelebrateOficial,tblSărbători[RECTIFICAT],tblSărbători[ZIUA]),0),6),INDEX(tblSărbători[],MATCH(DATE(AnCal-(DAY(C5)>15)+(ROW()>6),MONTH(C5),DAY(C5)),IF(AfișareCelebrateOficial,tblSărbători[RECTIFICAT],tblSărbători[ZIUA]),0),2),\"\"),\"\"),\"\")","v":""},{"$f":"IFERROR(IF(AfișareSărbători,IF(INDEX(tblSărbători[],MATCH(DATE(AnCal-(DAY(D5)>15)+(ROW()>6),MONTH(D5),DAY(D5)),IF(AfișareCelebrateOficial,tblSărbători[RECTIFICAT],tblSărbători[ZIUA]),0),6),INDEX(tblSărbători[],MATCH(DATE(AnCal-(DAY(D5)>15)+(ROW()>6),MONTH(D5),DAY(D5)),IF(AfișareCelebrateOficial,tblSărbători[RECTIFICAT],tblSărbători[ZIUA]),0),2),\"\"),\"\"),\"\")","v":""},{"$f":"IFERROR(IF(AfișareSărbători,IF(INDEX(tblSărbători[],MATCH(DATE(AnCal-(DAY(E5)>15)+(ROW()>6),MONTH(E5),DAY(E5)),IF(AfișareCelebrateOficial,tblSărbători[RECTIFICAT],tblSărbători[ZIUA]),0),6),INDEX(tblSărbători[],MATCH(DATE(AnCal-(DAY(E5)>15)+(ROW()>6),MONTH(E5),DAY(E5)),IF(AfișareCelebrateOficial,tblSărbători[RECTIFICAT],tblSărbători[ZIUA]),0),2),\"\"),\"\"),\"\")","v":""},{"$f":"IFERROR(IF(AfișareSărbători,IF(INDEX(tblSărbători[],MATCH(DATE(AnCal-(DAY(F5)>15)+(ROW()>6),MONTH(F5),DAY(F5)),IF(AfișareCelebrateOficial,tblSărbători[RECTIFICAT],tblSărbători[ZIUA]),0),6),INDEX(tblSărbători[],MATCH(DATE(AnCal-(DAY(F5)>15)+(ROW()>6),MONTH(F5),DAY(F5)),IF(AfișareCelebrateOficial,tblSărbători[RECTIFICAT],tblSărbători[ZIUA]),0),2),\"\"),\"\"),\"\")","v":""},{"$f":"IFERROR(IF(AfișareSărbători,IF(INDEX(tblSărbători[],MATCH(DATE(AnCal-(DAY(G5)>15)+(ROW()>6),MONTH(G5),DAY(G5)),IF(AfișareCelebrateOficial,tblSărbători[RECTIFICAT],tblSărbători[ZIUA]),0),6),INDEX(tblSărbători[],MATCH(DATE(AnCal-(DAY(G5)>15)+(ROW()>6),MONTH(G5),DAY(G5)),IF(AfișareCelebrateOficial,tblSărbători[RECTIFICAT],tblSărbători[ZIUA]),0),2),\"\"),\"\"),\"\")","v":""},{"$f":"IFERROR(IF(AfișareSărbători,IF(INDEX(tblSărbători[],MATCH(DATE(AnCal-(DAY(H5)>15)+(ROW()>6),MONTH(H5),DAY(H5)),IF(AfișareCelebrateOficial,tblSărbători[RECTIFICAT],tblSărbători[ZIUA]),0),6),INDEX(tblSărbători[],MATCH(DATE(AnCal-(DAY(H5)>15)+(ROW()>6),MONTH(H5),DAY(H5)),IF(AfișareCelebrateOficial,tblSărbători[RECTIFICAT],tblSărbători[ZIUA]),0),2),\"\"),\"\"),\"\")","v":""}]
[null,{"$f":"Zile+DATE(AnCal,4,1)-WEEKDAY(DATE(AnCal,4,1),(ÎnceputSăptămână=\"Luni\")+1)+8","v":"2018-04-08"},"2018-04-09","2018-04-10","2018-04-11","2018-04-12","2018-04-13","2018-04-14"]
[null,{"$f":"IFERROR(IF(AfișareSărbători,IF(INDEX(tblSărbători[],MATCH(DATE(AnCal,MONTH(B7),DAY(B7)),IF(AfișareCelebrateOficial,tblSărbători[RECTIFICAT],tblSărbători[ZIUA]),0),6),INDEX(tblSărbători[],MATCH(DATE(AnCal,MONTH(B7),DAY(B7)),IF(AfișareCelebrateOficial,tblSărbători[RECTIFICAT],tblSărbători[ZIUA]),0),2),\"\"),\"\"),\"\")","v":""},{"$f":"IFERROR(IF(AfișareSărbători,IF(INDEX(tblSărbători[],MATCH(DATE(AnCal,MONTH(C7),DAY(C7)),IF(AfișareCelebrateOficial,tblSărbători[RECTIFICAT],tblSărbători[ZIUA]),0),6),INDEX(tblSărbători[],MATCH(DATE(AnCal,MONTH(C7),DAY(C7)),IF(AfișareCelebrateOficial,tblSărbători[RECTIFICAT],tblSărbători[ZIUA]),0),2),\"\"),\"\"),\"\")","v":""},{"$f":"IFERROR(IF(AfișareSărbători,IF(INDEX(tblSărbători[],MATCH(DATE(AnCal,MONTH(D7),DAY(D7)),IF(AfișareCelebrateOficial,tblSărbători[RECTIFICAT],tblSărbători[ZIUA]),0),6),INDEX(tblSărbători[],MATCH(DATE(AnCal,MONTH(D7),DAY(D7)),IF(AfișareCelebrateOficial,tblSărbători[RECTIFICAT],tblSărbători[ZIUA]),0),2),\"\"),\"\"),\"\")","v":""},{"$f":"IFERROR(IF(AfișareSărbători,IF(INDEX(tblSărbători[],MATCH(DATE(AnCal,MONTH(E7),DAY(E7)),IF(AfișareCelebrateOficial,tblSărbători[RECTIFICAT],tblSărbători[ZIUA]),0),6),INDEX(tblSărbători[],MATCH(DATE(AnCal,MONTH(E7),DAY(E7)),IF(AfișareCelebrateOficial,tblSărbători[RECTIFICAT],tblSărbători[ZIUA]),0),2),\"\"),\"\"),\"\")","v":""},{"$f":"IFERROR(IF(AfișareSărbători,IF(INDEX(tblSărbători[],MATCH(DATE(AnCal,MONTH(F7),DAY(F7)),IF(AfișareCelebrateOficial,tblSărbători[RECTIFICAT],tblSărbători[ZIUA]),0),6),INDEX(tblSărbători[],MATCH(DATE(AnCal,MONTH(F7),DAY(F7)),IF(AfișareCelebrateOficial,tblSărbători[RECTIFICAT],tblSărbători[ZIUA]),0),2),\"\"),\"\"),\"\")","v":""},{"$f":"IFERROR(IF(AfișareSărbători,IF(INDEX(tblSărbători[],MATCH(DATE(AnCal,MONTH(G7),DAY(G7)),IF(AfișareCelebrateOficial,tblSărbători[RECTIFICAT],tblSărbători[ZIUA]),0),6),INDEX(tblSărbători[],MATCH(DATE(AnCal,MONTH(G7),DAY(G7)),IF(AfișareCelebrateOficial,tblSărbători[RECTIFICAT],tblSărbători[ZIUA]),0),2),\"\"),\"\"),\"\")","v":""},{"$f":"IFERROR(IF(AfișareSărbători,IF(INDEX(tblSărbători[],MATCH(DATE(AnCal,MONTH(H7),DAY(H7)),IF(AfișareCelebrateOficial,tblSărbători[RECTIFICAT],tblSărbători[ZIUA]),0),6),INDEX(tblSărbători[],MATCH(DATE(AnCal,MONTH(H7),DAY(H7)),IF(AfișareCelebrateOficial,tblSărbători[RECTIFICAT],tblSărbători[ZIUA]),0),2),\"\"),\"\"),\"\")","v":""}]
[null,{"$f":"Zile+DATE(AnCal,4,1)-WEEKDAY(DATE(AnCal,4,1),(ÎnceputSăptămână=\"Luni\")+1)+15","v":"2018-04-15"},"2018-04-16","2018-04-17","2018-04-18","2018-04-19","2018-04-20","2018-04-21"]
[null,{"$f":"IFERROR(IF(AfișareSărbători,IF(INDEX(tblSărbători[],MATCH(DATE(AnCal,MONTH(B9),DAY(B9)),IF(AfișareCelebrateOficial,tblSărbători[RECTIFICAT],tblSărbători[ZIUA]),0),6),INDEX(tblSărbători[],MATCH(DATE(AnCal,MONTH(B9),DAY(B9)),IF(AfișareCelebrateOficial,tblSărbători[RECTIFICAT],tblSărbători[ZIUA]),0),2),\"\"),\"\"),\"\")","v":""},{"$f":"IFERROR(IF(AfișareSărbători,IF(INDEX(tblSărbători[],MATCH(DATE(AnCal,MONTH(C9),DAY(C9)),IF(AfișareCelebrateOficial,tblSărbători[RECTIFICAT],tblSărbători[ZIUA]),0),6),INDEX(tblSărbători[],MATCH(DATE(AnCal,MONTH(C9),DAY(C9)),IF(AfișareCelebrateOficial,tblSărbători[RECTIFICAT],tblSărbători[ZIUA]),0),2),\"\"),\"\"),\"\")","v":""},{"$f":"IFERROR(IF(AfișareSărbători,IF(INDEX(tblSărbători[],MATCH(DATE(AnCal,MONTH(D9),DAY(D9)),IF(AfișareCelebrateOficial,tblSărbători[RECTIFICAT],tblSărbători[ZIUA]),0),6),INDEX(tblSărbători[],MATCH(DATE(AnCal,MONTH(D9),DAY(D9)),IF(AfișareCelebrateOficial,tblSărbători[RECTIFICAT],tblSărbători[ZIUA]),0),2),\"\"),\"\"),\"\")","v":""},{"$f":"IFERROR(IF(AfișareSărbători,IF(INDEX(tblSărbători[],MATCH(DATE(AnCal,MONTH(E9),DAY(E9)),IF(AfișareCelebrateOficial,tblSărbători[RECTIFICAT],tblSărbători[ZIUA]),0),6),INDEX(tblSărbători[],MATCH(DATE(AnCal,MONTH(E9),DAY(E9)),IF(AfișareCelebrateOficial,tblSărbători[RECTIFICAT],tblSărbători[ZIUA]),0),2),\"\"),\"\"),\"\")","v":""},{"$f":"IFERROR(IF(AfișareSărbători,IF(INDEX(tblSărbători[],MATCH(DATE(AnCal,MONTH(F9),DAY(F9)),IF(AfișareCelebrateOficial,tblSărbători[RECTIFICAT],tblSărbători[ZIUA]),0),6),INDEX(tblSărbători[],MATCH(DATE(AnCal,MONTH(F9),DAY(F9)),IF(AfișareCelebrateOficial,tblSărbători[RECTIFICAT],tblSărbători[ZIUA]),0),2),\"\"),\"\"),\"\")","v":""},{"$f":"IFERROR(IF(AfișareSărbători,IF(INDEX(tblSărbători[],MATCH(DATE(AnCal,MONTH(G9),DAY(G9)),IF(AfișareCelebrateOficial,tblSărbători[RECTIFICAT],tblSărbători[ZIUA]),0),6),INDEX(tblSărbători[],MATCH(DATE(AnCal,MONTH(G9),DAY(G9)),IF(AfișareCelebrateOficial,tblSărbători[RECTIFICAT],tblSărbători[ZIUA]),0),2),\"\"),\"\"),\"\")","v":""},{"$f":"IFERROR(IF(AfișareSărbători,IF(INDEX(tblSărbători[],MATCH(DATE(AnCal,MONTH(H9),DAY(H9)),IF(AfișareCelebrateOficial,tblSărbători[RECTIFICAT],tblSărbători[ZIUA]),0),6),INDEX(tblSărbători[],MATCH(DATE(AnCal,MONTH(H9),DAY(H9)),IF(AfișareCelebrateOficial,tblSărbători[RECTIFICAT],tblSărbători[ZIUA]),0),2),\"\"),\"\"),\"\")","v":""}]
[null,{"$f":"Zile+DATE(AnCal,4,1)-WEEKDAY(DATE(AnCal,4,1),(ÎnceputSăptămână=\"Luni\")+1)+22","v":"2018-04-22"},"2018-04-23","2018-04-24","2018-04-25","2018-04-26","2018-04-27","2018-04-28"]
[null,{"$f":"IFERROR(IF(AfișareSărbători,IF(INDEX(tblSărbători[],MATCH(DATE(AnCal,MONTH(B11),DAY(B11)),IF(AfișareCelebrateOficial,tblSărbători[RECTIFICAT],tblSărbători[ZIUA]),0),6),INDEX(tblSărbători[],MATCH(DATE(AnCal,MONTH(B11),DAY(B11)),IF(AfișareCelebrateOficial,tblSărbători[RECTIFICAT],tblSărbători[ZIUA]),0),2),\"\"),\"\"),\"\")","v":""},{"$f":"IFERROR(IF(AfișareSărbători,IF(INDEX(tblSărbători[],MATCH(DATE(AnCal,MONTH(C11),DAY(C11)),IF(AfișareCelebrateOficial,tblSărbători[RECTIFICAT],tblSărbători[ZIUA]),0),6),INDEX(tblSărbători[],MATCH(DATE(AnCal,MONTH(C11),DAY(C11)),IF(AfișareCelebrateOficial,tblSărbători[RECTIFICAT],tblSărbători[ZIUA]),0),2),\"\"),\"\"),\"\")","v":""},{"$f":"IFERROR(IF(AfișareSărbători,IF(INDEX(tblSărbători[],MATCH(DATE(AnCal,MONTH(D11),DAY(D11)),IF(AfișareCelebrateOficial,tblSărbători[RECTIFICAT],tblSărbători[ZIUA]),0),6),INDEX(tblSărbători[],MATCH(DATE(AnCal,MONTH(D11),DAY(D11)),IF(AfișareCelebrateOficial,tblSărbători[RECTIFICAT],tblSărbători[ZIUA]),0),2),\"\"),\"\"),\"\")","v":""},{"$f":"IFERROR(IF(AfișareSărbători,IF(INDEX(tblSărbători[],MATCH(DATE(AnCal,MONTH(E11),DAY(E11)),IF(AfișareCelebrateOficial,tblSărbători[RECTIFICAT],tblSărbători[ZIUA]),0),6),INDEX(tblSărbători[],MATCH(DATE(AnCal,MONTH(E11),DAY(E11)),IF(AfișareCelebrateOficial,tblSărbători[RECTIFICAT],tblSărbători[ZIUA]),0),2),\"\"),\"\"),\"\")","v":""},{"$f":"IFERROR(IF(AfișareSărbători,IF(INDEX(tblSărbători[],MATCH(DATE(AnCal,MONTH(F11),DAY(F11)),IF(AfișareCelebrateOficial,tblSărbători[RECTIFICAT],tblSărbători[ZIUA]),0),6),INDEX(tblSărbători[],MATCH(DATE(AnCal,MONTH(F11),DAY(F11)),IF(AfișareCelebrateOficial,tblSărbători[RECTIFICAT],tblSărbători[ZIUA]),0),2),\"\"),\"\"),\"\")","v":""},{"$f":"IFERROR(IF(AfișareSărbători,IF(INDEX(tblSărbători[],MATCH(DATE(AnCal,MONTH(G11),DAY(G11)),IF(AfișareCelebrateOficial,tblSărbători[RECTIFICAT],tblSărbători[ZIUA]),0),6),INDEX(tblSărbători[],MATCH(DATE(AnCal,MONTH(G11),DAY(G11)),IF(AfișareCelebrateOficial,tblSărbători[RECTIFICAT],tblSărbători[ZIUA]),0),2),\"\"),\"\"),\"\")","v":""},{"$f":"IFERROR(IF(AfișareSărbători,IF(INDEX(tblSărbători[],MATCH(DATE(AnCal,MONTH(H11),DAY(H11)),IF(AfișareCelebrateOficial,tblSărbători[RECTIFICAT],tblSărbători[ZIUA]),0),6),INDEX(tblSărbători[],MATCH(DATE(AnCal,MONTH(H11),DAY(H11)),IF(AfișareCelebrateOficial,tblSărbători[RECTIFICAT],tblSărbători[ZIUA]),0),2),\"\"),\"\"),\"\")","v":""}]
[null,{"$f":"Zile+DATE(AnCal,4,1)-WEEKDAY(DATE(AnCal,4,1),(ÎnceputSăptămână=\"Luni\")+1)+29","v":"2018-04-29"},"2018-04-30","2018-05-01","2018-05-02","2018-05-03","2018-05-04","2018-05-05"]
[null,{"$f":"IFERROR(IF(AfișareSărbători,IF(INDEX(tblSărbători[],MATCH(DATE(AnCal,MONTH(B13),DAY(B13)),IF(AfișareCelebrateOficial,tblSărbători[RECTIFICAT],tblSărbători[ZIUA]),0),6),INDEX(tblSărbători[],MATCH(DATE(AnCal,MONTH(B13),DAY(B13)),IF(AfișareCelebrateOficial,tblSărbători[RECTIFICAT],tblSărbători[ZIUA]),0),2),\"\"),\"\"),\"\")","v":""},{"$f":"IFERROR(IF(AfișareSărbători,IF(INDEX(tblSărbători[],MATCH(DATE(AnCal,MONTH(C13),DAY(C13)),IF(AfișareCelebrateOficial,tblSărbători[RECTIFICAT],tblSărbători[ZIUA]),0),6),INDEX(tblSărbători[],MATCH(DATE(AnCal,MONTH(C13),DAY(C13)),IF(AfișareCelebrateOficial,tblSărbători[RECTIFICAT],tblSărbători[ZIUA]),0),2),\"\"),\"\"),\"\")","v":""},{"$f":"IFERROR(IF(AfișareSărbători,IF(INDEX(tblSărbători[],MATCH(DATE(AnCal,MONTH(D13),DAY(D13)),IF(AfișareCelebrateOficial,tblSărbători[RECTIFICAT],tblSărbători[ZIUA]),0),6),INDEX(tblSărbători[],MATCH(DATE(AnCal,MONTH(D13),DAY(D13)),IF(AfișareCelebrateOficial,tblSărbători[RECTIFICAT],tblSărbători[ZIUA]),0),2),\"\"),\"\"),\"\")","v":""},{"$f":"IFERROR(IF(AfișareSărbători,IF(INDEX(tblSărbători[],MATCH(DATE(AnCal,MONTH(E13),DAY(E13)),IF(AfișareCelebrateOficial,tblSărbători[RECTIFICAT],tblSărbători[ZIUA]),0),6),INDEX(tblSărbători[],MATCH(DATE(AnCal,MONTH(E13),DAY(E13)),IF(AfișareCelebrateOficial,tblSărbători[RECTIFICAT],tblSărbători[ZIUA]),0),2),\"\"),\"\"),\"\")","v":""},{"$f":"IFERROR(IF(AfișareSărbători,IF(INDEX(tblSărbători[],MATCH(DATE(AnCal,MONTH(F13),DAY(F13)),IF(AfișareCelebrateOficial,tblSărbători[RECTIFICAT],tblSărbători[ZIUA]),0),6),INDEX(tblSărbători[],MATCH(DATE(AnCal,MONTH(F13),DAY(F13)),IF(AfișareCelebrateOficial,tblSărbători[RECTIFICAT],tblSărbători[ZIUA]),0),2),\"\"),\"\"),\"\")","v":""},{"$f":"IFERROR(IF(AfișareSărbători,IF(INDEX(tblSărbători[],MATCH(DATE(AnCal,MONTH(G13),DAY(G13)),IF(AfișareCelebrateOficial,tblSărbători[RECTIFICAT],tblSărbători[ZIUA]),0),6),INDEX(tblSărbători[],MATCH(DATE(AnCal,MONTH(G13),DAY(G13)),IF(AfișareCelebrateOficial,tblSărbători[RECTIFICAT],tblSărbători[ZIUA]),0),2),\"\"),\"\"),\"\")","v":""},{"$f":"IFERROR(IF(AfișareSărbători,IF(INDEX(tblSărbători[],MATCH(DATE(AnCal,MONTH(H13),DAY(H13)),IF(AfișareCelebrateOficial,tblSărbători[RECTIFICAT],tblSărbători[ZIUA]),0),6),INDEX(tblSărbători[],MATCH(DATE(AnCal,MONTH(H13),DAY(H13)),IF(AfișareCelebrateOficial,tblSărbători[RECTIFICAT],tblSărbători[ZIUA]),0),2),\"\"),\"\"),\"\")","v":""}]
[null,{"$f":"Zile+DATE(AnCal,4,1)-WEEKDAY(DATE(AnCal,4,1),(ÎnceputSăptămână=\"Luni\")+1)+36","v":"2018-05-06"},"2018-05-07","NOTE"]
[null,{"$f":"IFERROR(IF(AfișareSărbători,IF(INDEX(tblSărbători[],MATCH(DATE(AnCal,MONTH(B15),DAY(B15)),IF(AfișareCelebrateOficial,tblSărbători[RECTIFICAT],tblSărbători[ZIUA]),0),6),INDEX(tblSărbători[],MATCH(DATE(AnCal,MONTH(B15),DAY(B15)),IF(AfișareCelebrateOficial,tblSărbători[RECTIFICAT],tblSărbători[ZIUA]),0),2),\"\"),\"\"),\"\")","v":""},{"$f":"IFERROR(IF(AfișareSărbători,IF(INDEX(tblSărbători[],MATCH(DATE(AnCal,MONTH(C15),DAY(C15)),IF(AfișareCelebrateOficial,tblSărbători[RECTIFICAT],tblSărbători[ZIUA]),0),6),INDEX(tblSărbători[],MATCH(DATE(AnCal,MONTH(C15),DAY(C15)),IF(AfișareCelebrateOficial,tblSărbători[RECTIFICAT],tblSărbători[ZIUA]),0),2),\"\"),\"\"),\"\")","v":""}]

{"sheet":"Mai","index":5,"n_rows":16,"n_cols":8,"rows_kept":16,"merged":[[1,1,1,3],[14,3,14,7],[15,3,15,7],[16,1,16,7]]}
[]
[null,{"$f":"B9","v":"2018-05-13"}]
[]
[null,{"$f":"ÎnceputSăptămână","v":"DUMINICĂ"},{"$f":"UPPER(TEXT(C5,\"dddd\"))","v":"LUNI"},"MARȚI","MIERCURI","JOI","VINERI","SÂMBĂTĂ"]
[null,{"$f":"Zile+DATE(AnCal,5,1)-WEEKDAY(DATE(AnCal,5,1),(ÎnceputSăptămână=\"Luni\")+1)+1","v":"2018-04-29"},"2018-04-30","2018-05-01","2018-05-02","2018-05-03","2018-05-04","2018-05-05"]
[null,{"$f":"IFERROR(IF(AfișareSărbători,IF(INDEX(tblSărbători[],MATCH(DATE(AnCal-(DAY(B5)>15)+(ROW()>6),MONTH(B5),DAY(B5)),IF(AfișareCelebrateOficial,tblSărbători[RECTIFICAT],tblSărbători[ZIUA]),0),6),INDEX(tblSărbători[],MATCH(DATE(AnCal-(DAY(B5)>15)+(ROW()>6),MONTH(B5),DAY(B5)),IF(AfișareCelebrateOficial,tblSărbători[RECTIFICAT],tblSărbători[ZIUA]),0),2),\"\"),\"\"),\"\")","v":""},{"$f":"IFERROR(IF(AfișareSărbători,IF(INDEX(tblSărbători[],MATCH(DATE(AnCal-(DAY(C5)>15)+(ROW()>6),MONTH(C5),DAY(C5)),IF(AfișareCelebrateOficial,tblSărbători[RECTIFICAT],tblSărbători[ZIUA]),0),6),INDEX(tblSărbători[],MATCH(DATE(AnCal-(DAY(C5)>15)+(ROW()>6),MONTH(C5),DAY(C5)),IF(AfișareCelebrateOficial,tblSărbători[RECTIFICAT],tblSărbători[ZIUA]),0),2),\"\"),\"\"),\"\")","v":""},{"$f":"IFERROR(IF(AfișareSărbători,IF(INDEX(tblSărbători[],MATCH(DATE(AnCal-(DAY(D5)>15)+(ROW()>6),MONTH(D5),DAY(D5)),IF(AfișareCelebrateOficial,tblSărbători[RECTIFICAT],tblSărbători[ZIUA]),0),6),INDEX(tblSărbători[],MATCH(DATE(AnCal-(DAY(D5)>15)+(ROW()>6),MONTH(D5),DAY(D5)),IF(AfișareCelebrateOficial,tblSărbători[RECTIFICAT],tblSărbători[ZIUA]),0),2),\"\"),\"\"),\"\")","v":""},{"$f":"IFERROR(IF(AfișareSărbători,IF(INDEX(tblSărbători[],MATCH(DATE(AnCal-(DAY(E5)>15)+(ROW()>6),MONTH(E5),DAY(E5)),IF(AfișareCelebrateOficial,tblSărbători[RECTIFICAT],tblSărbători[ZIUA]),0),6),INDEX(tblSărbători[],MATCH(DATE(AnCal-(DAY(E5)>15)+(ROW()>6),MONTH(E5),DAY(E5)),IF(AfișareCelebrateOficial,tblSărbători[RECTIFICAT],tblSărbători[ZIUA]),0),2),\"\"),\"\"),\"\")","v":""},{"$f":"IFERROR(IF(AfișareSărbători,IF(INDEX(tblSărbători[],MATCH(DATE(AnCal-(DAY(F5)>15)+(ROW()>6),MONTH(F5),DAY(F5)),IF(AfișareCelebrateOficial,tblSărbători[RECTIFICAT],tblSărbători[ZIUA]),0),6),INDEX(tblSărbători[],MATCH(DATE(AnCal-(DAY(F5)>15)+(ROW()>6),MONTH(F5),DAY(F5)),IF(AfișareCelebrateOficial,tblSărbători[RECTIFICAT],tblSărbători[ZIUA]),0),2),\"\"),\"\"),\"\")","v":""},{"$f":"IFERROR(IF(AfișareSărbători,IF(INDEX(tblSărbători[],MATCH(DATE(AnCal-(DAY(G5)>15)+(ROW()>6),MONTH(G5),DAY(G5)),IF(AfișareCelebrateOficial,tblSărbători[RECTIFICAT],tblSărbători[ZIUA]),0),6),INDEX(tblSărbători[],MATCH(DATE(AnCal-(DAY(G5)>15)+(ROW()>6),MONTH(G5),DAY(G5)),IF(AfișareCelebrateOficial,tblSărbători[RECTIFICAT],tblSărbători[ZIUA]),0),2),\"\"),\"\"),\"\")","v":""},{"$f":"IFERROR(IF(AfișareSărbători,IF(INDEX(tblSărbători[],MATCH(DATE(AnCal-(DAY(H5)>15)+(ROW()>6),MONTH(H5),DAY(H5)),IF(AfișareCelebrateOficial,tblSărbători[RECTIFICAT],tblSărbători[ZIUA]),0),6),INDEX(tblSărbători[],MATCH(DATE(AnCal-(DAY(H5)>15)+(ROW()>6),MONTH(H5),DAY(H5)),IF(AfișareCelebrateOficial,tblSărbători[RECTIFICAT],tblSărbători[ZIUA]),0),2),\"\"),\"\"),\"\")","v":""}]
[null,{"$f":"Zile+DATE(AnCal,5,1)-WEEKDAY(DATE(AnCal,5,1),(ÎnceputSăptămână=\"Luni\")+1)+8","v":"2018-05-06"},"2018-05-07","2018-05-08","2018-05-09","2018-05-10","2018-05-11","2018-05-12"]
[null,{"$f":"IFERROR(IF(AfișareSărbători,IF(INDEX(tblSărbători[],MATCH(DATE(AnCal,MONTH(B7),DAY(B7)),IF(AfișareCelebrateOficial,tblSărbători[RECTIFICAT],tblSărbători[ZIUA]),0),6),INDEX(tblSărbători[],MATCH(DATE(AnCal,MONTH(B7),DAY(B7)),IF(AfișareCelebrateOficial,tblSărbători[RECTIFICAT],tblSărbători[ZIUA]),0),2),\"\"),\"\"),\"\")","v":""},{"$f":"IFERROR(IF(AfișareSărbători,IF(INDEX(tblSărbători[],MATCH(DATE(AnCal,MONTH(C7),DAY(C7)),IF(AfișareCelebrateOficial,tblSărbători[RECTIFICAT],tblSărbători[ZIUA]),0),6),INDEX(tblSărbători[],MATCH(DATE(AnCal,MONTH(C7),DAY(C7)),IF(AfișareCelebrateOficial,tblSărbători[RECTIFICAT],tblSărbători[ZIUA]),0),2),\"\"),\"\"),\"\")","v":""},{"$f":"IFERROR(IF(AfișareSărbători,IF(INDEX(tblSărbători[],MATCH(DATE(AnCal,MONTH(D7),DAY(D7)),IF(AfișareCelebrateOficial,tblSărbători[RECTIFICAT],tblSărbători[ZIUA]),0),6),INDEX(tblSărbători[],MATCH(DATE(AnCal,MONTH(D7),DAY(D7)),IF(AfișareCelebrateOficial,tblSărbători[RECTIFICAT],tblSărbători[ZIUA]),0),2),\"\"),\"\"),\"\")","v":""},{"$f":"IFERROR(IF(AfișareSărbători,IF(INDEX(tblSărbători[],MATCH(DATE(AnCal,MONTH(E7),DAY(E7)),IF(AfișareCelebrateOficial,tblSărbători[RECTIFICAT],tblSărbători[ZIUA]),0),6),INDEX(tblSărbători[],MATCH(DATE(AnCal,MONTH(E7),DAY(E7)),IF(AfișareCelebrateOficial,tblSărbători[RECTIFICAT],tblSărbători[ZIUA]),0),2),\"\"),\"\"),\"\")","v":""},{"$f":"IFERROR(IF(AfișareSărbători,IF(INDEX(tblSărbători[],MATCH(DATE(AnCal,MONTH(F7),DAY(F7)),IF(AfișareCelebrateOficial,tblSărbători[RECTIFICAT],tblSărbători[ZIUA]),0),6),INDEX(tblSărbători[],MATCH(DATE(AnCal,MONTH(F7),DAY(F7)),IF(AfișareCelebrateOficial,tblSărbători[RECTIFICAT],tblSărbători[ZIUA]),0),2),\"\"),\"\"),\"\")","v":""},{"$f":"IFERROR(IF(AfișareSărbători,IF(INDEX(tblSărbători[],MATCH(DATE(AnCal,MONTH(G7),DAY(G7)),IF(AfișareCelebrateOficial,tblSărbători[RECTIFICAT],tblSărbători[ZIUA]),0),6),INDEX(tblSărbători[],MATCH(DATE(AnCal,MONTH(G7),DAY(G7)),IF(AfișareCelebrateOficial,tblSărbători[RECTIFICAT],tblSărbători[ZIUA]),0),2),\"\"),\"\"),\"\")","v":""},{"$f":"IFERROR(IF(AfișareSărbători,IF(INDEX(tblSărbători[],MATCH(DATE(AnCal,MONTH(H7),DAY(H7)),IF(AfișareCelebrateOficial,tblSărbători[RECTIFICAT],tblSărbători[ZIUA]),0),6),INDEX(tblSărbători[],MATCH(DATE(AnCal,MONTH(H7),DAY(H7)),IF(AfișareCelebrateOficial,tblSărbători[RECTIFICAT],tblSărbători[ZIUA]),0),2),\"\"),\"\"),\"\")","v":""}]
[null,{"$f":"Zile+DATE(AnCal,5,1)-WEEKDAY(DATE(AnCal,5,1),(ÎnceputSăptămână=\"Luni\")+1)+15","v":"2018-05-13"},"2018-05-14","2018-05-15","2018-05-16","2018-05-17","2018-05-18","2018-05-19"]
[null,{"$f":"IFERROR(IF(AfișareSărbători,IF(INDEX(tblSărbători[],MATCH(DATE(AnCal,MONTH(B9),DAY(B9)),IF(AfișareCelebrateOficial,tblSărbători[RECTIFICAT],tblSărbători[ZIUA]),0),6),INDEX(tblSărbători[],MATCH(DATE(AnCal,MONTH(B9),DAY(B9)),IF(AfișareCelebrateOficial,tblSărbători[RECTIFICAT],tblSărbători[ZIUA]),0),2),\"\"),\"\"),\"\")","v":""},{"$f":"IFERROR(IF(AfișareSărbători,IF(INDEX(tblSărbători[],MATCH(DATE(AnCal,MONTH(C9),DAY(C9)),IF(AfișareCelebrateOficial,tblSărbători[RECTIFICAT],tblSărbători[ZIUA]),0),6),INDEX(tblSărbători[],MATCH(DATE(AnCal,MONTH(C9),DAY(C9)),IF(AfișareCelebrateOficial,tblSărbători[RECTIFICAT],tblSărbători[ZIUA]),0),2),\"\"),\"\"),\"\")","v":""},{"$f":"IFERROR(IF(AfișareSărbători,IF(INDEX(tblSărbători[],MATCH(DATE(AnCal,MONTH(D9),DAY(D9)),IF(AfișareCelebrateOficial,tblSărbători[RECTIFICAT],tblSărbători[ZIUA]),0),6),INDEX(tblSărbători[],MATCH(DATE(AnCal,MONTH(D9),DAY(D9)),IF(AfișareCelebrateOficial,tblSărbători[RECTIFICAT],tblSărbători[ZIUA]),0),2),\"\"),\"\"),\"\")","v":""},{"$f":"IFERROR(IF(AfișareSărbători,IF(INDEX(tblSărbători[],MATCH(DATE(AnCal,MONTH(E9),DAY(E9)),IF(AfișareCelebrateOficial,tblSărbători[RECTIFICAT],tblSărbători[ZIUA]),0),6),INDEX(tblSărbători[],MATCH(DATE(AnCal,MONTH(E9),DAY(E9)),IF(AfișareCelebrateOficial,tblSărbători[RECTIFICAT],tblSărbători[ZIUA]),0),2),\"\"),\"\"),\"\")","v":""},{"$f":"IFERROR(IF(AfișareSărbători,IF(INDEX(tblSărbători[],MATCH(DATE(AnCal,MONTH(F9),DAY(F9)),IF(AfișareCelebrateOficial,tblSărbători[RECTIFICAT],tblSărbători[ZIUA]),0),6),INDEX(tblSărbători[],MATCH(DATE(AnCal,MONTH(F9),DAY(F9)),IF(AfișareCelebrateOficial,tblSărbători[RECTIFICAT],tblSărbători[ZIUA]),0),2),\"\"),\"\"),\"\")","v":""},{"$f":"IFERROR(IF(AfișareSărbători,IF(INDEX(tblSărbători[],MATCH(DATE(AnCal,MONTH(G9),DAY(G9)),IF(AfișareCelebrateOficial,tblSărbători[RECTIFICAT],tblSărbători[ZIUA]),0),6),INDEX(tblSărbători[],MATCH(DATE(AnCal,MONTH(G9),DAY(G9)),IF(AfișareCelebrateOficial,tblSărbători[RECTIFICAT],tblSărbători[ZIUA]),0),2),\"\"),\"\"),\"\")","v":""},{"$f":"IFERROR(IF(AfișareSărbători,IF(INDEX(tblSărbători[],MATCH(DATE(AnCal,MONTH(H9),DAY(H9)),IF(AfișareCelebrateOficial,tblSărbători[RECTIFICAT],tblSărbători[ZIUA]),0),6),INDEX(tblSărbători[],MATCH(DATE(AnCal,MONTH(H9),DAY(H9)),IF(AfișareCelebrateOficial,tblSărbători[RECTIFICAT],tblSărbători[ZIUA]),0),2),\"\"),\"\"),\"\")","v":""}]
[null,{"$f":"Zile+DATE(AnCal,5,1)-WEEKDAY(DATE(AnCal,5,1),(ÎnceputSăptămână=\"Luni\")+1)+22","v":"2018-05-20"},"2018-05-21","2018-05-22","2018-05-23","2018-05-24","2018-05-25","2018-05-26"]
[null,{"$f":"IFERROR(IF(AfișareSărbători,IF(INDEX(tblSărbători[],MATCH(DATE(AnCal,MONTH(B11),DAY(B11)),IF(AfișareCelebrateOficial,tblSărbători[RECTIFICAT],tblSărbători[ZIUA]),0),6),INDEX(tblSărbători[],MATCH(DATE(AnCal,MONTH(B11),DAY(B11)),IF(AfișareCelebrateOficial,tblSărbători[RECTIFICAT],tblSărbători[ZIUA]),0),2),\"\"),\"\"),\"\")","v":""},{"$f":"IFERROR(IF(AfișareSărbători,IF(INDEX(tblSărbători[],MATCH(DATE(AnCal,MONTH(C11),DAY(C11)),IF(AfișareCelebrateOficial,tblSărbători[RECTIFICAT],tblSărbători[ZIUA]),0),6),INDEX(tblSărbători[],MATCH(DATE(AnCal,MONTH(C11),DAY(C11)),IF(AfișareCelebrateOficial,tblSărbători[RECTIFICAT],tblSărbători[ZIUA]),0),2),\"\"),\"\"),\"\")","v":""},{"$f":"IFERROR(IF(AfișareSărbători,IF(INDEX(tblSărbători[],MATCH(DATE(AnCal,MONTH(D11),DAY(D11)),IF(AfișareCelebrateOficial,tblSărbători[RECTIFICAT],tblSărbători[ZIUA]),0),6),INDEX(tblSărbători[],MATCH(DATE(AnCal,MONTH(D11),DAY(D11)),IF(AfișareCelebrateOficial,tblSărbători[RECTIFICAT],tblSărbători[ZIUA]),0),2),\"\"),\"\"),\"\")","v":""},{"$f":"IFERROR(IF(AfișareSărbători,IF(INDEX(tblSărbători[],MATCH(DATE(AnCal,MONTH(E11),DAY(E11)),IF(AfișareCelebrateOficial,tblSărbători[RECTIFICAT],tblSărbători[ZIUA]),0),6),INDEX(tblSărbători[],MATCH(DATE(AnCal,MONTH(E11),DAY(E11)),IF(AfișareCelebrateOficial,tblSărbători[RECTIFICAT],tblSărbători[ZIUA]),0),2),\"\"),\"\"),\"\")","v":""},{"$f":"IFERROR(IF(AfișareSărbători,IF(INDEX(tblSărbători[],MATCH(DATE(AnCal,MONTH(F11),DAY(F11)),IF(AfișareCelebrateOficial,tblSărbători[RECTIFICAT],tblSărbători[ZIUA]),0),6),INDEX(tblSărbători[],MATCH(DATE(AnCal,MONTH(F11),DAY(F11)),IF(AfișareCelebrateOficial,tblSărbători[RECTIFICAT],tblSărbători[ZIUA]),0),2),\"\"),\"\"),\"\")","v":""},{"$f":"IFERROR(IF(AfișareSărbători,IF(INDEX(tblSărbători[],MATCH(DATE(AnCal,MONTH(G11),DAY(G11)),IF(AfișareCelebrateOficial,tblSărbători[RECTIFICAT],tblSărbători[ZIUA]),0),6),INDEX(tblSărbători[],MATCH(DATE(AnCal,MONTH(G11),DAY(G11)),IF(AfișareCelebrateOficial,tblSărbători[RECTIFICAT],tblSărbători[ZIUA]),0),2),\"\"),\"\"),\"\")","v":""},{"$f":"IFERROR(IF(AfișareSărbători,IF(INDEX(tblSărbători[],MATCH(DATE(AnCal,MONTH(H11),DAY(H11)),IF(AfișareCelebrateOficial,tblSărbători[RECTIFICAT],tblSărbători[ZIUA]),0),6),INDEX(tblSărbători[],MATCH(DATE(AnCal,MONTH(H11),DAY(H11)),IF(AfișareCelebrateOficial,tblSărbători[RECTIFICAT],tblSărbători[ZIUA]),0),2),\"\"),\"\"),\"\")","v":""}]
[null,{"$f":"Zile+DATE(AnCal,5,1)-WEEKDAY(DATE(AnCal,5,1),(ÎnceputSăptămână=\"Luni\")+1)+29","v":"2018-05-27"},"2018-05-28","2018-05-29","2018-05-30","2018-05-31","2018-06-01","2018-06-02"]
[null,{"$f":"IFERROR(IF(AfișareSărbători,IF(INDEX(tblSărbători[],MATCH(DATE(AnCal,MONTH(B13),DAY(B13)),IF(AfișareCelebrateOficial,tblSărbători[RECTIFICAT],tblSărbători[ZIUA]),0),6),INDEX(tblSărbători[],MATCH(DATE(AnCal,MONTH(B13),DAY(B13)),IF(AfișareCelebrateOficial,tblSărbători[RECTIFICAT],tblSărbători[ZIUA]),0),2),\"\"),\"\"),\"\")","v":""},{"$f":"IFERROR(IF(AfișareSărbători,IF(INDEX(tblSărbători[],MATCH(DATE(AnCal,MONTH(C13),DAY(C13)),IF(AfișareCelebrateOficial,tblSărbători[RECTIFICAT],tblSărbători[ZIUA]),0),6),INDEX(tblSărbători[],MATCH(DATE(AnCal,MONTH(C13),DAY(C13)),IF(AfișareCelebrateOficial,tblSărbători[RECTIFICAT],tblSărbători[ZIUA]),0),2),\"\"),\"\"),\"\")","v":"Memorial Day"},{"$f":"IFERROR(IF(AfișareSărbători,IF(INDEX(tblSărbători[],MATCH(DATE(AnCal,MONTH(D13),DAY(D13)),IF(AfișareCelebrateOficial,tblSărbători[RECTIFICAT],tblSărbători[ZIUA]),0),6),INDEX(tblSărbători[],MATCH(DATE(AnCal,MONTH(D13),DAY(D13)),IF(AfișareCelebrateOficial,tblSărbători[RECTIFICAT],tblSărbători[ZIUA]),0),2),\"\"),\"\"),\"\")","v":""},{"$f":"IFERROR(IF(AfișareSărbători,IF(INDEX(tblSărbători[],MATCH(DATE(AnCal,MONTH(E13),DAY(E13)),IF(AfișareCelebrateOficial,tblSărbători[RECTIFICAT],tblSărbători[ZIUA]),0),6),INDEX(tblSărbători[],MATCH(DATE(AnCal,MONTH(E13),DAY(E13)),IF(AfișareCelebrateOficial,tblSărbători[RECTIFICAT],tblSărbători[ZIUA]),0),2),\"\"),\"\"),\"\")","v":""},{"$f":"IFERROR(IF(AfișareSărbători,IF(INDEX(tblSărbători[],MATCH(DATE(AnCal,MONTH(F13),DAY(F13)),IF(AfișareCelebrateOficial,tblSărbători[RECTIFICAT],tblSărbători[ZIUA]),0),6),INDEX(tblSărbători[],MATCH(DATE(AnCal,MONTH(F13),DAY(F13)),IF(AfișareCelebrateOficial,tblSărbători[RECTIFICAT],tblSărbători[ZIUA]),0),2),\"\"),\"\"),\"\")","v":""},{"$f":"IFERROR(IF(AfișareSărbători,IF(INDEX(tblSărbători[],MATCH(DATE(AnCal,MONTH(G13),DAY(G13)),IF(AfișareCelebrateOficial,tblSărbători[RECTIFICAT],tblSărbători[ZIUA]),0),6),INDEX(tblSărbători[],MATCH(DATE(AnCal,MONTH(G13),DAY(G13)),IF(AfișareCelebrateOficial,tblSărbători[RECTIFICAT],tblSărbători[ZIUA]),0),2),\"\"),\"\"),\"\")","v":""},{"$f":"IFERROR(IF(AfișareSărbători,IF(INDEX(tblSărbători[],MATCH(DATE(AnCal,MONTH(H13),DAY(H13)),IF(AfișareCelebrateOficial,tblSărbători[RECTIFICAT],tblSărbători[ZIUA]),0),6),INDEX(tblSărbători[],MATCH(DATE(AnCal,MONTH(H13),DAY(H13)),IF(AfișareCelebrateOficial,tblSărbători[RECTIFICAT],tblSărbători[ZIUA]),0),2),\"\"),\"\"),\"\")","v":""}]
[null,{"$f":"Zile+DATE(AnCal,5,1)-WEEKDAY(DATE(AnCal,5,1),(ÎnceputSăptămână=\"Luni\")+1)+36","v":"2018-06-03"},"2018-06-04","NOTE"]
[null,{"$f":"IFERROR(IF(AfișareSărbători,IF(INDEX(tblSărbători[],MATCH(DATE(AnCal,MONTH(B15),DAY(B15)),IF(AfișareCelebrateOficial,tblSărbători[RECTIFICAT],tblSărbători[ZIUA]),0),6),INDEX(tblSărbători[],MATCH(DATE(AnCal,MONTH(B15),DAY(B15)),IF(AfișareCelebrateOficial,tblSărbători[RECTIFICAT],tblSărbători[ZIUA]),0),2),\"\"),\"\"),\"\")","v":""},{"$f":"IFERROR(IF(AfișareSărbători,IF(INDEX(tblSărbători[],MATCH(DATE(AnCal,MONTH(C15),DAY(C15)),IF(AfișareCelebrateOficial,tblSărbători[RECTIFICAT],tblSărbători[ZIUA]),0),6),INDEX(tblSărbători[],MATCH(DATE(AnCal,MONTH(C15),DAY(C15)),IF(AfișareCelebrateOficial,tblSărbători[RECTIFICAT],tblSărbători[ZIUA]),0),2),\"\"),\"\"),\"\")","v":""}]

{"sheet":"Iunie","index":6,"n_rows":16,"n_cols":8,"rows_kept":16,"merged":[[1,1,1,3],[14,3,14,7],[15,3,15,7],[16,1,16,7]]}
[]
[null,{"$f":"B9","v":"2018-06-10"}]
[]
[null,{"$f":"ÎnceputSăptămână","v":"DUMINICĂ"},{"$f":"UPPER(TEXT(C5,\"dddd\"))","v":"LUNI"},"MARȚI","MIERCURI","JOI","VINERI","SÂMBĂTĂ"]
[null,{"$f":"Zile+DATE(AnCal,6,1)-WEEKDAY(DATE(AnCal,6,1),(ÎnceputSăptămână=\"Luni\")+1)+1","v":"2018-05-27"},"2018-05-28","2018-05-29","2018-05-30","2018-05-31","2018-06-01","2018-06-02"]
[null,{"$f":"IFERROR(IF(AfișareSărbători,IF(INDEX(tblSărbători[],MATCH(DATE(AnCal-(DAY(B5)>15)+(ROW()>6),MONTH(B5),DAY(B5)),IF(AfișareCelebrateOficial,tblSărbători[RECTIFICAT],tblSărbători[ZIUA]),0),6),INDEX(tblSărbători[],MATCH(DATE(AnCal-(DAY(B5)>15)+(ROW()>6),MONTH(B5),DAY(B5)),IF(AfișareCelebrateOficial,tblSărbători[RECTIFICAT],tblSărbători[ZIUA]),0),2),\"\"),\"\"),\"\")","v":""},{"$f":"IFERROR(IF(AfișareSărbători,IF(INDEX(tblSărbători[],MATCH(DATE(AnCal-(DAY(C5)>15)+(ROW()>6),MONTH(C5),DAY(C5)),IF(AfișareCelebrateOficial,tblSărbători[RECTIFICAT],tblSărbători[ZIUA]),0),6),INDEX(tblSărbători[],MATCH(DATE(AnCal-(DAY(C5)>15)+(ROW()>6),MONTH(C5),DAY(C5)),IF(AfișareCelebrateOficial,tblSărbători[RECTIFICAT],tblSărbători[ZIUA]),0),2),\"\"),\"\"),\"\")","v":""},{"$f":"IFERROR(IF(AfișareSărbători,IF(INDEX(tblSărbători[],MATCH(DATE(AnCal-(DAY(D5)>15)+(ROW()>6),MONTH(D5),DAY(D5)),IF(AfișareCelebrateOficial,tblSărbători[RECTIFICAT],tblSărbători[ZIUA]),0),6),INDEX(tblSărbători[],MATCH(DATE(AnCal-(DAY(D5)>15)+(ROW()>6),MONTH(D5),DAY(D5)),IF(AfișareCelebrateOficial,tblSărbători[RECTIFICAT],tblSărbători[ZIUA]),0),2),\"\"),\"\"),\"\")","v":""},{"$f":"IFERROR(IF(AfișareSărbători,IF(INDEX(tblSărbători[],MATCH(DATE(AnCal-(DAY(E5)>15)+(ROW()>6),MONTH(E5),DAY(E5)),IF(AfișareCelebrateOficial,tblSărbători[RECTIFICAT],tblSărbători[ZIUA]),0),6),INDEX(tblSărbători[],MATCH(DATE(AnCal-(DAY(E5)>15)+(ROW()>6),MONTH(E5),DAY(E5)),IF(AfișareCelebrateOficial,tblSărbători[RECTIFICAT],tblSărbători[ZIUA]),0),2),\"\"),\"\"),\"\")","v":""},{"$f":"IFERROR(IF(AfișareSărbători,IF(INDEX(tblSărbători[],MATCH(DATE(AnCal-(DAY(F5)>15)+(ROW()>6),MONTH(F5),DAY(F5)),IF(AfișareCelebrateOficial,tblSărbători[RECTIFICAT],tblSărbători[ZIUA]),0),6),INDEX(tblSărbători[],MATCH(DATE(AnCal-(DAY(F5)>15)+(ROW()>6),MONTH(F5),DAY(F5)),IF(AfișareCelebrateOficial,tblSărbători[RECTIFICAT],tblSărbători[ZIUA]),0),2),\"\"),\"\"),\"\")","v":""},{"$f":"IFERROR(IF(AfișareSărbători,IF(INDEX(tblSărbători[],MATCH(DATE(AnCal-(DAY(G5)>15)+(ROW()>6),MONTH(G5),DAY(G5)),IF(AfișareCelebrateOficial,tblSărbători[RECTIFICAT],tblSărbători[ZIUA]),0),6),INDEX(tblSărbători[],MATCH(DATE(AnCal-(DAY(G5)>15)+(ROW()>6),MONTH(G5),DAY(G5)),IF(AfișareCelebrateOficial,tblSărbători[RECTIFICAT],tblSărbători[ZIUA]),0),2),\"\"),\"\"),\"\")","v":""},{"$f":"IFERROR(IF(AfișareSărbători,IF(INDEX(tblSărbători[],MATCH(DATE(AnCal-(DAY(H5)>15)+(ROW()>6),MONTH(H5),DAY(H5)),IF(AfișareCelebrateOficial,tblSărbători[RECTIFICAT],tblSărbători[ZIUA]),0),6),INDEX(tblSărbători[],MATCH(DATE(AnCal-(DAY(H5)>15)+(ROW()>6),MONTH(H5),DAY(H5)),IF(AfișareCelebrateOficial,tblSărbători[RECTIFICAT],tblSărbători[ZIUA]),0),2),\"\"),\"\"),\"\")","v":""}]
[null,{"$f":"Zile+DATE(AnCal,6,1)-WEEKDAY(DATE(AnCal,6,1),(ÎnceputSăptămână=\"Luni\")+1)+8","v":"2018-06-03"},"2018-06-04","2018-06-05","2018-06-06","2018-06-07","2018-06-08","2018-06-09"]
[null,{"$f":"IFERROR(IF(AfișareSărbători,IF(INDEX(tblSărbători[],MATCH(DATE(AnCal,MONTH(B7),DAY(B7)),IF(AfișareCelebrateOficial,tblSărbători[RECTIFICAT],tblSărbători[ZIUA]),0),6),INDEX(tblSărbători[],MATCH(DATE(AnCal,MONTH(B7),DAY(B7)),IF(AfișareCelebrateOficial,tblSărbători[RECTIFICAT],tblSărbători[ZIUA]),0),2),\"\"),\"\"),\"\")","v":""},{"$f":"IFERROR(IF(AfișareSărbători,IF(INDEX(tblSărbători[],MATCH(DATE(AnCal,MONTH(C7),DAY(C7)),IF(AfișareCelebrateOficial,tblSărbători[RECTIFICAT],tblSărbători[ZIUA]),0),6),INDEX(tblSărbători[],MATCH(DATE(AnCal,MONTH(C7),DAY(C7)),IF(AfișareCelebrateOficial,tblSărbători[RECTIFICAT],tblSărbători[ZIUA]),0),2),\"\"),\"\"),\"\")","v":""},{"$f":"IFERROR(IF(AfișareSărbători,IF(INDEX(tblSărbători[],MATCH(DATE(AnCal,MONTH(D7),DAY(D7)),IF(AfișareCelebrateOficial,tblSărbători[RECTIFICAT],tblSărbători[ZIUA]),0),6),INDEX(tblSărbători[],MATCH(DATE(AnCal,MONTH(D7),DAY(D7)),IF(AfișareCelebrateOficial,tblSărbători[RECTIFICAT],tblSărbători[ZIUA]),0),2),\"\"),\"\"),\"\")","v":""},{"$f":"IFERROR(IF(AfișareSărbători,IF(INDEX(tblSărbători[],MATCH(DATE(AnCal,MONTH(E7),DAY(E7)),IF(AfișareCelebrateOficial,tblSărbători[RECTIFICAT],tblSărbători[ZIUA]),0),6),INDEX(tblSărbători[],MATCH(DATE(AnCal,MONTH(E7),DAY(E7)),IF(AfișareCelebrateOficial,tblSărbători[RECTIFICAT],tblSărbători[ZIUA]),0),2),\"\"),\"\"),\"\")","v":""},{"$f":"IFERROR(IF(AfișareSărbători,IF(INDEX(tblSărbători[],MATCH(DATE(AnCal,MONTH(F7),DAY(F7)),IF(AfișareCelebrateOficial,tblSărbători[RECTIFICAT],tblSărbători[ZIUA]),0),6),INDEX(tblSărbători[],MATCH(DATE(AnCal,MONTH(F7),DAY(F7)),IF(AfișareCelebrateOficial,tblSărbători[RECTIFICAT],tblSărbători[ZIUA]),0),2),\"\"),\"\"),\"\")","v":""},{"$f":"IFERROR(IF(AfișareSărbători,IF(INDEX(tblSărbători[],MATCH(DATE(AnCal,MONTH(G7),DAY(G7)),IF(AfișareCelebrateOficial,tblSărbători[RECTIFICAT],tblSărbători[ZIUA]),0),6),INDEX(tblSărbători[],MATCH(DATE(AnCal,MONTH(G7),DAY(G7)),IF(AfișareCelebrateOficial,tblSărbători[RECTIFICAT],tblSărbători[ZIUA]),0),2),\"\"),\"\"),\"\")","v":""},{"$f":"IFERROR(IF(AfișareSărbători,IF(INDEX(tblSărbători[],MATCH(DATE(AnCal,MONTH(H7),DAY(H7)),IF(AfișareCelebrateOficial,tblSărbători[RECTIFICAT],tblSărbători[ZIUA]),0),6),INDEX(tblSărbători[],MATCH(DATE(AnCal,MONTH(H7),DAY(H7)),IF(AfișareCelebrateOficial,tblSărbători[RECTIFICAT],tblSărbători[ZIUA]),0),2),\"\"),\"\"),\"\")","v":""}]
[null,{"$f":"Zile+DATE(AnCal,6,1)-WEEKDAY(DATE(AnCal,6,1),(ÎnceputSăptămână=\"Luni\")+1)+15","v":"2018-06-10"},"2018-06-11","2018-06-12","2018-06-13","2018-06-14","2018-06-15","2018-06-16"]
[null,{"$f":"IFERROR(IF(AfișareSărbători,IF(INDEX(tblSărbători[],MATCH(DATE(AnCal,MONTH(B9),DAY(B9)),IF(AfișareCelebrateOficial,tblSărbători[RECTIFICAT],tblSărbători[ZIUA]),0),6),INDEX(tblSărbători[],MATCH(DATE(AnCal,MONTH(B9),DAY(B9)),IF(AfișareCelebrateOficial,tblSărbători[RECTIFICAT],tblSărbători[ZIUA]),0),2),\"\"),\"\"),\"\")","v":""},{"$f":"IFERROR(IF(AfișareSărbători,IF(INDEX(tblSărbători[],MATCH(DATE(AnCal,MONTH(C9),DAY(C9)),IF(AfișareCelebrateOficial,tblSărbători[RECTIFICAT],tblSărbători[ZIUA]),0),6),INDEX(tblSărbători[],MATCH(DATE(AnCal,MONTH(C9),DAY(C9)),IF(AfișareCelebrateOficial,tblSărbători[RECTIFICAT],tblSărbători[ZIUA]),0),2),\"\"),\"\"),\"\")","v":""},{"$f":"IFERROR(IF(AfișareSărbători,IF(INDEX(tblSărbători[],MATCH(DATE(AnCal,MONTH(D9),DAY(D9)),IF(AfișareCelebrateOficial,tblSărbători[RECTIFICAT],tblSărbători[ZIUA]),0),6),INDEX(tblSărbători[],MATCH(DATE(AnCal,MONTH(D9),DAY(D9)),IF(AfișareCelebrateOficial,tblSărbători[RECTIFICAT],tblSărbători[ZIUA]),0),2),\"\"),\"\"),\"\")","v":""},{"$f":"IFERROR(IF(AfișareSărbători,IF(INDEX(tblSărbători[],MATCH(DATE(AnCal,MONTH(E9),DAY(E9)),IF(AfișareCelebrateOficial,tblSărbători[RECTIFICAT],tblSărbători[ZIUA]),0),6),INDEX(tblSărbători[],MATCH(DATE(AnCal,MONTH(E9),DAY(E9)),IF(AfișareCelebrateOficial,tblSărbători[RECTIFICAT],tblSărbători[ZIUA]),0),2),\"\"),\"\"),\"\")","v":""},{"$f":"IFERROR(IF(AfișareSărbători,IF(INDEX(tblSărbători[],MATCH(DATE(AnCal,MONTH(F9),DAY(F9)),IF(AfișareCelebrateOficial,tblSărbători[RECTIFICAT],tblSărbători[ZIUA]),0),6),INDEX(tblSărbători[],MATCH(DATE(AnCal,MONTH(F9),DAY(F9)),IF(AfișareCelebrateOficial,tblSărbători[RECTIFICAT],tblSărbători[ZIUA]),0),2),\"\"),\"\"),\"\")","v":""},{"$f":"IFERROR(IF(AfișareSărbători,IF(INDEX(tblSărbători[],MATCH(DATE(AnCal,MONTH(G9),DAY(G9)),IF(AfișareCelebrateOficial,tblSărbători[RECTIFICAT],tblSărbători[ZIUA]),0),6),INDEX(tblSărbători[],MATCH(DATE(AnCal,MONTH(G9),DAY(G9)),IF(AfișareCelebrateOficial,tblSărbători[RECTIFICAT],tblSărbători[ZIUA]),0),2),\"\"),\"\"),\"\")","v":""},{"$f":"IFERROR(IF(AfișareSărbători,IF(INDEX(tblSărbători[],MATCH(DATE(AnCal,MONTH(H9),DAY(H9)),IF(AfișareCelebrateOficial,tblSărbători[RECTIFICAT],tblSărbători[ZIUA]),0),6),INDEX(tblSărbători[],MATCH(DATE(AnCal,MONTH(H9),DAY(H9)),IF(AfișareCelebrateOficial,tblSărbători[RECTIFICAT],tblSărbători[ZIUA]),0),2),\"\"),\"\"),\"\")","v":""}]
[null,{"$f":"Zile+DATE(AnCal,6,1)-WEEKDAY(DATE(AnCal,6,1),(ÎnceputSăptămână=\"Luni\")+1)+22","v":"2018-06-17"},"2018-06-18","2018-06-19","2018-06-20","2018-06-21","2018-06-22","2018-06-23"]
[null,{"$f":"IFERROR(IF(AfișareSărbători,IF(INDEX(tblSărbători[],MATCH(DATE(AnCal,MONTH(B11),DAY(B11)),IF(AfișareCelebrateOficial,tblSărbători[RECTIFICAT],tblSărbători[ZIUA]),0),6),INDEX(tblSărbători[],MATCH(DATE(AnCal,MONTH(B11),DAY(B11)),IF(AfișareCelebrateOficial,tblSărbători[RECTIFICAT],tblSărbători[ZIUA]),0),2),\"\"),\"\"),\"\")","v":""},{"$f":"IFERROR(IF(AfișareSărbători,IF(INDEX(tblSărbători[],MATCH(DATE(AnCal,MONTH(C11),DAY(C11)),IF(AfișareCelebrateOficial,tblSărbători[RECTIFICAT],tblSărbători[ZIUA]),0),6),INDEX(tblSărbători[],MATCH(DATE(AnCal,MONTH(C11),DAY(C11)),IF(AfișareCelebrateOficial,tblSărbători[RECTIFICAT],tblSărbători[ZIUA]),0),2),\"\"),\"\"),\"\")","v":""},{"$f":"IFERROR(IF(AfișareSărbători,IF(INDEX(tblSărbători[],MATCH(DATE(AnCal,MONTH(D11),DAY(D11)),IF(AfișareCelebrateOficial,tblSărbători[RECTIFICAT],tblSărbători[ZIUA]),0),6),INDEX(tblSărbători[],MATCH(DATE(AnCal,MONTH(D11),DAY(D11)),IF(AfișareCelebrateOficial,tblSărbători[RECTIFICAT],tblSărbători[ZIUA]),0),2),\"\"),\"\"),\"\")","v":""},{"$f":"IFERROR(IF(AfișareSărbători,IF(INDEX(tblSărbători[],MATCH(DATE(AnCal,MONTH(E11),DAY(E11)),IF(AfișareCelebrateOficial,tblSărbători[RECTIFICAT],tblSărbători[ZIUA]),0),6),INDEX(tblSărbători[],MATCH(DATE(AnCal,MONTH(E11),DAY(E11)),IF(AfișareCelebrateOficial,tblSărbători[RECTIFICAT],tblSărbători[ZIUA]),0),2),\"\"),\"\"),\"\")","v":""},{"$f":"IFERROR(IF(AfișareSărbători,IF(INDEX(tblSărbători[],MATCH(DATE(AnCal,MONTH(F11),DAY(F11)),IF(AfișareCelebrateOficial,tblSărbători[RECTIFICAT],tblSărbători[ZIUA]),0),6),INDEX(tblSărbători[],MATCH(DATE(AnCal,MONTH(F11),DAY(F11)),IF(AfișareCelebrateOficial,tblSărbători[RECTIFICAT],tblSărbători[ZIUA]),0),2),\"\"),\"\"),\"\")","v":""},{"$f":"IFERROR(IF(AfișareSărbători,IF(INDEX(tblSărbători[],MATCH(DATE(AnCal,MONTH(G11),DAY(G11)),IF(AfișareCelebrateOficial,tblSărbători[RECTIFICAT],tblSărbători[ZIUA]),0),6),INDEX(tblSărbători[],MATCH(DATE(AnCal,MONTH(G11),DAY(G11)),IF(AfișareCelebrateOficial,tblSărbători[RECTIFICAT],tblSărbători[ZIUA]),0),2),\"\"),\"\"),\"\")","v":""},{"$f":"IFERROR(IF(AfișareSărbători,IF(INDEX(tblSărbători[],MATCH(DATE(AnCal,MONTH(H11),DAY(H11)),IF(AfișareCelebrateOficial,tblSărbători[RECTIFICAT],tblSărbători[ZIUA]),0),6),INDEX(tblSărbători[],MATCH(DATE(AnCal,MONTH(H11),DAY(H11)),IF(AfișareCelebrateOficial,tblSărbători[RECTIFICAT],tblSărbători[ZIUA]),0),2),\"\"),\"\"),\"\")","v":""}]
[null,{"$f":"Zile+DATE(AnCal,6,1)-WEEKDAY(DATE(AnCal,6,1),(ÎnceputSăptămână=\"Luni\")+1)+29","v":"2018-06-24"},"2018-06-25","2018-06-26","2018-06-27","2018-06-28","2018-06-29","2018-06-30"]
[null,{"$f":"IFERROR(IF(AfișareSărbători,IF(INDEX(tblSărbători[],MATCH(DATE(AnCal,MONTH(B13),DAY(B13)),IF(AfișareCelebrateOficial,tblSărbători[RECTIFICAT],tblSărbători[ZIUA]),0),6),INDEX(tblSărbători[],MATCH(DATE(AnCal,MONTH(B13),DAY(B13)),IF(AfișareCelebrateOficial,tblSărbători[RECTIFICAT],tblSărbători[ZIUA]),0),2),\"\"),\"\"),\"\")","v":""},{"$f":"IFERROR(IF(AfișareSărbători,IF(INDEX(tblSărbători[],MATCH(DATE(AnCal,MONTH(C13),DAY(C13)),IF(AfișareCelebrateOficial,tblSărbători[RECTIFICAT],tblSărbători[ZIUA]),0),6),INDEX(tblSărbători[],MATCH(DATE(AnCal,MONTH(C13),DAY(C13)),IF(AfișareCelebrateOficial,tblSărbători[RECTIFICAT],tblSărbători[ZIUA]),0),2),\"\"),\"\"),\"\")","v":""},{"$f":"IFERROR(IF(AfișareSărbători,IF(INDEX(tblSărbători[],MATCH(DATE(AnCal,MONTH(D13),DAY(D13)),IF(AfișareCelebrateOficial,tblSărbători[RECTIFICAT],tblSărbători[ZIUA]),0),6),INDEX(tblSărbători[],MATCH(DATE(AnCal,MONTH(D13),DAY(D13)),IF(AfișareCelebrateOficial,tblSărbători[RECTIFICAT],tblSărbători[ZIUA]),0),2),\"\"),\"\"),\"\")","v":""},{"$f":"IFERROR(IF(AfișareSărbători,IF(INDEX(tblSărbători[],MATCH(DATE(AnCal,MONTH(E13),DAY(E13)),IF(AfișareCelebrateOficial,tblSărbători[RECTIFICAT],tblSărbători[ZIUA]),0),6),INDEX(tblSărbători[],MATCH(DATE(AnCal,MONTH(E13),DAY(E13)),IF(AfișareCelebrateOficial,tblSărbători[RECTIFICAT],tblSărbători[ZIUA]),0),2),\"\"),\"\"),\"\")","v":""},{"$f":"IFERROR(IF(AfișareSărbători,IF(INDEX(tblSărbători[],MATCH(DATE(AnCal,MONTH(F13),DAY(F13)),IF(AfișareCelebrateOficial,tblSărbători[RECTIFICAT],tblSărbători[ZIUA]),0),6),INDEX(tblSărbători[],MATCH(DATE(AnCal,MONTH(F13),DAY(F13)),IF(AfișareCelebrateOficial,tblSărbători[RECTIFICAT],tblSărbători[ZIUA]),0),2),\"\"),\"\"),\"\")","v":""},{"$f":"IFERROR(IF(AfișareSărbători,IF(INDEX(tblSărbători[],MATCH(DATE(AnCal,MONTH(G13),DAY(G13)),IF(AfișareCelebrateOficial,tblSărbători[RECTIFICAT],tblSărbători[ZIUA]),0),6),INDEX(tblSărbători[],MATCH(DATE(AnCal,MONTH(G13),DAY(G13)),IF(AfișareCelebrateOficial,tblSărbători[RECTIFICAT],tblSărbători[ZIUA]),0),2),\"\"),\"\"),\"\")","v":""},{"$f":"IFERROR(IF(AfișareSărbători,IF(INDEX(tblSărbători[],MATCH(DATE(AnCal,MONTH(H13),DAY(H13)),IF(AfișareCelebrateOficial,tblSărbători[RECTIFICAT],tblSărbători[ZIUA]),0),6),INDEX(tblSărbători[],MATCH(DATE(AnCal,MONTH(H13),DAY(H13)),IF(AfișareCelebrateOficial,tblSărbători[RECTIFICAT],tblSărbători[ZIUA]),0),2),\"\"),\"\"),\"\")","v":""}]
[null,{"$f":"Zile+DATE(AnCal,6,1)-WEEKDAY(DATE(AnCal,6,1),(ÎnceputSăptămână=\"Luni\")+1)+36","v":"2018-07-01"},"2018-07-02","NOTE"]
[null,{"$f":"IFERROR(IF(AfișareSărbători,IF(INDEX(tblSărbători[],MATCH(DATE(AnCal,MONTH(B15),DAY(B15)),IF(AfișareCelebrateOficial,tblSărbători[RECTIFICAT],tblSărbători[ZIUA]),0),6),INDEX(tblSărbători[],MATCH(DATE(AnCal,MONTH(B15),DAY(B15)),IF(AfișareCelebrateOficial,tblSărbători[RECTIFICAT],tblSărbători[ZIUA]),0),2),\"\"),\"\"),\"\")","v":""},{"$f":"IFERROR(IF(AfișareSărbători,IF(INDEX(tblSărbători[],MATCH(DATE(AnCal,MONTH(C15),DAY(C15)),IF(AfișareCelebrateOficial,tblSărbători[RECTIFICAT],tblSărbători[ZIUA]),0),6),INDEX(tblSărbători[],MATCH(DATE(AnCal,MONTH(C15),DAY(C15)),IF(AfișareCelebrateOficial,tblSărbători[RECTIFICAT],tblSărbători[ZIUA]),0),2),\"\"),\"\"),\"\")","v":""}]

{"sheet":"Iulie","index":7,"n_rows":16,"n_cols":8,"rows_kept":16,"merged":[[1,1,1,3],[14,3,14,7],[15,3,15,7],[16,1,16,7]]}
[]
[null,{"$f":"B9","v":"2018-07-15"}]
[]
[null,{"$f":"ÎnceputSăptămână","v":"DUMINICĂ"},{"$f":"UPPER(TEXT(C5,\"dddd\"))","v":"LUNI"},"MARȚI","MIERCURI","JOI","VINERI","SÂMBĂTĂ"]
[null,{"$f":"Zile+DATE(AnCal,7,1)-WEEKDAY(DATE(AnCal,7,1),(ÎnceputSăptămână=\"Luni\")+1)+1","v":"2018-07-01"},"2018-07-02","2018-07-03","2018-07-04","2018-07-05","2018-07-06","2018-07-07"]
[null,{"$f":"IFERROR(IF(AfișareSărbători,IF(INDEX(tblSărbători[],MATCH(DATE(AnCal-(DAY(B5)>15)+(ROW()>6),MONTH(B5),DAY(B5)),IF(AfișareCelebrateOficial,tblSărbători[RECTIFICAT],tblSărbători[ZIUA]),0),6),INDEX(tblSărbători[],MATCH(DATE(AnCal-(DAY(B5)>15)+(ROW()>6),MONTH(B5),DAY(B5)),IF(AfișareCelebrateOficial,tblSărbători[RECTIFICAT],tblSărbători[ZIUA]),0),2),\"\"),\"\"),\"\")","v":""},{"$f":"IFERROR(IF(AfișareSărbători,IF(INDEX(tblSărbători[],MATCH(DATE(AnCal-(DAY(C5)>15)+(ROW()>6),MONTH(C5),DAY(C5)),IF(AfișareCelebrateOficial,tblSărbători[RECTIFICAT],tblSărbători[ZIUA]),0),6),INDEX(tblSărbători[],MATCH(DATE(AnCal-(DAY(C5)>15)+(ROW()>6),MONTH(C5),DAY(C5)),IF(AfișareCelebrateOficial,tblSărbători[RECTIFICAT],tblSărbători[ZIUA]),0),2),\"\"),\"\"),\"\")","v":""},{"$f":"IFERROR(IF(AfișareSărbători,IF(INDEX(tblSărbători[],MATCH(DATE(AnCal-(DAY(D5)>15)+(ROW()>6),MONTH(D5),DAY(D5)),IF(AfișareCelebrateOficial,tblSărbători[RECTIFICAT],tblSărbători[ZIUA]),0),6),INDEX(tblSărbători[],MATCH(DATE(AnCal-(DAY(D5)>15)+(ROW()>6),MONTH(D5),DAY(D5)),IF(AfișareCelebrateOficial,tblSărbători[RECTIFICAT],tblSărbători[ZIUA]),0),2),\"\"),\"\"),\"\")","v":""},{"$f":"IFERROR(IF(AfișareSărbători,IF(INDEX(tblSărbători[],MATCH(DATE(AnCal-(DAY(E5)>15)+(ROW()>6),MONTH(E5),DAY(E5)),IF(AfișareCelebrateOficial,tblSărbători[RECTIFICAT],tblSărbători[ZIUA]),0),6),INDEX(tblSărbători[],MATCH(DATE(AnCal-(DAY(E5)>15)+(ROW()>6),MONTH(E5),DAY(E5)),IF(AfișareCelebrateOficial,tblSărbători[RECTIFICAT],tblSărbători[ZIUA]),0),2),\"\"),\"\"),\"\")","v":"Ziua independenței"},{"$f":"IFERROR(IF(AfișareSărbători,IF(INDEX(tblSărbători[],MATCH(DATE(AnCal-(DAY(F5)>15)+(ROW()>6),MONTH(F5),DAY(F5)),IF(AfișareCelebrateOficial,tblSărbători[RECTIFICAT],tblSărbători[ZIUA]),0),6),INDEX(tblSărbători[],MATCH(DATE(AnCal-(DAY(F5)>15)+(ROW()>6),MONTH(F5),DAY(F5)),IF(AfișareCelebrateOficial,tblSărbători[RECTIFICAT],tblSărbători[ZIUA]),0),2),\"\"),\"\"),\"\")","v":""},{"$f":"IFERROR(IF(AfișareSărbători,IF(INDEX(tblSărbători[],MATCH(DATE(AnCal-(DAY(G5)>15)+(ROW()>6),MONTH(G5),DAY(G5)),IF(AfișareCelebrateOficial,tblSărbători[RECTIFICAT],tblSărbători[ZIUA]),0),6),INDEX(tblSărbători[],MATCH(DATE(AnCal-(DAY(G5)>15)+(ROW()>6),MONTH(G5),DAY(G5)),IF(AfișareCelebrateOficial,tblSărbători[RECTIFICAT],tblSărbători[ZIUA]),0),2),\"\"),\"\"),\"\")","v":""},{"$f":"IFERROR(IF(AfișareSărbători,IF(INDEX(tblSărbători[],MATCH(DATE(AnCal-(DAY(H5)>15)+(ROW()>6),MONTH(H5),DAY(H5)),IF(AfișareCelebrateOficial,tblSărbători[RECTIFICAT],tblSărbători[ZIUA]),0),6),INDEX(tblSărbători[],MATCH(DATE(AnCal-(DAY(H5)>15)+(ROW()>6),MONTH(H5),DAY(H5)),IF(AfișareCelebrateOficial,tblSărbători[RECTIFICAT],tblSărbători[ZIUA]),0),2),\"\"),\"\"),\"\")","v":""}]
[null,{"$f":"Zile+DATE(AnCal,7,1)-WEEKDAY(DATE(AnCal,7,1),(ÎnceputSăptămână=\"Luni\")+1)+8","v":"2018-07-08"},"2018-07-09","2018-07-10","2018-07-11","2018-07-12","2018-07-13","2018-07-14"]
[null,{"$f":"IFERROR(IF(AfișareSărbători,IF(INDEX(tblSărbători[],MATCH(DATE(AnCal,MONTH(B7),DAY(B7)),IF(AfișareCelebrateOficial,tblSărbători[RECTIFICAT],tblSărbători[ZIUA]),0),6),INDEX(tblSărbători[],MATCH(DATE(AnCal,MONTH(B7),DAY(B7)),IF(AfișareCelebrateOficial,tblSărbători[RECTIFICAT],tblSărbători[ZIUA]),0),2),\"\"),\"\"),\"\")","v":""},{"$f":"IFERROR(IF(AfișareSărbători,IF(INDEX(tblSărbători[],MATCH(DATE(AnCal,MONTH(C7),DAY(C7)),IF(AfișareCelebrateOficial,tblSărbători[RECTIFICAT],tblSărbători[ZIUA]),0),6),INDEX(tblSărbători[],MATCH(DATE(AnCal,MONTH(C7),DAY(C7)),IF(AfișareCelebrateOficial,tblSărbători[RECTIFICAT],tblSărbători[ZIUA]),0),2),\"\"),\"\"),\"\")","v":""},{"$f":"IFERROR(IF(AfișareSărbători,IF(INDEX(tblSărbători[],MATCH(DATE(AnCal,MONTH(D7),DAY(D7)),IF(AfișareCelebrateOficial,tblSărbători[RECTIFICAT],tblSărbători[ZIUA]),0),6),INDEX(tblSărbători[],MATCH(DATE(AnCal,MONTH(D7),DAY(D7)),IF(AfișareCelebrateOficial,tblSărbători[RECTIFICAT],tblSărbători[ZIUA]),0),2),\"\"),\"\"),\"\")","v":""},{"$f":"IFERROR(IF(AfișareSărbători,IF(INDEX(tblSărbători[],MATCH(DATE(AnCal,MONTH(E7),DAY(E7)),IF(AfișareCelebrateOficial,tblSărbători[RECTIFICAT],tblSărbători[ZIUA]),0),6),INDEX(tblSărbători[],MATCH(DATE(AnCal,MONTH(E7),DAY(E7)),IF(AfișareCelebrateOficial,tblSărbători[RECTIFICAT],tblSărbători[ZIUA]),0),2),\"\"),\"\"),\"\")","v":""},{"$f":"IFERROR(IF(AfișareSărbători,IF(INDEX(tblSărbători[],MATCH(DATE(AnCal,MONTH(F7),DAY(F7)),IF(AfișareCelebrateOficial,tblSărbători[RECTIFICAT],tblSărbători[ZIUA]),0),6),INDEX(tblSărbători[],MATCH(DATE(AnCal,MONTH(F7),DAY(F7)),IF(AfișareCelebrateOficial,tblSărbători[RECTIFICAT],tblSărbători[ZIUA]),0),2),\"\"),\"\"),\"\")","v":""},{"$f":"IFERROR(IF(AfișareSărbători,IF(INDEX(tblSărbători[],MATCH(DATE(AnCal,MONTH(G7),DAY(G7)),IF(AfișareCelebrateOficial,tblSărbători[RECTIFICAT],tblSărbători[ZIUA]),0),6),INDEX(tblSărbători[],MATCH(DATE(AnCal,MONTH(G7),DAY(G7)),IF(AfișareCelebrateOficial,tblSărbători[RECTIFICAT],tblSărbători[ZIUA]),0),2),\"\"),\"\"),\"\")","v":""},{"$f":"IFERROR(IF(AfișareSărbători,IF(INDEX(tblSărbători[],MATCH(DATE(AnCal,MONTH(H7),DAY(H7)),IF(AfișareCelebrateOficial,tblSărbători[RECTIFICAT],tblSărbători[ZIUA]),0),6),INDEX(tblSărbători[],MATCH(DATE(AnCal,MONTH(H7),DAY(H7)),IF(AfișareCelebrateOficial,tblSărbători[RECTIFICAT],tblSărbători[ZIUA]),0),2),\"\"),\"\"),\"\")","v":""}]
[null,{"$f":"Zile+DATE(AnCal,7,1)-WEEKDAY(DATE(AnCal,7,1),(ÎnceputSăptămână=\"Luni\")+1)+15","v":"2018-07-15"},"2018-07-16","2018-07-17","2018-07-18","2018-07-19","2018-07-20","2018-07-21"]
[null,{"$f":"IFERROR(IF(AfișareSărbători,IF(INDEX(tblSărbători[],MATCH(DATE(AnCal,MONTH(B9),DAY(B9)),IF(AfișareCelebrateOficial,tblSărbători[RECTIFICAT],tblSărbători[ZIUA]),0),6),INDEX(tblSărbători[],MATCH(DATE(AnCal,MONTH(B9),DAY(B9)),IF(AfișareCelebrateOficial,tblSărbători[RECTIFICAT],tblSărbători[ZIUA]),0),2),\"\"),\"\"),\"\")","v":""},{"$f":"IFERROR(IF(AfișareSărbători,IF(INDEX(tblSărbători[],MATCH(DATE(AnCal,MONTH(C9),DAY(C9)),IF(AfișareCelebrateOficial,tblSărbători[RECTIFICAT],tblSărbători[ZIUA]),0),6),INDEX(tblSărbători[],MATCH(DATE(AnCal,MONTH(C9),DAY(C9)),IF(AfișareCelebrateOficial,tblSărbători[RECTIFICAT],tblSărbători[ZIUA]),0),2),\"\"),\"\"),\"\")","v":""},{"$f":"IFERROR(IF(AfișareSărbători,IF(INDEX(tblSărbători[],MATCH(DATE(AnCal,MONTH(D9),DAY(D9)),IF(AfișareCelebrateOficial,tblSărbători[RECTIFICAT],tblSărbători[ZIUA]),0),6),INDEX(tblSărbători[],MATCH(DATE(AnCal,MONTH(D9),DAY(D9)),IF(AfișareCelebrateOficial,tblSărbători[RECTIFICAT],tblSărbători[ZIUA]),0),2),\"\"),\"\"),\"\")","v":""},{"$f":"IFERROR(IF(AfișareSărbători,IF(INDEX(tblSărbători[],MATCH(DATE(AnCal,MONTH(E9),DAY(E9)),IF(AfișareCelebrateOficial,tblSărbători[RECTIFICAT],tblSărbători[ZIUA]),0),6),INDEX(tblSărbători[],MATCH(DATE(AnCal,MONTH(E9),DAY(E9)),IF(AfișareCelebrateOficial,tblSărbători[RECTIFICAT],tblSărbători[ZIUA]),0),2),\"\"),\"\"),\"\")","v":""},{"$f":"IFERROR(IF(AfișareSărbători,IF(INDEX(tblSărbători[],MATCH(DATE(AnCal,MONTH(F9),DAY(F9)),IF(AfișareCelebrateOficial,tblSărbători[RECTIFICAT],tblSărbători[ZIUA]),0),6),INDEX(tblSărbători[],MATCH(DATE(AnCal,MONTH(F9),DAY(F9)),IF(AfișareCelebrateOficial,tblSărbători[RECTIFICAT],tblSărbători[ZIUA]),0),2),\"\"),\"\"),\"\")","v":""},{"$f":"IFERROR(IF(AfișareSărbători,IF(INDEX(tblSărbători[],MATCH(DATE(AnCal,MONTH(G9),DAY(G9)),IF(AfișareCelebrateOficial,tblSărbători[RECTIFICAT],tblSărbători[ZIUA]),0),6),INDEX(tblSărbători[],MATCH(DATE(AnCal,MONTH(G9),DAY(G9)),IF(AfișareCelebrateOficial,tblSărbători[RECTIFICAT],tblSărbători[ZIUA]),0),2),\"\"),\"\"),\"\")","v":""},{"$f":"IFERROR(IF(AfișareSărbători,IF(INDEX(tblSărbători[],MATCH(DATE(AnCal,MONTH(H9),DAY(H9)),IF(AfișareCelebrateOficial,tblSărbători[RECTIFICAT],tblSărbători[ZIUA]),0),6),INDEX(tblSărbători[],MATCH(DATE(AnCal,MONTH(H9),DAY(H9)),IF(AfișareCelebrateOficial,tblSărbători[RECTIFICAT],tblSărbători[ZIUA]),0),2),\"\"),\"\"),\"\")","v":""}]
[null,{"$f":"Zile+DATE(AnCal,7,1)-WEEKDAY(DATE(AnCal,7,1),(ÎnceputSăptămână=\"Luni\")+1)+22","v":"2018-07-22"},"2018-07-23","2018-07-24","2018-07-25","2018-07-26","2018-07-27","2018-07-28"]
[null,{"$f":"IFERROR(IF(AfișareSărbători,IF(INDEX(tblSărbători[],MATCH(DATE(AnCal,MONTH(B11),DAY(B11)),IF(AfișareCelebrateOficial,tblSărbători[RECTIFICAT],tblSărbători[ZIUA]),0),6),INDEX(tblSărbători[],MATCH(DATE(AnCal,MONTH(B11),DAY(B11)),IF(AfișareCelebrateOficial,tblSărbători[RECTIFICAT],tblSărbători[ZIUA]),0),2),\"\"),\"\"),\"\")","v":""},{"$f":"IFERROR(IF(AfișareSărbători,IF(INDEX(tblSărbători[],MATCH(DATE(AnCal,MONTH(C11),DAY(C11)),IF(AfișareCelebrateOficial,tblSărbători[RECTIFICAT],tblSărbători[ZIUA]),0),6),INDEX(tblSărbători[],MATCH(DATE(AnCal,MONTH(C11),DAY(C11)),IF(AfișareCelebrateOficial,tblSărbători[RECTIFICAT],tblSărbători[ZIUA]),0),2),\"\"),\"\"),\"\")","v":""},{"$f":"IFERROR(IF(AfișareSărbători,IF(INDEX(tblSărbători[],MATCH(DATE(AnCal,MONTH(D11),DAY(D11)),IF(AfișareCelebrateOficial,tblSărbători[RECTIFICAT],tblSărbători[ZIUA]),0),6),INDEX(tblSărbători[],MATCH(DATE(AnCal,MONTH(D11),DAY(D11)),IF(AfișareCelebrateOficial,tblSărbători[RECTIFICAT],tblSărbători[ZIUA]),0),2),\"\"),\"\"),\"\")","v":""},{"$f":"IFERROR(IF(AfișareSărbători,IF(INDEX(tblSărbători[],MATCH(DATE(AnCal,MONTH(E11),DAY(E11)),IF(AfișareCelebrateOficial,tblSărbători[RECTIFICAT],tblSărbători[ZIUA]),0),6),INDEX(tblSărbători[],MATCH(DATE(AnCal,MONTH(E11),DAY(E11)),IF(AfișareCelebrateOficial,tblSărbători[RECTIFICAT],tblSărbători[ZIUA]),0),2),\"\"),\"\"),\"\")","v":""},{"$f":"IFERROR(IF(AfișareSărbători,IF(INDEX(tblSărbători[],MATCH(DATE(AnCal,MONTH(F11),DAY(F11)),IF(AfișareCelebrateOficial,tblSărbători[RECTIFICAT],tblSărbători[ZIUA]),0),6),INDEX(tblSărbători[],MATCH(DATE(AnCal,MONTH(F11),DAY(F11)),IF(AfișareCelebrateOficial,tblSărbători[RECTIFICAT],tblSărbători[ZIUA]),0),2),\"\"),\"\"),\"\")","v":""},{"$f":"IFERROR(IF(AfișareSărbători,IF(INDEX(tblSărbători[],MATCH(DATE(AnCal,MONTH(G11),DAY(G11)),IF(AfișareCelebrateOficial,tblSărbători[RECTIFICAT],tblSărbători[ZIUA]),0),6),INDEX(tblSărbători[],MATCH(DATE(AnCal,MONTH(G11),DAY(G11)),IF(AfișareCelebrateOficial,tblSărbători[RECTIFICAT],tblSărbători[ZIUA]),0),2),\"\"),\"\"),\"\")","v":""},{"$f":"IFERROR(IF(AfișareSărbători,IF(INDEX(tblSărbători[],MATCH(DATE(AnCal,MONTH(H11),DAY(H11)),IF(AfișareCelebrateOficial,tblSărbători[RECTIFICAT],tblSărbători[ZIUA]),0),6),INDEX(tblSărbători[],MATCH(DATE(AnCal,MONTH(H11),DAY(H11)),IF(AfișareCelebrateOficial,tblSărbători[RECTIFICAT],tblSărbători[ZIUA]),0),2),\"\"),\"\"),\"\")","v":""}]
[null,{"$f":"Zile+DATE(AnCal,7,1)-WEEKDAY(DATE(AnCal,7,1),(ÎnceputSăptămână=\"Luni\")+1)+29","v":"2018-07-29"},"2018-07-30","2018-07-31","2018-08-01","2018-08-02","2018-08-03","2018-08-04"]
[null,{"$f":"IFERROR(IF(AfișareSărbători,IF(INDEX(tblSărbători[],MATCH(DATE(AnCal,MONTH(B13),DAY(B13)),IF(AfișareCelebrateOficial,tblSărbători[RECTIFICAT],tblSărbători[ZIUA]),0),6),INDEX(tblSărbători[],MATCH(DATE(AnCal,MONTH(B13),DAY(B13)),IF(AfișareCelebrateOficial,tblSărbători[RECTIFICAT],tblSărbători[ZIUA]),0),2),\"\"),\"\"),\"\")","v":""},{"$f":"IFERROR(IF(AfișareSărbători,IF(INDEX(tblSărbători[],MATCH(DATE(AnCal,MONTH(C13),DAY(C13)),IF(AfișareCelebrateOficial,tblSărbători[RECTIFICAT],tblSărbători[ZIUA]),0),6),INDEX(tblSărbători[],MATCH(DATE(AnCal,MONTH(C13),DAY(C13)),IF(AfișareCelebrateOficial,tblSărbători[RECTIFICAT],tblSărbători[ZIUA]),0),2),\"\"),\"\"),\"\")","v":""},{"$f":"IFERROR(IF(AfișareSărbători,IF(INDEX(tblSărbători[],MATCH(DATE(AnCal,MONTH(D13),DAY(D13)),IF(AfișareCelebrateOficial,tblSărbători[RECTIFICAT],tblSărbători[ZIUA]),0),6),INDEX(tblSărbători[],MATCH(DATE(AnCal,MONTH(D13),DAY(D13)),IF(AfișareCelebrateOficial,tblSărbători[RECTIFICAT],tblSărbători[ZIUA]),0),2),\"\"),\"\"),\"\")","v":""},{"$f":"IFERROR(IF(AfișareSărbători,IF(INDEX(tblSărbători[],MATCH(DATE(AnCal,MONTH(E13),DAY(E13)),IF(AfișareCelebrateOficial,tblSărbători[RECTIFICAT],tblSărbători[ZIUA]),0),6),INDEX(tblSărbători[],MATCH(DATE(AnCal,MONTH(E13),DAY(E13)),IF(AfișareCelebrateOficial,tblSărbători[RECTIFICAT],tblSărbători[ZIUA]),0),2),\"\"),\"\"),\"\")","v":""},{"$f":"IFERROR(IF(AfișareSărbători,IF(INDEX(tblSărbători[],MATCH(DATE(AnCal,MONTH(F13),DAY(F13)),IF(AfișareCelebrateOficial,tblSărbători[RECTIFICAT],tblSărbători[ZIUA]),0),6),INDEX(tblSărbători[],MATCH(DATE(AnCal,MONTH(F13),DAY(F13)),IF(AfișareCelebrateOficial,tblSărbători[RECTIFICAT],tblSărbători[ZIUA]),0),2),\"\"),\"\"),\"\")","v":""},{"$f":"IFERROR(IF(AfișareSărbători,IF(INDEX(tblSărbători[],MATCH(DATE(AnCal,MONTH(G13),DAY(G13)),IF(AfișareCelebrateOficial,tblSărbători[RECTIFICAT],tblSărbători[ZIUA]),0),6),INDEX(tblSărbători[],MATCH(DATE(AnCal,MONTH(G13),DAY(G13)),IF(AfișareCelebrateOficial,tblSărbători[RECTIFICAT],tblSărbători[ZIUA]),0),2),\"\"),\"\"),\"\")","v":""},{"$f":"IFERROR(IF(AfișareSărbători,IF(INDEX(tblSărbători[],MATCH(DATE(AnCal,MONTH(H13),DAY(H13)),IF(AfișareCelebrateOficial,tblSărbători[RECTIFICAT],tblSărbători[ZIUA]),0),6),INDEX(tblSărbători[],MATCH(DATE(AnCal,MONTH(H13),DAY(H13)),IF(AfișareCelebrateOficial,tblSărbători[RECTIFICAT],tblSărbători[ZIUA]),0),2),\"\"),\"\"),\"\")","v":""}]
[null,{"$f":"Zile+DATE(AnCal,7,1)-WEEKDAY(DATE(AnCal,7,1),(ÎnceputSăptămână=\"Luni\")+1)+36","v":"2018-08-05"},"2018-08-06","NOTE"]
[null,{"$f":"IFERROR(IF(AfișareSărbători,IF(INDEX(tblSărbători[],MATCH(DATE(AnCal,MONTH(B15),DAY(B15)),IF(AfișareCelebrateOficial,tblSărbători[RECTIFICAT],tblSărbători[ZIUA]),0),6),INDEX(tblSărbători[],MATCH(DATE(AnCal,MONTH(B15),DAY(B15)),IF(AfișareCelebrateOficial,tblSărbători[RECTIFICAT],tblSărbători[ZIUA]),0),2),\"\"),\"\"),\"\")","v":""},{"$f":"IFERROR(IF(AfișareSărbători,IF(INDEX(tblSărbători[],MATCH(DATE(AnCal,MONTH(C15),DAY(C15)),IF(AfișareCelebrateOficial,tblSărbători[RECTIFICAT],tblSărbători[ZIUA]),0),6),INDEX(tblSărbători[],MATCH(DATE(AnCal,MONTH(C15),DAY(C15)),IF(AfișareCelebrateOficial,tblSărbători[RECTIFICAT],tblSărbători[ZIUA]),0),2),\"\"),\"\"),\"\")","v":""}]

{"sheet":"August","index":8,"n_rows":16,"n_cols":8,"rows_kept":16,"merged":[[1,1,1,3],[14,3,14,7],[15,3,15,7],[16,1,16,7]]}
[]
[null,{"$f":"B9","v":"2018-08-12"}]
[]
[null,{"$f":"ÎnceputSăptămână","v":"DUMINICĂ"},{"$f":"UPPER(TEXT(C5,\"dddd\"))","v":"LUNI"},"MARȚI","MIERCURI","JOI","VINERI","SÂMBĂTĂ"]
[null,{"$f":"Zile+DATE(AnCal,8,1)-WEEKDAY(DATE(AnCal,8,1),(ÎnceputSăptămână=\"Luni\")+1)+1","v":"2018-07-29"},"2018-07-30","2018-07-31","2018-08-01","2018-08-02","2018-08-03","2018-08-04"]
[null,{"$f":"IFERROR(IF(AfișareSărbători,IF(INDEX(tblSărbători[],MATCH(DATE(AnCal-(DAY(B5)>15)+(ROW()>6),MONTH(B5),DAY(B5)),IF(AfișareCelebrateOficial,tblSărbători[RECTIFICAT],tblSărbători[ZIUA]),0),6),INDEX(tblSărbători[],MATCH(DATE(AnCal-(DAY(B5)>15)+(ROW()>6),MONTH(B5),DAY(B5)),IF(AfișareCelebrateOficial,tblSărbători[RECTIFICAT],tblSărbători[ZIUA]),0),2),\"\"),\"\"),\"\")","v":""},{"$f":"IFERROR(IF(AfișareSărbători,IF(INDEX(tblSărbători[],MATCH(DATE(AnCal-(DAY(C5)>15)+(ROW()>6),MONTH(C5),DAY(C5)),IF(AfișareCelebrateOficial,tblSărbători[RECTIFICAT],tblSărbători[ZIUA]),0),6),INDEX(tblSărbători[],MATCH(DATE(AnCal-(DAY(C5)>15)+(ROW()>6),MONTH(C5),DAY(C5)),IF(AfișareCelebrateOficial,tblSărbători[RECTIFICAT],tblSărbători[ZIUA]),0),2),\"\"),\"\"),\"\")","v":""},{"$f":"IFERROR(IF(AfișareSărbători,IF(INDEX(tblSărbători[],MATCH(DATE(AnCal-(DAY(D5)>15)+(ROW()>6),MONTH(D5),DAY(D5)),IF(AfișareCelebrateOficial,tblSărbători[RECTIFICAT],tblSărbători[ZIUA]),0),6),INDEX(tblSărbători[],MATCH(DATE(AnCal-(DAY(D5)>15)+(ROW()>6),MONTH(D5),DAY(D5)),IF(AfișareCelebrateOficial,tblSărbători[RECTIFICAT],tblSărbători[ZIUA]),0),2),\"\"),\"\"),\"\")","v":""},{"$f":"IFERROR(IF(AfișareSărbători,IF(INDEX(tblSărbători[],MATCH(DATE(AnCal-(DAY(E5)>15)+(ROW()>6),MONTH(E5),DAY(E5)),IF(AfișareCelebrateOficial,tblSărbători[RECTIFICAT],tblSărbători[ZIUA]),0),6),INDEX(tblSărbători[],MATCH(DATE(AnCal-(DAY(E5)>15)+(ROW()>6),MONTH(E5),DAY(E5)),IF(AfișareCelebrateOficial,tblSărbători[RECTIFICAT],tblSărbători[ZIUA]),0),2),\"\"),\"\"),\"\")","v":""},{"$f":"IFERROR(IF(AfișareSărbători,IF(INDEX(tblSărbători[],MATCH(DATE(AnCal-(DAY(F5)>15)+(ROW()>6),MONTH(F5),DAY(F5)),IF(AfișareCelebrateOficial,tblSărbători[RECTIFICAT],tblSărbători[ZIUA]),0),6),INDEX(tblSărbători[],MATCH(DATE(AnCal-(DAY(F5)>15)+(ROW()>6),MONTH(F5),DAY(F5)),IF(AfișareCelebrateOficial,tblSărbători[RECTIFICAT],tblSărbători[ZIUA]),0),2),\"\"),\"\"),\"\")","v":""},{"$f":"IFERROR(IF(AfișareSărbători,IF(INDEX(tblSărbători[],MATCH(DATE(AnCal-(DAY(G5)>15)+(ROW()>6),MONTH(G5),DAY(G5)),IF(AfișareCelebrateOficial,tblSărbători[RECTIFICAT],tblSărbători[ZIUA]),0),6),INDEX(tblSărbători[],MATCH(DATE(AnCal-(DAY(G5)>15)+(ROW()>6),MONTH(G5),DAY(G5)),IF(AfișareCelebrateOficial,tblSărbători[RECTIFICAT],tblSărbători[ZIUA]),0),2),\"\"),\"\"),\"\")","v":""},{"$f":"IFERROR(IF(AfișareSărbători,IF(INDEX(tblSărbători[],MATCH(DATE(AnCal-(DAY(H5)>15)+(ROW()>6),MONTH(H5),DAY(H5)),IF(AfișareCelebrateOficial,tblSărbători[RECTIFICAT],tblSărbători[ZIUA]),0),6),INDEX(tblSărbători[],MATCH(DATE(AnCal-(DAY(H5)>15)+(ROW()>6),MONTH(H5),DAY(H5)),IF(AfișareCelebrateOficial,tblSărbători[RECTIFICAT],tblSărbători[ZIUA]),0),2),\"\"),\"\"),\"\")","v":""}]
[null,{"$f":"Zile+DATE(AnCal,8,1)-WEEKDAY(DATE(AnCal,8,1),(ÎnceputSăptămână=\"Luni\")+1)+8","v":"2018-08-05"},"2018-08-06","2018-08-07","2018-08-08","2018-08-09","2018-08-10","2018-08-11"]
[null,{"$f":"IFERROR(IF(AfișareSărbători,IF(INDEX(tblSărbători[],MATCH(DATE(AnCal,MONTH(B7),DAY(B7)),IF(AfișareCelebrateOficial,tblSărbători[RECTIFICAT],tblSărbători[ZIUA]),0),6),INDEX(tblSărbători[],MATCH(DATE(AnCal,MONTH(B7),DAY(B7)),IF(AfișareCelebrateOficial,tblSărbători[RECTIFICAT],tblSărbători[ZIUA]),0),2),\"\"),\"\"),\"\")","v":""},{"$f":"IFERROR(IF(AfișareSărbători,IF(INDEX(tblSărbători[],MATCH(DATE(AnCal,MONTH(C7),DAY(C7)),IF(AfișareCelebrateOficial,tblSărbători[RECTIFICAT],tblSărbători[ZIUA]),0),6),INDEX(tblSărbători[],MATCH(DATE(AnCal,MONTH(C7),DAY(C7)),IF(AfișareCelebrateOficial,tblSărbători[RECTIFICAT],tblSărbători[ZIUA]),0),2),\"\"),\"\"),\"\")","v":""},{"$f":"IFERROR(IF(AfișareSărbători,IF(INDEX(tblSărbători[],MATCH(DATE(AnCal,MONTH(D7),DAY(D7)),IF(AfișareCelebrateOficial,tblSărbători[RECTIFICAT],tblSărbători[ZIUA]),0),6),INDEX(tblSărbători[],MATCH(DATE(AnCal,MONTH(D7),DAY(D7)),IF(AfișareCelebrateOficial,tblSărbători[RECTIFICAT],tblSărbători[ZIUA]),0),2),\"\"),\"\"),\"\")","v":""},{"$f":"IFERROR(IF(AfișareSărbători,IF(INDEX(tblSărbători[],MATCH(DATE(AnCal,MONTH(E7),DAY(E7)),IF(AfișareCelebrateOficial,tblSărbători[RECTIFICAT],tblSărbători[ZIUA]),0),6),INDEX(tblSărbători[],MATCH(DATE(AnCal,MONTH(E7),DAY(E7)),IF(AfișareCelebrateOficial,tblSărbători[RECTIFICAT],tblSărbători[ZIUA]),0),2),\"\"),\"\"),\"\")","v":""},{"$f":"IFERROR(IF(AfișareSărbători,IF(INDEX(tblSărbători[],MATCH(DATE(AnCal,MONTH(F7),DAY(F7)),IF(AfișareCelebrateOficial,tblSărbători[RECTIFICAT],tblSărbători[ZIUA]),0),6),INDEX(tblSărbători[],MATCH(DATE(AnCal,MONTH(F7),DAY(F7)),IF(AfișareCelebrateOficial,tblSărbători[RECTIFICAT],tblSărbători[ZIUA]),0),2),\"\"),\"\"),\"\")","v":""},{"$f":"IFERROR(IF(AfișareSărbători,IF(INDEX(tblSărbători[],MATCH(DATE(AnCal,MONTH(G7),DAY(G7)),IF(AfișareCelebrateOficial,tblSărbători[RECTIFICAT],tblSărbători[ZIUA]),0),6),INDEX(tblSărbători[],MATCH(DATE(AnCal,MONTH(G7),DAY(G7)),IF(AfișareCelebrateOficial,tblSărbători[RECTIFICAT],tblSărbători[ZIUA]),0),2),\"\"),\"\"),\"\")","v":""},{"$f":"IFERROR(IF(AfișareSărbători,IF(INDEX(tblSărbători[],MATCH(DATE(AnCal,MONTH(H7),DAY(H7)),IF(AfișareCelebrateOficial,tblSărbători[RECTIFICAT],tblSărbători[ZIUA]),0),6),INDEX(tblSărbători[],MATCH(DATE(AnCal,MONTH(H7),DAY(H7)),IF(AfișareCelebrateOficial,tblSărbători[RECTIFICAT],tblSărbători[ZIUA]),0),2),\"\"),\"\"),\"\")","v":""}]
[null,{"$f":"Zile+DATE(AnCal,8,1)-WEEKDAY(DATE(AnCal,8,1),(ÎnceputSăptămână=\"Luni\")+1)+15","v":"2018-08-12"},"2018-08-13","2018-08-14","2018-08-15","2018-08-16","2018-08-17","2018-08-18"]
[null,{"$f":"IFERROR(IF(AfișareSărbători,IF(INDEX(tblSărbători[],MATCH(DATE(AnCal,MONTH(B9),DAY(B9)),IF(AfișareCelebrateOficial,tblSărbători[RECTIFICAT],tblSărbători[ZIUA]),0),6),INDEX(tblSărbători[],MATCH(DATE(AnCal,MONTH(B9),DAY(B9)),IF(AfișareCelebrateOficial,tblSărbători[RECTIFICAT],tblSărbători[ZIUA]),0),2),\"\"),\"\"),\"\")","v":""},{"$f":"IFERROR(IF(AfișareSărbători,IF(INDEX(tblSărbători[],MATCH(DATE(AnCal,MONTH(C9),DAY(C9)),IF(AfișareCelebrateOficial,tblSărbători[RECTIFICAT],tblSărbători[ZIUA]),0),6),INDEX(tblSărbători[],MATCH(DATE(AnCal,MONTH(C9),DAY(C9)),IF(AfișareCelebrateOficial,tblSărbători[RECTIFICAT],tblSărbători[ZIUA]),0),2),\"\"),\"\"),\"\")","v":""},{"$f":"IFERROR(IF(AfișareSărbători,IF(INDEX(tblSărbători[],MATCH(DATE(AnCal,MONTH(D9),DAY(D9)),IF(AfișareCelebrateOficial,tblSărbători[RECTIFICAT],tblSărbători[ZIUA]),0),6),INDEX(tblSărbători[],MATCH(DATE(AnCal,MONTH(D9),DAY(D9)),IF(AfișareCelebrateOficial,tblSărbători[RECTIFICAT],tblSărbători[ZIUA]),0),2),\"\"),\"\"),\"\")","v":""},{"$f":"IFERROR(IF(AfișareSărbători,IF(INDEX(tblSărbători[],MATCH(DATE(AnCal,MONTH(E9),DAY(E9)),IF(AfișareCelebrateOficial,tblSărbători[RECTIFICAT],tblSărbători[ZIUA]),0),6),INDEX(tblSărbători[],MATCH(DATE(AnCal,MONTH(E9),DAY(E9)),IF(AfișareCelebrateOficial,tblSărbători[RECTIFICAT],tblSărbători[ZIUA]),0),2),\"\"),\"\"),\"\")","v":""},{"$f":"IFERROR(IF(AfișareSărbători,IF(INDEX(tblSărbători[],MATCH(DATE(AnCal,MONTH(F9),DAY(F9)),IF(AfișareCelebrateOficial,tblSărbători[RECTIFICAT],tblSărbători[ZIUA]),0),6),INDEX(tblSărbători[],MATCH(DATE(AnCal,MONTH(F9),DAY(F9)),IF(AfișareCelebrateOficial,tblSărbători[RECTIFICAT],tblSărbători[ZIUA]),0),2),\"\"),\"\"),\"\")","v":""},{"$f":"IFERROR(IF(AfișareSărbători,IF(INDEX(tblSărbători[],MATCH(DATE(AnCal,MONTH(G9),DAY(G9)),IF(AfișareCelebrateOficial,tblSărbători[RECTIFICAT],tblSărbători[ZIUA]),0),6),INDEX(tblSărbători[],MATCH(DATE(AnCal,MONTH(G9),DAY(G9)),IF(AfișareCelebrateOficial,tblSărbători[RECTIFICAT],tblSărbători[ZIUA]),0),2),\"\"),\"\"),\"\")","v":""},{"$f":"IFERROR(IF(AfișareSărbători,IF(INDEX(tblSărbători[],MATCH(DATE(AnCal,MONTH(H9),DAY(H9)),IF(AfișareCelebrateOficial,tblSărbători[RECTIFICAT],tblSărbători[ZIUA]),0),6),INDEX(tblSărbători[],MATCH(DATE(AnCal,MONTH(H9),DAY(H9)),IF(AfișareCelebrateOficial,tblSărbători[RECTIFICAT],tblSărbători[ZIUA]),0),2),\"\"),\"\"),\"\")","v":""}]
[null,{"$f":"Zile+DATE(AnCal,8,1)-WEEKDAY(DATE(AnCal,8,1),(ÎnceputSăptămână=\"Luni\")+1)+22","v":"2018-08-19"},"2018-08-20","2018-08-21","2018-08-22","2018-08-23","2018-08-24","2018-08-25"]
[null,{"$f":"IFERROR(IF(AfișareSărbători,IF(INDEX(tblSărbători[],MATCH(DATE(AnCal,MONTH(B11),DAY(B11)),IF(AfișareCelebrateOficial,tblSărbători[RECTIFICAT],tblSărbători[ZIUA]),0),6),INDEX(tblSărbători[],MATCH(DATE(AnCal,MONTH(B11),DAY(B11)),IF(AfișareCelebrateOficial,tblSărbători[RECTIFICAT],tblSărbători[ZIUA]),0),2),\"\"),\"\"),\"\")","v":""},{"$f":"IFERROR(IF(AfișareSărbători,IF(INDEX(tblSărbători[],MATCH(DATE(AnCal,MONTH(C11),DAY(C11)),IF(AfișareCelebrateOficial,tblSărbători[RECTIFICAT],tblSărbători[ZIUA]),0),6),INDEX(tblSărbători[],MATCH(DATE(AnCal,MONTH(C11),DAY(C11)),IF(AfișareCelebrateOficial,tblSărbători[RECTIFICAT],tblSărbători[ZIUA]),0),2),\"\"),\"\"),\"\")","v":""},{"$f":"IFERROR(IF(AfișareSărbători,IF(INDEX(tblSărbători[],MATCH(DATE(AnCal,MONTH(D11),DAY(D11)),IF(AfișareCelebrateOficial,tblSărbători[RECTIFICAT],tblSărbători[ZIUA]),0),6),INDEX(tblSărbători[],MATCH(DATE(AnCal,MONTH(D11),DAY(D11)),IF(AfișareCelebrateOficial,tblSărbători[RECTIFICAT],tblSărbători[ZIUA]),0),2),\"\"),\"\"),\"\")","v":""},{"$f":"IFERROR(IF(AfișareSărbători,IF(INDEX(tblSărbători[],MATCH(DATE(AnCal,MONTH(E11),DAY(E11)),IF(AfișareCelebrateOficial,tblSărbători[RECTIFICAT],tblSărbători[ZIUA]),0),6),INDEX(tblSărbători[],MATCH(DATE(AnCal,MONTH(E11),DAY(E11)),IF(AfișareCelebrateOficial,tblSărbători[RECTIFICAT],tblSărbători[ZIUA]),0),2),\"\"),\"\"),\"\")","v":""},{"$f":"IFERROR(IF(AfișareSărbători,IF(INDEX(tblSărbători[],MATCH(DATE(AnCal,MONTH(F11),DAY(F11)),IF(AfișareCelebrateOficial,tblSărbători[RECTIFICAT],tblSărbători[ZIUA]),0),6),INDEX(tblSărbători[],MATCH(DATE(AnCal,MONTH(F11),DAY(F11)),IF(AfișareCelebrateOficial,tblSărbători[RECTIFICAT],tblSărbători[ZIUA]),0),2),\"\"),\"\"),\"\")","v":""},{"$f":"IFERROR(IF(AfișareSărbători,IF(INDEX(tblSărbători[],MATCH(DATE(AnCal,MONTH(G11),DAY(G11)),IF(AfișareCelebrateOficial,tblSărbători[RECTIFICAT],tblSărbători[ZIUA]),0),6),INDEX(tblSărbători[],MATCH(DATE(AnCal,MONTH(G11),DAY(G11)),IF(AfișareCelebrateOficial,tblSărbători[RECTIFICAT],tblSărbători[ZIUA]),0),2),\"\"),\"\"),\"\")","v":""},{"$f":"IFERROR(IF(AfișareSărbători,IF(INDEX(tblSărbători[],MATCH(DATE(AnCal,MONTH(H11),DAY(H11)),IF(AfișareCelebrateOficial,tblSărbători[RECTIFICAT],tblSărbători[ZIUA]),0),6),INDEX(tblSărbători[],MATCH(DATE(AnCal,MONTH(H11),DAY(H11)),IF(AfișareCelebrateOficial,tblSărbători[RECTIFICAT],tblSărbători[ZIUA]),0),2),\"\"),\"\"),\"\")","v":""}]
[null,{"$f":"Zile+DATE(AnCal,8,1)-WEEKDAY(DATE(AnCal,8,1),(ÎnceputSăptămână=\"Luni\")+1)+29","v":"2018-08-26"},"2018-08-27","2018-08-28","2018-08-29","2018-08-30","2018-08-31","2018-09-01"]
[null,{"$f":"IFERROR(IF(AfișareSărbători,IF(INDEX(tblSărbători[],MATCH(DATE(AnCal,MONTH(B13),DAY(B13)),IF(AfișareCelebrateOficial,tblSărbători[RECTIFICAT],tblSărbători[ZIUA]),0),6),INDEX(tblSărbători[],MATCH(DATE(AnCal,MONTH(B13),DAY(B13)),IF(AfișareCelebrateOficial,tblSărbători[RECTIFICAT],tblSărbători[ZIUA]),0),2),\"\"),\"\"),\"\")","v":""},{"$f":"IFERROR(IF(AfișareSărbători,IF(INDEX(tblSărbători[],MATCH(DATE(AnCal,MONTH(C13),DAY(C13)),IF(AfișareCelebrateOficial,tblSărbători[RECTIFICAT],tblSărbători[ZIUA]),0),6),INDEX(tblSărbători[],MATCH(DATE(AnCal,MONTH(C13),DAY(C13)),IF(AfișareCelebrateOficial,tblSărbători[RECTIFICAT],tblSărbători[ZIUA]),0),2),\"\"),\"\"),\"\")","v":""},{"$f":"IFERROR(IF(AfișareSărbători,IF(INDEX(tblSărbători[],MATCH(DATE(AnCal,MONTH(D13),DAY(D13)),IF(AfișareCelebrateOficial,tblSărbători[RECTIFICAT],tblSărbători[ZIUA]),0),6),INDEX(tblSărbători[],MATCH(DATE(AnCal,MONTH(D13),DAY(D13)),IF(AfișareCelebrateOficial,tblSărbători[RECTIFICAT],tblSărbători[ZIUA]),0),2),\"\"),\"\"),\"\")","v":""},{"$f":"IFERROR(IF(AfișareSărbători,IF(INDEX(tblSărbători[],MATCH(DATE(AnCal,MONTH(E13),DAY(E13)),IF(AfișareCelebrateOficial,tblSărbători[RECTIFICAT],tblSărbători[ZIUA]),0),6),INDEX(tblSărbători[],MATCH(DATE(AnCal,MONTH(E13),DAY(E13)),IF(AfișareCelebrateOficial,tblSărbători[RECTIFICAT],tblSărbători[ZIUA]),0),2),\"\"),\"\"),\"\")","v":""},{"$f":"IFERROR(IF(AfișareSărbători,IF(INDEX(tblSărbători[],MATCH(DATE(AnCal,MONTH(F13),DAY(F13)),IF(AfișareCelebrateOficial,tblSărbători[RECTIFICAT],tblSărbători[ZIUA]),0),6),INDEX(tblSărbători[],MATCH(DATE(AnCal,MONTH(F13),DAY(F13)),IF(AfișareCelebrateOficial,tblSărbători[RECTIFICAT],tblSărbători[ZIUA]),0),2),\"\"),\"\"),\"\")","v":""},{"$f":"IFERROR(IF(AfișareSărbători,IF(INDEX(tblSărbători[],MATCH(DATE(AnCal,MONTH(G13),DAY(G13)),IF(AfișareCelebrateOficial,tblSărbători[RECTIFICAT],tblSărbători[ZIUA]),0),6),INDEX(tblSărbători[],MATCH(DATE(AnCal,MONTH(G13),DAY(G13)),IF(AfișareCelebrateOficial,tblSărbători[RECTIFICAT],tblSărbători[ZIUA]),0),2),\"\"),\"\"),\"\")","v":""},{"$f":"IFERROR(IF(AfișareSărbători,IF(INDEX(tblSărbători[],MATCH(DATE(AnCal,MONTH(H13),DAY(H13)),IF(AfișareCelebrateOficial,tblSărbători[RECTIFICAT],tblSărbători[ZIUA]),0),6),INDEX(tblSărbători[],MATCH(DATE(AnCal,MONTH(H13),DAY(H13)),IF(AfișareCelebrateOficial,tblSărbători[RECTIFICAT],tblSărbători[ZIUA]),0),2),\"\"),\"\"),\"\")","v":""}]
[null,{"$f":"Zile+DATE(AnCal,8,1)-WEEKDAY(DATE(AnCal,8,1),(ÎnceputSăptămână=\"Luni\")+1)+36","v":"2018-09-02"},"2018-09-03","NOTE"]
[null,{"$f":"IFERROR(IF(AfișareSărbători,IF(INDEX(tblSărbători[],MATCH(DATE(AnCal,MONTH(B15),DAY(B15)),IF(AfișareCelebrateOficial,tblSărbători[RECTIFICAT],tblSărbători[ZIUA]),0),6),INDEX(tblSărbători[],MATCH(DATE(AnCal,MONTH(B15),DAY(B15)),IF(AfișareCelebrateOficial,tblSărbători[RECTIFICAT],tblSărbători[ZIUA]),0),2),\"\"),\"\"),\"\")","v":""},{"$f":"IFERROR(IF(AfișareSărbători,IF(INDEX(tblSărbători[],MATCH(DATE(AnCal,MONTH(C15),DAY(C15)),IF(AfișareCelebrateOficial,tblSărbători[RECTIFICAT],tblSărbători[ZIUA]),0),6),INDEX(tblSărbători[],MATCH(DATE(AnCal,MONTH(C15),DAY(C15)),IF(AfișareCelebrateOficial,tblSărbători[RECTIFICAT],tblSărbători[ZIUA]),0),2),\"\"),\"\"),\"\")","v":"Ziua Muncii"}]

{"sheet":"Septembrie","index":9,"n_rows":16,"n_cols":8,"rows_kept":16,"merged":[[1,1,1,3],[14,3,14,7],[15,3,15,7],[16,1,16,7]]}
[]
[null,{"$f":"B9","v":"2018-09-09"}]
[]
[null,{"$f":"ÎnceputSăptămână","v":"DUMINICĂ"},{"$f":"UPPER(TEXT(C5,\"dddd\"))","v":"LUNI"},"MARȚI","MIERCURI","JOI","VINERI","SÂMBĂTĂ"]
[null,{"$f":"Zile+DATE(AnCal,9,1)-WEEKDAY(DATE(AnCal,9,1),(ÎnceputSăptămână=\"Luni\")+1)+1","v":"2018-08-26"},"2018-08-27","2018-08-28","2018-08-29","2018-08-30","2018-08-31","2018-09-01"]
[null,{"$f":"IFERROR(IF(AfișareSărbători,IF(INDEX(tblSărbători[],MATCH(DATE(AnCal-(DAY(B5)>15)+(ROW()>6),MONTH(B5),DAY(B5)),IF(AfișareCelebrateOficial,tblSărbători[RECTIFICAT],tblSărbători[ZIUA]),0),6),INDEX(tblSărbători[],MATCH(DATE(AnCal-(DAY(B5)>15)+(ROW()>6),MONTH(B5),DAY(B5)),IF(AfișareCelebrateOficial,tblSărbători[RECTIFICAT],tblSărbători[ZIUA]),0),2),\"\"),\"\"),\"\")","v":""},{"$f":"IFERROR(IF(AfișareSărbători,IF(INDEX(tblSărbători[],MATCH(DATE(AnCal-(DAY(C5)>15)+(ROW()>6),MONTH(C5),DAY(C5)),IF(AfișareCelebrateOficial,tblSărbători[RECTIFICAT],tblSărbători[ZIUA]),0),6),INDEX(tblSărbători[],MATCH(DATE(AnCal-(DAY(C5)>15)+(ROW()>6),MONTH(C5),DAY(C5)),IF(AfișareCelebrateOficial,tblSărbători[RECTIFICAT],tblSărbători[ZIUA]),0),2),\"\"),\"\"),\"\")","v":""},{"$f":"IFERROR(IF(AfișareSărbători,IF(INDEX(tblSărbători[],MATCH(DATE(AnCal-(DAY(D5)>15)+(ROW()>6),MONTH(D5),DAY(D5)),IF(AfișareCelebrateOficial,tblSărbători[RECTIFICAT],tblSărbători[ZIUA]),0),6),INDEX(tblSărbători[],MATCH(DATE(AnCal-(DAY(D5)>15)+(ROW()>6),MONTH(D5),DAY(D5)),IF(AfișareCelebrateOficial,tblSărbători[RECTIFICAT],tblSărbători[ZIUA]),0),2),\"\"),\"\"),\"\")","v":""},{"$f":"IFERROR(IF(AfișareSărbători,IF(INDEX(tblSărbători[],MATCH(DATE(AnCal-(DAY(E5)>15)+(ROW()>6),MONTH(E5),DAY(E5)),IF(AfișareCelebrateOficial,tblSărbători[RECTIFICAT],tblSărbători[ZIUA]),0),6),INDEX(tblSărbători[],MATCH(DATE(AnCal-(DAY(E5)>15)+(ROW()>6),MONTH(E5),DAY(E5)),IF(AfișareCelebrateOficial,tblSărbători[RECTIFICAT],tblSărbători[ZIUA]),0),2),\"\"),\"\"),\"\")","v":""},{"$f":"IFERROR(IF(AfișareSărbători,IF(INDEX(tblSărbători[],MATCH(DATE(AnCal-(DAY(F5)>15)+(ROW()>6),MONTH(F5),DAY(F5)),IF(AfișareCelebrateOficial,tblSărbători[RECTIFICAT],tblSărbători[ZIUA]),0),6),INDEX(tblSărbători[],MATCH(DATE(AnCal-(DAY(F5)>15)+(ROW()>6),MONTH(F5),DAY(F5)),IF(AfișareCelebrateOficial,tblSărbători[RECTIFICAT],tblSărbători[ZIUA]),0),2),\"\"),\"\"),\"\")","v":""},{"$f":"IFERROR(IF(AfișareSărbători,IF(INDEX(tblSărbători[],MATCH(DATE(AnCal-(DAY(G5)>15)+(ROW()>6),MONTH(G5),DAY(G5)),IF(AfișareCelebrateOficial,tblSărbători[RECTIFICAT],tblSărbători[ZIUA]),0),6),INDEX(tblSărbători[],MATCH(DATE(AnCal-(DAY(G5)>15)+(ROW()>6),MONTH(G5),DAY(G5)),IF(AfișareCelebrateOficial,tblSărbători[RECTIFICAT],tblSărbători[ZIUA]),0),2),\"\"),\"\"),\"\")","v":""},{"$f":"IFERROR(IF(AfișareSărbători,IF(INDEX(tblSărbători[],MATCH(DATE(AnCal-(DAY(H5)>15)+(ROW()>6),MONTH(H5),DAY(H5)),IF(AfișareCelebrateOficial,tblSărbători[RECTIFICAT],tblSărbători[ZIUA]),0),6),INDEX(tblSărbători[],MATCH(DATE(AnCal-(DAY(H5)>15)+(ROW()>6),MONTH(H5),DAY(H5)),IF(AfișareCelebrateOficial,tblSărbători[RECTIFICAT],tblSărbători[ZIUA]),0),2),\"\"),\"\"),\"\")","v":""}]
[null,{"$f":"Zile+DATE(AnCal,9,1)-WEEKDAY(DATE(AnCal,9,1),(ÎnceputSăptămână=\"Luni\")+1)+8","v":"2018-09-02"},"2018-09-03","2018-09-04","2018-09-05","2018-09-06","2018-09-07","2018-09-08"]
[null,{"$f":"IFERROR(IF(AfișareSărbători,IF(INDEX(tblSărbători[],MATCH(DATE(AnCal,MONTH(B7),DAY(B7)),IF(AfișareCelebrateOficial,tblSărbători[RECTIFICAT],tblSărbători[ZIUA]),0),6),INDEX(tblSărbători[],MATCH(DATE(AnCal,MONTH(B7),DAY(B7)),IF(AfișareCelebrateOficial,tblSărbători[RECTIFICAT],tblSărbători[ZIUA]),0),2),\"\"),\"\"),\"\")","v":""},{"$f":"IFERROR(IF(AfișareSărbători,IF(INDEX(tblSărbători[],MATCH(DATE(AnCal,MONTH(C7),DAY(C7)),IF(AfișareCelebrateOficial,tblSărbători[RECTIFICAT],tblSărbători[ZIUA]),0),6),INDEX(tblSărbători[],MATCH(DATE(AnCal,MONTH(C7),DAY(C7)),IF(AfișareCelebrateOficial,tblSărbători[RECTIFICAT],tblSărbători[ZIUA]),0),2),\"\"),\"\"),\"\")","v":"Ziua Muncii"},{"$f":"IFERROR(IF(AfișareSărbători,IF(INDEX(tblSărbători[],MATCH(DATE(AnCal,MONTH(D7),DAY(D7)),IF(AfișareCelebrateOficial,tblSărbători[RECTIFICAT],tblSărbători[ZIUA]),0),6),INDEX(tblSărbători[],MATCH(DATE(AnCal,MONTH(D7),DAY(D7)),IF(AfișareCelebrateOficial,tblSărbători[RECTIFICAT],tblSărbători[ZIUA]),0),2),\"\"),\"\"),\"\")","v":""},{"$f":"IFERROR(IF(AfișareSărbători,IF(INDEX(tblSărbători[],MATCH(DATE(AnCal,MONTH(E7),DAY(E7)),IF(AfișareCelebrateOficial,tblSărbători[RECTIFICAT],tblSărbători[ZIUA]),0),6),INDEX(tblSărbători[],MATCH(DATE(AnCal,MONTH(E7),DAY(E7)),IF(AfișareCelebrateOficial,tblSărbători[RECTIFICAT],tblSărbători[ZIUA]),0),2),\"\"),\"\"),\"\")","v":""},{"$f":"IFERROR(IF(AfișareSărbători,IF(INDEX(tblSărbători[],MATCH(DATE(AnCal,MONTH(F7),DAY(F7)),IF(AfișareCelebrateOficial,tblSărbători[RECTIFICAT],tblSărbători[ZIUA]),0),6),INDEX(tblSărbători[],MATCH(DATE(AnCal,MONTH(F7),DAY(F7)),IF(AfișareCelebrateOficial,tblSărbători[RECTIFICAT],tblSărbători[ZIUA]),0),2),\"\"),\"\"),\"\")","v":""},{"$f":"IFERROR(IF(AfișareSărbători,IF(INDEX(tblSărbători[],MATCH(DATE(AnCal,MONTH(G7),DAY(G7)),IF(AfișareCelebrateOficial,tblSărbători[RECTIFICAT],tblSărbători[ZIUA]),0),6),INDEX(tblSărbători[],MATCH(DATE(AnCal,MONTH(G7),DAY(G7)),IF(AfișareCelebrateOficial,tblSărbători[RECTIFICAT],tblSărbători[ZIUA]),0),2),\"\"),\"\"),\"\")","v":""},{"$f":"IFERROR(IF(AfișareSărbători,IF(INDEX(tblSărbători[],MATCH(DATE(AnCal,MONTH(H7),DAY(H7)),IF(AfișareCelebrateOficial,tblSărbători[RECTIFICAT],tblSărbători[ZIUA]),0),6),INDEX(tblSărbători[],MATCH(DATE(AnCal,MONTH(H7),DAY(H7)),IF(AfișareCelebrateOficial,tblSărbători[RECTIFICAT],tblSărbători[ZIUA]),0),2),\"\"),\"\"),\"\")","v":""}]
[null,{"$f":"Zile+DATE(AnCal,9,1)-WEEKDAY(DATE(AnCal,9,1),(ÎnceputSăptămână=\"Luni\")+1)+15","v":"2018-09-09"},"2018-09-10","2018-09-11","2018-09-12","2018-09-13","2018-09-14","2018-09-15"]
[null,{"$f":"IFERROR(IF(AfișareSărbători,IF(INDEX(tblSărbători[],MATCH(DATE(AnCal,MONTH(B9),DAY(B9)),IF(AfișareCelebrateOficial,tblSărbători[RECTIFICAT],tblSărbători[ZIUA]),0),6),INDEX(tblSărbători[],MATCH(DATE(AnCal,MONTH(B9),DAY(B9)),IF(AfișareCelebrateOficial,tblSărbători[RECTIFICAT],tblSărbători[ZIUA]),0),2),\"\"),\"\"),\"\")","v":""},{"$f":"IFERROR(IF(AfișareSărbători,IF(INDEX(tblSărbători[],MATCH(DATE(AnCal,MONTH(C9),DAY(C9)),IF(AfișareCelebrateOficial,tblSărbători[RECTIFICAT],tblSărbători[ZIUA]),0),6),INDEX(tblSărbători[],MATCH(DATE(AnCal,MONTH(C9),DAY(C9)),IF(AfișareCelebrateOficial,tblSărbători[RECTIFICAT],tblSărbători[ZIUA]),0),2),\"\"),\"\"),\"\")","v":""},{"$f":"IFERROR(IF(AfișareSărbători,IF(INDEX(tblSărbători[],MATCH(DATE(AnCal,MONTH(D9),DAY(D9)),IF(AfișareCelebrateOficial,tblSărbători[RECTIFICAT],tblSărbători[ZIUA]),0),6),INDEX(tblSărbători[],MATCH(DATE(AnCal,MONTH(D9),DAY(D9)),IF(AfișareCelebrateOficial,tblSărbători[RECTIFICAT],tblSărbători[ZIUA]),0),2),\"\"),\"\"),\"\")","v":""},{"$f":"IFERROR(IF(AfișareSărbători,IF(INDEX(tblSărbători[],MATCH(DATE(AnCal,MONTH(E9),DAY(E9)),IF(AfișareCelebrateOficial,tblSărbători[RECTIFICAT],tblSărbători[ZIUA]),0),6),INDEX(tblSărbători[],MATCH(DATE(AnCal,MONTH(E9),DAY(E9)),IF(AfișareCelebrateOficial,tblSărbători[RECTIFICAT],tblSărbători[ZIUA]),0),2),\"\"),\"\"),\"\")","v":""},{"$f":"IFERROR(IF(AfișareSărbători,IF(INDEX(tblSărbători[],MATCH(DATE(AnCal,MONTH(F9),DAY(F9)),IF(AfișareCelebrateOficial,tblSărbători[RECTIFICAT],tblSărbători[ZIUA]),0),6),INDEX(tblSărbători[],MATCH(DATE(AnCal,MONTH(F9),DAY(F9)),IF(AfișareCelebrateOficial,tblSărbători[RECTIFICAT],tblSărbători[ZIUA]),0),2),\"\"),\"\"),\"\")","v":""},{"$f":"IFERROR(IF(AfișareSărbători,IF(INDEX(tblSărbători[],MATCH(DATE(AnCal,MONTH(G9),DAY(G9)),IF(AfișareCelebrateOficial,tblSărbători[RECTIFICAT],tblSărbători[ZIUA]),0),6),INDEX(tblSărbători[],MATCH(DATE(AnCal,MONTH(G9),DAY(G9)),IF(AfișareCelebrateOficial,tblSărbători[RECTIFICAT],tblSărbători[ZIUA]),0),2),\"\"),\"\"),\"\")","v":""},{"$f":"IFERROR(IF(AfișareSărbători,IF(INDEX(tblSărbători[],MATCH(DATE(AnCal,MONTH(H9),DAY(H9)),IF(AfișareCelebrateOficial,tblSărbători[RECTIFICAT],tblSărbători[ZIUA]),0),6),INDEX(tblSărbători[],MATCH(DATE(AnCal,MONTH(H9),DAY(H9)),IF(AfișareCelebrateOficial,tblSărbători[RECTIFICAT],tblSărbători[ZIUA]),0),2),\"\"),\"\"),\"\")","v":""}]
[null,{"$f":"Zile+DATE(AnCal,9,1)-WEEKDAY(DATE(AnCal,9,1),(ÎnceputSăptămână=\"Luni\")+1)+22","v":"2018-09-16"},"2018-09-17","2018-09-18","2018-09-19","2018-09-20","2018-09-21","2018-09-22"]
[null,{"$f":"IFERROR(IF(AfișareSărbători,IF(INDEX(tblSărbători[],MATCH(DATE(AnCal,MONTH(B11),DAY(B11)),IF(AfișareCelebrateOficial,tblSărbători[RECTIFICAT],tblSărbători[ZIUA]),0),6),INDEX(tblSărbători[],MATCH(DATE(AnCal,MONTH(B11),DAY(B11)),IF(AfișareCelebrateOficial,tblSărbători[RECTIFICAT],tblSărbători[ZIUA]),0),2),\"\"),\"\"),\"\")","v":""},{"$f":"IFERROR(IF(AfișareSărbători,IF(INDEX(tblSărbători[],MATCH(DATE(AnCal,MONTH(C11),DAY(C11)),IF(AfișareCelebrateOficial,tblSărbători[RECTIFICAT],tblSărbători[ZIUA]),0),6),INDEX(tblSărbători[],MATCH(DATE(AnCal,MONTH(C11),DAY(C11)),IF(AfișareCelebrateOficial,tblSărbători[RECTIFICAT],tblSărbători[ZIUA]),0),2),\"\"),\"\"),\"\")","v":""},{"$f":"IFERROR(IF(AfișareSărbători,IF(INDEX(tblSărbători[],MATCH(DATE(AnCal,MONTH(D11),DAY(D11)),IF(AfișareCelebrateOficial,tblSărbători[RECTIFICAT],tblSărbători[ZIUA]),0),6),INDEX(tblSărbători[],MATCH(DATE(AnCal,MONTH(D11),DAY(D11)),IF(AfișareCelebrateOficial,tblSărbători[RECTIFICAT],tblSărbători[ZIUA]),0),2),\"\"),\"\"),\"\")","v":""},{"$f":"IFERROR(IF(AfișareSărbători,IF(INDEX(tblSărbători[],MATCH(DATE(AnCal,MONTH(E11),DAY(E11)),IF(AfișareCelebrateOficial,tblSărbători[RECTIFICAT],tblSărbători[ZIUA]),0),6),INDEX(tblSărbători[],MATCH(DATE(AnCal,MONTH(E11),DAY(E11)),IF(AfișareCelebrateOficial,tblSărbători[RECTIFICAT],tblSărbători[ZIUA]),0),2),\"\"),\"\"),\"\")","v":""},{"$f":"IFERROR(IF(AfișareSărbători,IF(INDEX(tblSărbători[],MATCH(DATE(AnCal,MONTH(F11),DAY(F11)),IF(AfișareCelebrateOficial,tblSărbători[RECTIFICAT],tblSărbători[ZIUA]),0),6),INDEX(tblSărbători[],MATCH(DATE(AnCal,MONTH(F11),DAY(F11)),IF(AfișareCelebrateOficial,tblSărbători[RECTIFICAT],tblSărbători[ZIUA]),0),2),\"\"),\"\"),\"\")","v":""},{"$f":"IFERROR(IF(AfișareSărbători,IF(INDEX(tblSărbători[],MATCH(DATE(AnCal,MONTH(G11),DAY(G11)),IF(AfișareCelebrateOficial,tblSărbători[RECTIFICAT],tblSărbători[ZIUA]),0),6),INDEX(tblSărbători[],MATCH(DATE(AnCal,MONTH(G11),DAY(G11)),IF(AfișareCelebrateOficial,tblSărbători[RECTIFICAT],tblSărbători[ZIUA]),0),2),\"\"),\"\"),\"\")","v":""},{"$f":"IFERROR(IF(AfișareSărbători,IF(INDEX(tblSărbători[],MATCH(DATE(AnCal,MONTH(H11),DAY(H11)),IF(AfișareCelebrateOficial,tblSărbători[RECTIFICAT],tblSărbători[ZIUA]),0),6),INDEX(tblSărbători[],MATCH(DATE(AnCal,MONTH(H11),DAY(H11)),IF(AfișareCelebrateOficial,tblSărbători[RECTIFICAT],tblSărbători[ZIUA]),0),2),\"\"),\"\"),\"\")","v":""}]
[null,{"$f":"Zile+DATE(AnCal,9,1)-WEEKDAY(DATE(AnCal,9,1),(ÎnceputSăptămână=\"Luni\")+1)+29","v":"2018-09-23"},"2018-09-24","2018-09-25","2018-09-26","2018-09-27","2018-09-28","2018-09-29"]
[null,{"$f":"IFERROR(IF(AfișareSărbători,IF(INDEX(tblSărbători[],MATCH(DATE(AnCal,MONTH(B13),DAY(B13)),IF(AfișareCelebrateOficial,tblSărbători[RECTIFICAT],tblSărbători[ZIUA]),0),6),INDEX(tblSărbători[],MATCH(DATE(AnCal,MONTH(B13),DAY(B13)),IF(AfișareCelebrateOficial,tblSărbători[RECTIFICAT],tblSărbători[ZIUA]),0),2),\"\"),\"\"),\"\")","v":""},{"$f":"IFERROR(IF(AfișareSărbători,IF(INDEX(tblSărbători[],MATCH(DATE(AnCal,MONTH(C13),DAY(C13)),IF(AfișareCelebrateOficial,tblSărbători[RECTIFICAT],tblSărbători[ZIUA]),0),6),INDEX(tblSărbători[],MATCH(DATE(AnCal,MONTH(C13),DAY(C13)),IF(AfișareCelebrateOficial,tblSărbători[RECTIFICAT],tblSărbători[ZIUA]),0),2),\"\"),\"\"),\"\")","v":""},{"$f":"IFERROR(IF(AfișareSărbători,IF(INDEX(tblSărbători[],MATCH(DATE(AnCal,MONTH(D13),DAY(D13)),IF(AfișareCelebrateOficial,tblSărbători[RECTIFICAT],tblSărbători[ZIUA]),0),6),INDEX(tblSărbători[],MATCH(DATE(AnCal,MONTH(D13),DAY(D13)),IF(AfișareCelebrateOficial,tblSărbători[RECTIFICAT],tblSărbători[ZIUA]),0),2),\"\"),\"\"),\"\")","v":""},{"$f":"IFERROR(IF(AfișareSărbători,IF(INDEX(tblSărbători[],MATCH(DATE(AnCal,MONTH(E13),DAY(E13)),IF(AfișareCelebrateOficial,tblSărbători[RECTIFICAT],tblSărbători[ZIUA]),0),6),INDEX(tblSărbători[],MATCH(DATE(AnCal,MONTH(E13),DAY(E13)),IF(AfișareCelebrateOficial,tblSărbători[RECTIFICAT],tblSărbători[ZIUA]),0),2),\"\"),\"\"),\"\")","v":""},{"$f":"IFERROR(IF(AfișareSărbători,IF(INDEX(tblSărbători[],MATCH(DATE(AnCal,MONTH(F13),DAY(F13)),IF(AfișareCelebrateOficial,tblSărbători[RECTIFICAT],tblSărbători[ZIUA]),0),6),INDEX(tblSărbători[],MATCH(DATE(AnCal,MONTH(F13),DAY(F13)),IF(AfișareCelebrateOficial,tblSărbători[RECTIFICAT],tblSărbători[ZIUA]),0),2),\"\"),\"\"),\"\")","v":""},{"$f":"IFERROR(IF(AfișareSărbători,IF(INDEX(tblSărbători[],MATCH(DATE(AnCal,MONTH(G13),DAY(G13)),IF(AfișareCelebrateOficial,tblSărbători[RECTIFICAT],tblSărbători[ZIUA]),0),6),INDEX(tblSărbători[],MATCH(DATE(AnCal,MONTH(G13),DAY(G13)),IF(AfișareCelebrateOficial,tblSărbători[RECTIFICAT],tblSărbători[ZIUA]),0),2),\"\"),\"\"),\"\")","v":""},{"$f":"IFERROR(IF(AfișareSărbători,IF(INDEX(tblSărbători[],MATCH(DATE(AnCal,MONTH(H13),DAY(H13)),IF(AfișareCelebrateOficial,tblSărbători[RECTIFICAT],tblSărbători[ZIUA]),0),6),INDEX(tblSărbători[],MATCH(DATE(AnCal,MONTH(H13),DAY(H13)),IF(AfișareCelebrateOficial,tblSărbători[RECTIFICAT],tblSărbători[ZIUA]),0),2),\"\"),\"\"),\"\")","v":""}]
[null,{"$f":"Zile+DATE(AnCal,9,1)-WEEKDAY(DATE(AnCal,9,1),(ÎnceputSăptămână=\"Luni\")+1)+36","v":"2018-09-30"},"2018-10-01","NOTE"]
[null,{"$f":"IFERROR(IF(AfișareSărbători,IF(INDEX(tblSărbători[],MATCH(DATE(AnCal,MONTH(B15),DAY(B15)),IF(AfișareCelebrateOficial,tblSărbători[RECTIFICAT],tblSărbători[ZIUA]),0),6),INDEX(tblSărbători[],MATCH(DATE(AnCal,MONTH(B15),DAY(B15)),IF(AfișareCelebrateOficial,tblSărbători[RECTIFICAT],tblSărbători[ZIUA]),0),2),\"\"),\"\"),\"\")","v":""},{"$f":"IFERROR(IF(AfișareSărbători,IF(INDEX(tblSărbători[],MATCH(DATE(AnCal,MONTH(C15),DAY(C15)),IF(AfișareCelebrateOficial,tblSărbători[RECTIFICAT],tblSărbători[ZIUA]),0),6),INDEX(tblSărbători[],MATCH(DATE(AnCal,MONTH(C15),DAY(C15)),IF(AfișareCelebrateOficial,tblSărbători[RECTIFICAT],tblSărbători[ZIUA]),0),2),\"\"),\"\"),\"\")","v":""}]

{"sheet":"Octombrie","index":10,"n_rows":16,"n_cols":8,"rows_kept":16,"merged":[[1,1,1,3],[14,3,14,7],[15,3,15,7],[16,1,16,7]]}
[]
[null,{"$f":"B9","v":"2018-10-14"}]
[]
[null,{"$f":"ÎnceputSăptămână","v":"DUMINICĂ"},{"$f":"UPPER(TEXT(C5,\"dddd\"))","v":"LUNI"},"MARȚI","MIERCURI","JOI","VINERI","SÂMBĂTĂ"]
[null,{"$f":"Zile+DATE(AnCal,10,1)-WEEKDAY(DATE(AnCal,10,1),(ÎnceputSăptămână=\"Luni\")+1)+1","v":"2018-09-30"},"2018-10-01","2018-10-02","2018-10-03","2018-10-04","2018-10-05","2018-10-06"]
[null,{"$f":"IFERROR(IF(AfișareSărbători,IF(INDEX(tblSărbători[],MATCH(DATE(AnCal-(DAY(B5)>15)+(ROW()>6),MONTH(B5),DAY(B5)),IF(AfișareCelebrateOficial,tblSărbători[RECTIFICAT],tblSărbători[ZIUA]),0),6),INDEX(tblSărbători[],MATCH(DATE(AnCal-(DAY(B5)>15)+(ROW()>6),MONTH(B5),DAY(B5)),IF(AfișareCelebrateOficial,tblSărbători[RECTIFICAT],tblSărbători[ZIUA]),0),2),\"\"),\"\"),\"\")","v":""},{"$f":"IFERROR(IF(AfișareSărbători,IF(INDEX(tblSărbători[],MATCH(DATE(AnCal-(DAY(C5)>15)+(ROW()>6),MONTH(C5),DAY(C5)),IF(AfișareCelebrateOficial,tblSărbători[RECTIFICAT],tblSărbători[ZIUA]),0),6),INDEX(tblSărbători[],MATCH(DATE(AnCal-(DAY(C5)>15)+(ROW()>6),MONTH(C5),DAY(C5)),IF(AfișareCelebrateOficial,tblSărbători[RECTIFICAT],tblSărbători[ZIUA]),0),2),\"\"),\"\"),\"\")","v":""},{"$f":"IFERROR(IF(AfișareSărbători,IF(INDEX(tblSărbători[],MATCH(DATE(AnCal-(DAY(D5)>15)+(ROW()>6),MONTH(D5),DAY(D5)),IF(AfișareCelebrateOficial,tblSărbători[RECTIFICAT],tblSărbători[ZIUA]),0),6),INDEX(tblSărbători[],MATCH(DATE(AnCal-(DAY(D5)>15)+(ROW()>6),MONTH(D5),DAY(D5)),IF(AfișareCelebrateOficial,tblSărbători[RECTIFICAT],tblSărbători[ZIUA]),0),2),\"\"),\"\"),\"\")","v":""},{"$f":"IFERROR(IF(AfișareSărbători,IF(INDEX(tblSărbători[],MATCH(DATE(AnCal-(DAY(E5)>15)+(ROW()>6),MONTH(E5),DAY(E5)),IF(AfișareCelebrateOficial,tblSărbători[RECTIFICAT],tblSărbători[ZIUA]),0),6),INDEX(tblSărbători[],MATCH(DATE(AnCal-(DAY(E5)>15)+(ROW()>6),MONTH(E5),DAY(E5)),IF(AfișareCelebrateOficial,tblSărbători[RECTIFICAT],tblSărbători[ZIUA]),0),2),\"\"),\"\"),\"\")","v":""},{"$f":"IFERROR(IF(AfișareSărbători,IF(INDEX(tblSărbători[],MATCH(DATE(AnCal-(DAY(F5)>15)+(ROW()>6),MONTH(F5),DAY(F5)),IF(AfișareCelebrateOficial,tblSărbători[RECTIFICAT],tblSărbători[ZIUA]),0),6),INDEX(tblSărbători[],MATCH(DATE(AnCal-(DAY(F5)>15)+(ROW()>6),MONTH(F5),DAY(F5)),IF(AfișareCelebrateOficial,tblSărbători[RECTIFICAT],tblSărbători[ZIUA]),0),2),\"\"),\"\"),\"\")","v":""},{"$f":"IFERROR(IF(AfișareSărbători,IF(INDEX(tblSărbători[],MATCH(DATE(AnCal-(DAY(G5)>15)+(ROW()>6),MONTH(G5),DAY(G5)),IF(AfișareCelebrateOficial,tblSărbători[RECTIFICAT],tblSărbători[ZIUA]),0),6),INDEX(tblSărbători[],MATCH(DATE(AnCal-(DAY(G5)>15)+(ROW()>6),MONTH(G5),DAY(G5)),IF(AfișareCelebrateOficial,tblSărbători[RECTIFICAT],tblSărbători[ZIUA]),0),2),\"\"),\"\"),\"\")","v":""},{"$f":"IFERROR(IF(AfișareSărbători,IF(INDEX(tblSărbători[],MATCH(DATE(AnCal-(DAY(H5)>15)+(ROW()>6),MONTH(H5),DAY(H5)),IF(AfișareCelebrateOficial,tblSărbători[RECTIFICAT],tblSărbători[ZIUA]),0),6),INDEX(tblSărbători[],MATCH(DATE(AnCal-(DAY(H5)>15)+(ROW()>6),MONTH(H5),DAY(H5)),IF(AfișareCelebrateOficial,tblSărbători[RECTIFICAT],tblSărbători[ZIUA]),0),2),\"\"),\"\"),\"\")","v":""}]
[null,{"$f":"Zile+DATE(AnCal,10,1)-WEEKDAY(DATE(AnCal,10,1),(ÎnceputSăptămână=\"Luni\")+1)+8","v":"2018-10-07"},"2018-10-08","2018-10-09","2018-10-10","2018-10-11","2018-10-12","2018-10-13"]
[null,{"$f":"IFERROR(IF(AfișareSărbători,IF(INDEX(tblSărbători[],MATCH(DATE(AnCal,MONTH(B7),DAY(B7)),IF(AfișareCelebrateOficial,tblSărbători[RECTIFICAT],tblSărbători[ZIUA]),0),6),INDEX(tblSărbători[],MATCH(DATE(AnCal,MONTH(B7),DAY(B7)),IF(AfișareCelebrateOficial,tblSărbători[RECTIFICAT],tblSărbători[ZIUA]),0),2),\"\"),\"\"),\"\")","v":""},{"$f":"IFERROR(IF(AfișareSărbători,IF(INDEX(tblSărbători[],MATCH(DATE(AnCal,MONTH(C7),DAY(C7)),IF(AfișareCelebrateOficial,tblSărbători[RECTIFICAT],tblSărbători[ZIUA]),0),6),INDEX(tblSărbători[],MATCH(DATE(AnCal,MONTH(C7),DAY(C7)),IF(AfișareCelebrateOficial,tblSărbători[RECTIFICAT],tblSărbători[ZIUA]),0),2),\"\"),\"\"),\"\")","v":"Ziua lui Columb"},{"$f":"IFERROR(IF(AfișareSărbători,IF(INDEX(tblSărbători[],MATCH(DATE(AnCal,MONTH(D7),DAY(D7)),IF(AfișareCelebrateOficial,tblSărbători[RECTIFICAT],tblSărbători[ZIUA]),0),6),INDEX(tblSărbători[],MATCH(DATE(AnCal,MONTH(D7),DAY(D7)),IF(AfișareCelebrateOficial,tblSărbători[RECTIFICAT],tblSărbători[ZIUA]),0),2),\"\"),\"\"),\"\")","v":""},{"$f":"IFERROR(IF(AfișareSărbători,IF(INDEX(tblSărbători[],MATCH(DATE(AnCal,MONTH(E7),DAY(E7)),IF(AfișareCelebrateOficial,tblSărbători[RECTIFICAT],tblSărbători[ZIUA]),0),6),INDEX(tblSărbători[],MATCH(DATE(AnCal,MONTH(E7),DAY(E7)),IF(AfișareCelebrateOficial,tblSărbători[RECTIFICAT],tblSărbători[ZIUA]),0),2),\"\"),\"\"),\"\")","v":""},{"$f":"IFERROR(IF(AfișareSărbători,IF(INDEX(tblSărbători[],MATCH(DATE(AnCal,MONTH(F7),DAY(F7)),IF(AfișareCelebrateOficial,tblSărbători[RECTIFICAT],tblSărbători[ZIUA]),0),6),INDEX(tblSărbători[],MATCH(DATE(AnCal,MONTH(F7),DAY(F7)),IF(AfișareCelebrateOficial,tblSărbători[RECTIFICAT],tblSărbători[ZIUA]),0),2),\"\"),\"\"),\"\")","v":""},{"$f":"IFERROR(IF(AfișareSărbători,IF(INDEX(tblSărbători[],MATCH(DATE(AnCal,MONTH(G7),DAY(G7)),IF(AfișareCelebrateOficial,tblSărbători[RECTIFICAT],tblSărbători[ZIUA]),0),6),INDEX(tblSărbători[],MATCH(DATE(AnCal,MONTH(G7),DAY(G7)),IF(AfișareCelebrateOficial,tblSărbători[RECTIFICAT],tblSărbători[ZIUA]),0),2),\"\"),\"\"),\"\")","v":""},{"$f":"IFERROR(IF(AfișareSărbători,IF(INDEX(tblSărbători[],MATCH(DATE(AnCal,MONTH(H7),DAY(H7)),IF(AfișareCelebrateOficial,tblSărbători[RECTIFICAT],tblSărbători[ZIUA]),0),6),INDEX(tblSărbători[],MATCH(DATE(AnCal,MONTH(H7),DAY(H7)),IF(AfișareCelebrateOficial,tblSărbători[RECTIFICAT],tblSărbători[ZIUA]),0),2),\"\"),\"\"),\"\")","v":""}]
[null,{"$f":"Zile+DATE(AnCal,10,1)-WEEKDAY(DATE(AnCal,10,1),(ÎnceputSăptămână=\"Luni\")+1)+15","v":"2018-10-14"},"2018-10-15","2018-10-16","2018-10-17","2018-10-18","2018-10-19","2018-10-20"]
[null,{"$f":"IFERROR(IF(AfișareSărbători,IF(INDEX(tblSărbători[],MATCH(DATE(AnCal,MONTH(B9),DAY(B9)),IF(AfișareCelebrateOficial,tblSărbători[RECTIFICAT],tblSărbători[ZIUA]),0),6),INDEX(tblSărbători[],MATCH(DATE(AnCal,MONTH(B9),DAY(B9)),IF(AfișareCelebrateOficial,tblSărbători[RECTIFICAT],tblSărbători[ZIUA]),0),2),\"\"),\"\"),\"\")","v":""},{"$f":"IFERROR(IF(AfișareSărbători,IF(INDEX(tblSărbători[],MATCH(DATE(AnCal,MONTH(C9),DAY(C9)),IF(AfișareCelebrateOficial,tblSărbători[RECTIFICAT],tblSărbători[ZIUA]),0),6),INDEX(tblSărbători[],MATCH(DATE(AnCal,MONTH(C9),DAY(C9)),IF(AfișareCelebrateOficial,tblSărbători[RECTIFICAT],tblSărbători[ZIUA]),0),2),\"\"),\"\"),\"\")","v":""},{"$f":"IFERROR(IF(AfișareSărbători,IF(INDEX(tblSărbători[],MATCH(DATE(AnCal,MONTH(D9),DAY(D9)),IF(AfișareCelebrateOficial,tblSărbători[RECTIFICAT],tblSărbători[ZIUA]),0),6),INDEX(tblSărbători[],MATCH(DATE(AnCal,MONTH(D9),DAY(D9)),IF(AfișareCelebrateOficial,tblSărbători[RECTIFICAT],tblSărbători[ZIUA]),0),2),\"\"),\"\"),\"\")","v":""},{"$f":"IFERROR(IF(AfișareSărbători,IF(INDEX(tblSărbători[],MATCH(DATE(AnCal,MONTH(E9),DAY(E9)),IF(AfișareCelebrateOficial,tblSărbători[RECTIFICAT],tblSărbători[ZIUA]),0),6),INDEX(tblSărbători[],MATCH(DATE(AnCal,MONTH(E9),DAY(E9)),IF(AfișareCelebrateOficial,tblSărbători[RECTIFICAT],tblSărbători[ZIUA]),0),2),\"\"),\"\"),\"\")","v":""},{"$f":"IFERROR(IF(AfișareSărbători,IF(INDEX(tblSărbători[],MATCH(DATE(AnCal,MONTH(F9),DAY(F9)),IF(AfișareCelebrateOficial,tblSărbători[RECTIFICAT],tblSărbători[ZIUA]),0),6),INDEX(tblSărbători[],MATCH(DATE(AnCal,MONTH(F9),DAY(F9)),IF(AfișareCelebrateOficial,tblSărbători[RECTIFICAT],tblSărbători[ZIUA]),0),2),\"\"),\"\"),\"\")","v":""},{"$f":"IFERROR(IF(AfișareSărbători,IF(INDEX(tblSărbători[],MATCH(DATE(AnCal,MONTH(G9),DAY(G9)),IF(AfișareCelebrateOficial,tblSărbători[RECTIFICAT],tblSărbători[ZIUA]),0),6),INDEX(tblSărbători[],MATCH(DATE(AnCal,MONTH(G9),DAY(G9)),IF(AfișareCelebrateOficial,tblSărbători[RECTIFICAT],tblSărbători[ZIUA]),0),2),\"\"),\"\"),\"\")","v":""},{"$f":"IFERROR(IF(AfișareSărbători,IF(INDEX(tblSărbători[],MATCH(DATE(AnCal,MONTH(H9),DAY(H9)),IF(AfișareCelebrateOficial,tblSărbători[RECTIFICAT],tblSărbători[ZIUA]),0),6),INDEX(tblSărbători[],MATCH(DATE(AnCal,MONTH(H9),DAY(H9)),IF(AfișareCelebrateOficial,tblSărbători[RECTIFICAT],tblSărbători[ZIUA]),0),2),\"\"),\"\"),\"\")","v":""}]
[null,{"$f":"Zile+DATE(AnCal,10,1)-WEEKDAY(DATE(AnCal,10,1),(ÎnceputSăptămână=\"Luni\")+1)+22","v":"2018-10-21"},"2018-10-22","2018-10-23","2018-10-24","2018-10-25","2018-10-26","2018-10-27"]
[null,{"$f":"IFERROR(IF(AfișareSărbători,IF(INDEX(tblSărbători[],MATCH(DATE(AnCal,MONTH(B11),DAY(B11)),IF(AfișareCelebrateOficial,tblSărbători[RECTIFICAT],tblSărbători[ZIUA]),0),6),INDEX(tblSărbători[],MATCH(DATE(AnCal,MONTH(B11),DAY(B11)),IF(AfișareCelebrateOficial,tblSărbători[RECTIFICAT],tblSărbători[ZIUA]),0),2),\"\"),\"\"),\"\")","v":""},{"$f":"IFERROR(IF(AfișareSărbători,IF(INDEX(tblSărbători[],MATCH(DATE(AnCal,MONTH(C11),DAY(C11)),IF(AfișareCelebrateOficial,tblSărbători[RECTIFICAT],tblSărbători[ZIUA]),0),6),INDEX(tblSărbători[],MATCH(DATE(AnCal,MONTH(C11),DAY(C11)),IF(AfișareCelebrateOficial,tblSărbători[RECTIFICAT],tblSărbători[ZIUA]),0),2),\"\"),\"\"),\"\")","v":""},{"$f":"IFERROR(IF(AfișareSărbători,IF(INDEX(tblSărbători[],MATCH(DATE(AnCal,MONTH(D11),DAY(D11)),IF(AfișareCelebrateOficial,tblSărbători[RECTIFICAT],tblSărbători[ZIUA]),0),6),INDEX(tblSărbători[],MATCH(DATE(AnCal,MONTH(D11),DAY(D11)),IF(AfișareCelebrateOficial,tblSărbători[RECTIFICAT],tblSărbători[ZIUA]),0),2),\"\"),\"\"),\"\")","v":""},{"$f":"IFERROR(IF(AfișareSărbători,IF(INDEX(tblSărbători[],MATCH(DATE(AnCal,MONTH(E11),DAY(E11)),IF(AfișareCelebrateOficial,tblSărbători[RECTIFICAT],tblSărbători[ZIUA]),0),6),INDEX(tblSărbători[],MATCH(DATE(AnCal,MONTH(E11),DAY(E11)),IF(AfișareCelebrateOficial,tblSărbători[RECTIFICAT],tblSărbători[ZIUA]),0),2),\"\"),\"\"),\"\")","v":""},{"$f":"IFERROR(IF(AfișareSărbători,IF(INDEX(tblSărbători[],MATCH(DATE(AnCal,MONTH(F11),DAY(F11)),IF(AfișareCelebrateOficial,tblSărbători[RECTIFICAT],tblSărbători[ZIUA]),0),6),INDEX(tblSărbători[],MATCH(DATE(AnCal,MONTH(F11),DAY(F11)),IF(AfișareCelebrateOficial,tblSărbători[RECTIFICAT],tblSărbători[ZIUA]),0),2),\"\"),\"\"),\"\")","v":""},{"$f":"IFERROR(IF(AfișareSărbători,IF(INDEX(tblSărbători[],MATCH(DATE(AnCal,MONTH(G11),DAY(G11)),IF(AfișareCelebrateOficial,tblSărbători[RECTIFICAT],tblSărbători[ZIUA]),0),6),INDEX(tblSărbători[],MATCH(DATE(AnCal,MONTH(G11),DAY(G11)),IF(AfișareCelebrateOficial,tblSărbători[RECTIFICAT],tblSărbători[ZIUA]),0),2),\"\"),\"\"),\"\")","v":""},{"$f":"IFERROR(IF(AfișareSărbători,IF(INDEX(tblSărbători[],MATCH(DATE(AnCal,MONTH(H11),DAY(H11)),IF(AfișareCelebrateOficial,tblSărbători[RECTIFICAT],tblSărbători[ZIUA]),0),6),INDEX(tblSărbători[],MATCH(DATE(AnCal,MONTH(H11),DAY(H11)),IF(AfișareCelebrateOficial,tblSărbători[RECTIFICAT],tblSărbători[ZIUA]),0),2),\"\"),\"\"),\"\")","v":""}]
[null,{"$f":"Zile+DATE(AnCal,10,1)-WEEKDAY(DATE(AnCal,10,1),(ÎnceputSăptămână=\"Luni\")+1)+29","v":"2018-10-28"},"2018-10-29","2018-10-30","2018-10-31","2018-11-01","2018-11-02","2018-11-03"]
[null,{"$f":"IFERROR(IF(AfișareSărbători,IF(INDEX(tblSărbători[],MATCH(DATE(AnCal,MONTH(B13),DAY(B13)),IF(AfișareCelebrateOficial,tblSărbători[RECTIFICAT],tblSărbători[ZIUA]),0),6),INDEX(tblSărbători[],MATCH(DATE(AnCal,MONTH(B13),DAY(B13)),IF(AfișareCelebrateOficial,tblSărbători[RECTIFICAT],tblSărbători[ZIUA]),0),2),\"\"),\"\"),\"\")","v":""},{"$f":"IFERROR(IF(AfișareSărbători,IF(INDEX(tblSărbători[],MATCH(DATE(AnCal,MONTH(C13),DAY(C13)),IF(AfișareCelebrateOficial,tblSărbători[RECTIFICAT],tblSărbători[ZIUA]),0),6),INDEX(tblSărbători[],MATCH(DATE(AnCal,MONTH(C13),DAY(C13)),IF(AfișareCelebrateOficial,tblSărbători[RECTIFICAT],tblSărbători[ZIUA]),0),2),\"\"),\"\"),\"\")","v":""},{"$f":"IFERROR(IF(AfișareSărbători,IF(INDEX(tblSărbători[],MATCH(DATE(AnCal,MONTH(D13),DAY(D13)),IF(AfișareCelebrateOficial,tblSărbători[RECTIFICAT],tblSărbători[ZIUA]),0),6),INDEX(tblSărbători[],MATCH(DATE(AnCal,MONTH(D13),DAY(D13)),IF(AfișareCelebrateOficial,tblSărbători[RECTIFICAT],tblSărbători[ZIUA]),0),2),\"\"),\"\"),\"\")","v":""},{"$f":"IFERROR(IF(AfișareSărbători,IF(INDEX(tblSărbători[],MATCH(DATE(AnCal,MONTH(E13),DAY(E13)),IF(AfișareCelebrateOficial,tblSărbători[RECTIFICAT],tblSărbători[ZIUA]),0),6),INDEX(tblSărbători[],MATCH(DATE(AnCal,MONTH(E13),DAY(E13)),IF(AfișareCelebrateOficial,tblSărbători[RECTIFICAT],tblSărbători[ZIUA]),0),2),\"\"),\"\"),\"\")","v":""},{"$f":"IFERROR(IF(AfișareSărbători,IF(INDEX(tblSărbători[],MATCH(DATE(AnCal,MONTH(F13),DAY(F13)),IF(AfișareCelebrateOficial,tblSărbători[RECTIFICAT],tblSărbători[ZIUA]),0),6),INDEX(tblSărbători[],MATCH(DATE(AnCal,MONTH(F13),DAY(F13)),IF(AfișareCelebrateOficial,tblSărbători[RECTIFICAT],tblSărbători[ZIUA]),0),2),\"\"),\"\"),\"\")","v":""},{"$f":"IFERROR(IF(AfișareSărbători,IF(INDEX(tblSărbători[],MATCH(DATE(AnCal,MONTH(G13),DAY(G13)),IF(AfișareCelebrateOficial,tblSărbători[RECTIFICAT],tblSărbători[ZIUA]),0),6),INDEX(tblSărbători[],MATCH(DATE(AnCal,MONTH(G13),DAY(G13)),IF(AfișareCelebrateOficial,tblSărbători[RECTIFICAT],tblSărbători[ZIUA]),0),2),\"\"),\"\"),\"\")","v":""},{"$f":"IFERROR(IF(AfișareSărbători,IF(INDEX(tblSărbători[],MATCH(DATE(AnCal,MONTH(H13),DAY(H13)),IF(AfișareCelebrateOficial,tblSărbători[RECTIFICAT],tblSărbători[ZIUA]),0),6),INDEX(tblSărbători[],MATCH(DATE(AnCal,MONTH(H13),DAY(H13)),IF(AfișareCelebrateOficial,tblSărbători[RECTIFICAT],tblSărbători[ZIUA]),0),2),\"\"),\"\"),\"\")","v":""}]
[null,{"$f":"Zile+DATE(AnCal,10,1)-WEEKDAY(DATE(AnCal,10,1),(ÎnceputSăptămână=\"Luni\")+1)+36","v":"2018-11-04"},"2018-11-05","NOTE"]
[null,{"$f":"IFERROR(IF(AfișareSărbători,IF(INDEX(tblSărbători[],MATCH(DATE(AnCal,MONTH(B15),DAY(B15)),IF(AfișareCelebrateOficial,tblSărbători[RECTIFICAT],tblSărbători[ZIUA]),0),6),INDEX(tblSărbători[],MATCH(DATE(AnCal,MONTH(B15),DAY(B15)),IF(AfișareCelebrateOficial,tblSărbători[RECTIFICAT],tblSărbători[ZIUA]),0),2),\"\"),\"\"),\"\")","v":""},{"$f":"IFERROR(IF(AfișareSărbători,IF(INDEX(tblSărbători[],MATCH(DATE(AnCal,MONTH(C15),DAY(C15)),IF(AfișareCelebrateOficial,tblSărbători[RECTIFICAT],tblSărbători[ZIUA]),0),6),INDEX(tblSărbători[],MATCH(DATE(AnCal,MONTH(C15),DAY(C15)),IF(AfișareCelebrateOficial,tblSărbători[RECTIFICAT],tblSărbători[ZIUA]),0),2),\"\"),\"\"),\"\")","v":""}]

{"sheet":"Noiembrie","index":11,"n_rows":16,"n_cols":8,"rows_kept":16,"merged":[[1,1,1,3],[14,3,14,7],[15,3,15,7],[16,1,16,7]]}
[]
[null,{"$f":"B9","v":"2018-11-11"}]
[]
[null,{"$f":"ÎnceputSăptămână","v":"DUMINICĂ"},{"$f":"UPPER(TEXT(C5,\"dddd\"))","v":"LUNI"},"MARȚI","MIERCURI","JOI","VINERI","SÂMBĂTĂ"]
[null,{"$f":"Zile+DATE(AnCal,11,1)-WEEKDAY(DATE(AnCal,11,1),(ÎnceputSăptămână=\"Luni\")+1)+1","v":"2018-10-28"},"2018-10-29","2018-10-30","2018-10-31","2018-11-01","2018-11-02","2018-11-03"]
[null,{"$f":"IFERROR(IF(AfișareSărbători,IF(INDEX(tblSărbători[],MATCH(DATE(AnCal-(DAY(B5)>15)+(ROW()>6),MONTH(B5),DAY(B5)),IF(AfișareCelebrateOficial,tblSărbători[RECTIFICAT],tblSărbători[ZIUA]),0),6),INDEX(tblSărbători[],MATCH(DATE(AnCal-(DAY(B5)>15)+(ROW()>6),MONTH(B5),DAY(B5)),IF(AfișareCelebrateOficial,tblSărbători[RECTIFICAT],tblSărbători[ZIUA]),0),2),\"\"),\"\"),\"\")","v":""},{"$f":"IFERROR(IF(AfișareSărbători,IF(INDEX(tblSărbători[],MATCH(DATE(AnCal-(DAY(C5)>15)+(ROW()>6),MONTH(C5),DAY(C5)),IF(AfișareCelebrateOficial,tblSărbători[RECTIFICAT],tblSărbători[ZIUA]),0),6),INDEX(tblSărbători[],MATCH(DATE(AnCal-(DAY(C5)>15)+(ROW()>6),MONTH(C5),DAY(C5)),IF(AfișareCelebrateOficial,tblSărbători[RECTIFICAT],tblSărbători[ZIUA]),0),2),\"\"),\"\"),\"\")","v":""},{"$f":"IFERROR(IF(AfișareSărbători,IF(INDEX(tblSărbători[],MATCH(DATE(AnCal-(DAY(D5)>15)+(ROW()>6),MONTH(D5),DAY(D5)),IF(AfișareCelebrateOficial,tblSărbători[RECTIFICAT],tblSărbători[ZIUA]),0),6),INDEX(tblSărbători[],MATCH(DATE(AnCal-(DAY(D5)>15)+(ROW()>6),MONTH(D5),DAY(D5)),IF(AfișareCelebrateOficial,tblSărbători[RECTIFICAT],tblSărbători[ZIUA]),0),2),\"\"),\"\"),\"\")","v":""},{"$f":"IFERROR(IF(AfișareSărbători,IF(INDEX(tblSărbători[],MATCH(DATE(AnCal-(DAY(E5)>15)+(ROW()>6),MONTH(E5),DAY(E5)),IF(AfișareCelebrateOficial,tblSărbători[RECTIFICAT],tblSărbători[ZIUA]),0),6),INDEX(tblSărbători[],MATCH(DATE(AnCal-(DAY(E5)>15)+(ROW()>6),MONTH(E5),DAY(E5)),IF(AfișareCelebrateOficial,tblSărbători[RECTIFICAT],tblSărbători[ZIUA]),0),2),\"\"),\"\"),\"\")","v":""},{"$f":"IFERROR(IF(AfișareSărbători,IF(INDEX(tblSărbători[],MATCH(DATE(AnCal-(DAY(F5)>15)+(ROW()>6),MONTH(F5),DAY(F5)),IF(AfișareCelebrateOficial,tblSărbători[RECTIFICAT],tblSărbători[ZIUA]),0),6),INDEX(tblSărbători[],MATCH(DATE(AnCal-(DAY(F5)>15)+(ROW()>6),MONTH(F5),DAY(F5)),IF(AfișareCelebrateOficial,tblSărbători[RECTIFICAT],tblSărbători[ZIUA]),0),2),\"\"),\"\"),\"\")","v":""},{"$f":"IFERROR(IF(AfișareSărbători,IF(INDEX(tblSărbători[],MATCH(DATE(AnCal-(DAY(G5)>15)+(ROW()>6),MONTH(G5),DAY(G5)),IF(AfișareCelebrateOficial,tblSărbători[RECTIFICAT],tblSărbători[ZIUA]),0),6),INDEX(tblSărbători[],MATCH(DATE(AnCal-(DAY(G5)>15)+(ROW()>6),MONTH(G5),DAY(G5)),IF(AfișareCelebrateOficial,tblSărbători[RECTIFICAT],tblSărbători[ZIUA]),0),2),\"\"),\"\"),\"\")","v":""},{"$f":"IFERROR(IF(AfișareSărbători,IF(INDEX(tblSărbători[],MATCH(DATE(AnCal-(DAY(H5)>15)+(ROW()>6),MONTH(H5),DAY(H5)),IF(AfișareCelebrateOficial,tblSărbători[RECTIFICAT],tblSărbători[ZIUA]),0),6),INDEX(tblSărbători[],MATCH(DATE(AnCal-(DAY(H5)>15)+(ROW()>6),MONTH(H5),DAY(H5)),IF(AfișareCelebrateOficial,tblSărbători[RECTIFICAT],tblSărbători[ZIUA]),0),2),\"\"),\"\"),\"\")","v":""}]
[null,{"$f":"Zile+DATE(AnCal,11,1)-WEEKDAY(DATE(AnCal,11,1),(ÎnceputSăptămână=\"Luni\")+1)+8","v":"2018-11-04"},"2018-11-05","2018-11-06","2018-11-07","2018-11-08","2018-11-09","2018-11-10"]
[null,{"$f":"IFERROR(IF(AfișareSărbători,IF(INDEX(tblSărbători[],MATCH(DATE(AnCal,MONTH(B7),DAY(B7)),IF(AfișareCelebrateOficial,tblSărbători[RECTIFICAT],tblSărbători[ZIUA]),0),6),INDEX(tblSărbători[],MATCH(DATE(AnCal,MONTH(B7),DAY(B7)),IF(AfișareCelebrateOficial,tblSărbători[RECTIFICAT],tblSărbători[ZIUA]),0),2),\"\"),\"\"),\"\")","v":""},{"$f":"IFERROR(IF(AfișareSărbători,IF(INDEX(tblSărbători[],MATCH(DATE(AnCal,MONTH(C7),DAY(C7)),IF(AfișareCelebrateOficial,tblSărbători[RECTIFICAT],tblSărbători[ZIUA]),0),6),INDEX(tblSărbători[],MATCH(DATE(AnCal,MONTH(C7),DAY(C7)),IF(AfișareCelebrateOficial,tblSărbători[RECTIFICAT],tblSărbători[ZIUA]),0),2),\"\"),\"\"),\"\")","v":""},{"$f":"IFERROR(IF(AfișareSărbători,IF(INDEX(tblSărbători[],MATCH(DATE(AnCal,MONTH(D7),DAY(D7)),IF(AfișareCelebrateOficial,tblSărbători[RECTIFICAT],tblSărbători[ZIUA]),0),6),INDEX(tblSărbători[],MATCH(DATE(AnCal,MONTH(D7),DAY(D7)),IF(AfișareCelebrateOficial,tblSărbători[RECTIFICAT],tblSărbători[ZIUA]),0),2),\"\"),\"\"),\"\")","v":""},{"$f":"IFERROR(IF(AfișareSărbători,IF(INDEX(tblSărbători[],MATCH(DATE(AnCal,MONTH(E7),DAY(E7)),IF(AfișareCelebrateOficial,tblSărbători[RECTIFICAT],tblSărbători[ZIUA]),0),6),INDEX(tblSărbători[],MATCH(DATE(AnCal,MONTH(E7),DAY(E7)),IF(AfișareCelebrateOficial,tblSărbători[RECTIFICAT],tblSărbători[ZIUA]),0),2),\"\"),\"\"),\"\")","v":""},{"$f":"IFERROR(IF(AfișareSărbători,IF(INDEX(tblSărbători[],MATCH(DATE(AnCal,MONTH(F7),DAY(F7)),IF(AfișareCelebrateOficial,tblSărbători[RECTIFICAT],tblSărbători[ZIUA]),0),6),INDEX(tblSărbători[],MATCH(DATE(AnCal,MONTH(F7),DAY(F7)),IF(AfișareCelebrateOficial,tblSărbători[RECTIFICAT],tblSărbători[ZIUA]),0),2),\"\"),\"\"),\"\")","v":""},{"$f":"IFERROR(IF(AfișareSărbători,IF(INDEX(tblSărbători[],MATCH(DATE(AnCal,MONTH(G7),DAY(G7)),IF(AfișareCelebrateOficial,tblSărbători[RECTIFICAT],tblSărbători[ZIUA]),0),6),INDEX(tblSărbători[],MATCH(DATE(AnCal,MONTH(G7),DAY(G7)),IF(AfișareCelebrateOficial,tblSărbători[RECTIFICAT],tblSărbători[ZIUA]),0),2),\"\"),\"\"),\"\")","v":""},{"$f":"IFERROR(IF(AfișareSărbători,IF(INDEX(tblSărbători[],MATCH(DATE(AnCal,MONTH(H7),DAY(H7)),IF(AfișareCelebrateOficial,tblSărbători[RECTIFICAT],tblSărbători[ZIUA]),0),6),INDEX(tblSărbători[],MATCH(DATE(AnCal,MONTH(H7),DAY(H7)),IF(AfișareCelebrateOficial,tblSărbători[RECTIFICAT],tblSărbători[ZIUA]),0),2),\"\"),\"\"),\"\")","v":""}]
[null,{"$f":"Zile+DATE(AnCal,11,1)-WEEKDAY(DATE(AnCal,11,1),(ÎnceputSăptămână=\"Luni\")+1)+15","v":"2018-11-11"},"2018-11-12","2018-11-13","2018-11-14","2018-11-15","2018-11-16","2018-11-17"]
[null,{"$f":"IFERROR(IF(AfișareSărbători,IF(INDEX(tblSărbători[],MATCH(DATE(AnCal,MONTH(B9),DAY(B9)),IF(AfișareCelebrateOficial,tblSărbători[RECTIFICAT],tblSărbători[ZIUA]),0),6),INDEX(tblSărbători[],MATCH(DATE(AnCal,MONTH(B9),DAY(B9)),IF(AfișareCelebrateOficial,tblSărbători[RECTIFICAT],tblSărbători[ZIUA]),0),2),\"\"),\"\"),\"\")","v":""},{"$f":"IFERROR(IF(AfișareSărbători,IF(INDEX(tblSărbători[],MATCH(DATE(AnCal,MONTH(C9),DAY(C9)),IF(AfișareCelebrateOficial,tblSărbători[RECTIFICAT],tblSărbători[ZIUA]),0),6),INDEX(tblSărbători[],MATCH(DATE(AnCal,MONTH(C9),DAY(C9)),IF(AfișareCelebrateOficial,tblSărbători[RECTIFICAT],tblSărbători[ZIUA]),0),2),\"\"),\"\"),\"\")","v":"Ziua Veteranilor"},{"$f":"IFERROR(IF(AfișareSărbători,IF(INDEX(tblSărbători[],MATCH(DATE(AnCal,MONTH(D9),DAY(D9)),IF(AfișareCelebrateOficial,tblSărbători[RECTIFICAT],tblSărbători[ZIUA]),0),6),INDEX(tblSărbători[],MATCH(DATE(AnCal,MONTH(D9),DAY(D9)),IF(AfișareCelebrateOficial,tblSărbători[RECTIFICAT],tblSărbători[ZIUA]),0),2),\"\"),\"\"),\"\")","v":""},{"$f":"IFERROR(IF(AfișareSărbători,IF(INDEX(tblSărbători[],MATCH(DATE(AnCal,MONTH(E9),DAY(E9)),IF(AfișareCelebrateOficial,tblSărbători[RECTIFICAT],tblSărbători[ZIUA]),0),6),INDEX(tblSărbători[],MATCH(DATE(AnCal,MONTH(E9),DAY(E9)),IF(AfișareCelebrateOficial,tblSărbători[RECTIFICAT],tblSărbători[ZIUA]),0),2),\"\"),\"\"),\"\")","v":""},{"$f":"IFERROR(IF(AfișareSărbători,IF(INDEX(tblSărbători[],MATCH(DATE(AnCal,MONTH(F9),DAY(F9)),IF(AfișareCelebrateOficial,tblSărbători[RECTIFICAT],tblSărbători[ZIUA]),0),6),INDEX(tblSărbători[],MATCH(DATE(AnCal,MONTH(F9),DAY(F9)),IF(AfișareCelebrateOficial,tblSărbători[RECTIFICAT],tblSărbători[ZIUA]),0),2),\"\"),\"\"),\"\")","v":""},{"$f":"IFERROR(IF(AfișareSărbători,IF(INDEX(tblSărbători[],MATCH(DATE(AnCal,MONTH(G9),DAY(G9)),IF(AfișareCelebrateOficial,tblSărbători[RECTIFICAT],tblSărbători[ZIUA]),0),6),INDEX(tblSărbători[],MATCH(DATE(AnCal,MONTH(G9),DAY(G9)),IF(AfișareCelebrateOficial,tblSărbători[RECTIFICAT],tblSărbători[ZIUA]),0),2),\"\"),\"\"),\"\")","v":""},{"$f":"IFERROR(IF(AfișareSărbători,IF(INDEX(tblSărbători[],MATCH(DATE(AnCal,MONTH(H9),DAY(H9)),IF(AfișareCelebrateOficial,tblSărbători[RECTIFICAT],tblSărbători[ZIUA]),0),6),INDEX(tblSărbători[],MATCH(DATE(AnCal,MONTH(H9),DAY(H9)),IF(AfișareCelebrateOficial,tblSărbători[RECTIFICAT],tblSărbători[ZIUA]),0),2),\"\"),\"\"),\"\")","v":""}]
[null,{"$f":"Zile+DATE(AnCal,11,1)-WEEKDAY(DATE(AnCal,11,1),(ÎnceputSăptămână=\"Luni\")+1)+22","v":"2018-11-18"},"2018-11-19","2018-11-20","2018-11-21","2018-11-22","2018-11-23","2018-11-24"]
[null,{"$f":"IFERROR(IF(AfișareSărbători,IF(INDEX(tblSărbători[],MATCH(DATE(AnCal,MONTH(B11),DAY(B11)),IF(AfișareCelebrateOficial,tblSărbători[RECTIFICAT],tblSărbători[ZIUA]),0),6),INDEX(tblSărbători[],MATCH(DATE(AnCal,MONTH(B11),DAY(B11)),IF(AfișareCelebrateOficial,tblSărbători[RECTIFICAT],tblSărbători[ZIUA]),0),2),\"\"),\"\"),\"\")","v":""},{"$f":"IFERROR(IF(AfișareSărbători,IF(INDEX(tblSărbători[],MATCH(DATE(AnCal,MONTH(C11),DAY(C11)),IF(AfișareCelebrateOficial,tblSărbători[RECTIFICAT],tblSărbători[ZIUA]),0),6),INDEX(tblSărbători[],MATCH(DATE(AnCal,MONTH(C11),DAY(C11)),IF(AfișareCelebrateOficial,tblSărbători[RECTIFICAT],tblSărbători[ZIUA]),0),2),\"\"),\"\"),\"\")","v":""},{"$f":"IFERROR(IF(AfișareSărbători,IF(INDEX(tblSărbători[],MATCH(DATE(AnCal,MONTH(D11),DAY(D11)),IF(AfișareCelebrateOficial,tblSărbători[RECTIFICAT],tblSărbători[ZIUA]),0),6),INDEX(tblSărbători[],MATCH(DATE(AnCal,MONTH(D11),DAY(D11)),IF(AfișareCelebrateOficial,tblSărbători[RECTIFICAT],tblSărbători[ZIUA]),0),2),\"\"),\"\"),\"\")","v":""},{"$f":"IFERROR(IF(AfișareSărbători,IF(INDEX(tblSărbători[],MATCH(DATE(AnCal,MONTH(E11),DAY(E11)),IF(AfișareCelebrateOficial,tblSărbători[RECTIFICAT],tblSărbători[ZIUA]),0),6),INDEX(tblSărbători[],MATCH(DATE(AnCal,MONTH(E11),DAY(E11)),IF(AfișareCelebrateOficial,tblSărbători[RECTIFICAT],tblSărbători[ZIUA]),0),2),\"\"),\"\"),\"\")","v":""},{"$f":"IFERROR(IF(AfișareSărbători,IF(INDEX(tblSărbători[],MATCH(DATE(AnCal,MONTH(F11),DAY(F11)),IF(AfișareCelebrateOficial,tblSărbători[RECTIFICAT],tblSărbători[ZIUA]),0),6),INDEX(tblSărbători[],MATCH(DATE(AnCal,MONTH(F11),DAY(F11)),IF(AfișareCelebrateOficial,tblSărbători[RECTIFICAT],tblSărbători[ZIUA]),0),2),\"\"),\"\"),\"\")","v":"Ziua Recunoștinței"},{"$f":"IFERROR(IF(AfișareSărbători,IF(INDEX(tblSărbători[],MATCH(DATE(AnCal,MONTH(G11),DAY(G11)),IF(AfișareCelebrateOficial,tblSărbători[RECTIFICAT],tblSărbători[ZIUA]),0),6),INDEX(tblSărbători[],MATCH(DATE(AnCal,MONTH(G11),DAY(G11)),IF(AfișareCelebrateOficial,tblSărbători[RECTIFICAT],tblSărbători[ZIUA]),0),2),\"\"),\"\"),\"\")","v":""},{"$f":"IFERROR(IF(AfișareSărbători,IF(INDEX(tblSărbători[],MATCH(DATE(AnCal,MONTH(H11),DAY(H11)),IF(AfișareCelebrateOficial,tblSărbători[RECTIFICAT],tblSărbători[ZIUA]),0),6),INDEX(tblSărbători[],MATCH(DATE(AnCal,MONTH(H11),DAY(H11)),IF(AfișareCelebrateOficial,tblSărbători[RECTIFICAT],tblSărbători[ZIUA]),0),2),\"\"),\"\"),\"\")","v":""}]
[null,{"$f":"Zile+DATE(AnCal,11,1)-WEEKDAY(DATE(AnCal,11,1),(ÎnceputSăptămână=\"Luni\")+1)+29","v":"2018-11-25"},"2018-11-26","2018-11-27","2018-11-28","2018-11-29","2018-11-30","2018-12-01"]
[null,{"$f":"IFERROR(IF(AfișareSărbători,IF(INDEX(tblSărbători[],MATCH(DATE(AnCal,MONTH(B13),DAY(B13)),IF(AfișareCelebrateOficial,tblSărbători[RECTIFICAT],tblSărbători[ZIUA]),0),6),INDEX(tblSărbători[],MATCH(DATE(AnCal,MONTH(B13),DAY(B13)),IF(AfișareCelebrateOficial,tblSărbători[RECTIFICAT],tblSărbători[ZIUA]),0),2),\"\"),\"\"),\"\")","v":""},{"$f":"IFERROR(IF(AfișareSărbători,IF(INDEX(tblSărbători[],MATCH(DATE(AnCal,MONTH(C13),DAY(C13)),IF(AfișareCelebrateOficial,tblSărbători[RECTIFICAT],tblSărbători[ZIUA]),0),6),INDEX(tblSărbători[],MATCH(DATE(AnCal,MONTH(C13),DAY(C13)),IF(AfișareCelebrateOficial,tblSărbători[RECTIFICAT],tblSărbători[ZIUA]),0),2),\"\"),\"\"),\"\")","v":""},{"$f":"IFERROR(IF(AfișareSărbători,IF(INDEX(tblSărbători[],MATCH(DATE(AnCal,MONTH(D13),DAY(D13)),IF(AfișareCelebrateOficial,tblSărbători[RECTIFICAT],tblSărbători[ZIUA]),0),6),INDEX(tblSărbători[],MATCH(DATE(AnCal,MONTH(D13),DAY(D13)),IF(AfișareCelebrateOficial,tblSărbători[RECTIFICAT],tblSărbători[ZIUA]),0),2),\"\"),\"\"),\"\")","v":""},{"$f":"IFERROR(IF(AfișareSărbători,IF(INDEX(tblSărbători[],MATCH(DATE(AnCal,MONTH(E13),DAY(E13)),IF(AfișareCelebrateOficial,tblSărbători[RECTIFICAT],tblSărbători[ZIUA]),0),6),INDEX(tblSărbători[],MATCH(DATE(AnCal,MONTH(E13),DAY(E13)),IF(AfișareCelebrateOficial,tblSărbători[RECTIFICAT],tblSărbători[ZIUA]),0),2),\"\"),\"\"),\"\")","v":""},{"$f":"IFERROR(IF(AfișareSărbători,IF(INDEX(tblSărbători[],MATCH(DATE(AnCal,MONTH(F13),DAY(F13)),IF(AfișareCelebrateOficial,tblSărbători[RECTIFICAT],tblSărbători[ZIUA]),0),6),INDEX(tblSărbători[],MATCH(DATE(AnCal,MONTH(F13),DAY(F13)),IF(AfișareCelebrateOficial,tblSărbători[RECTIFICAT],tblSărbători[ZIUA]),0),2),\"\"),\"\"),\"\")","v":""},{"$f":"IFERROR(IF(AfișareSărbători,IF(INDEX(tblSărbători[],MATCH(DATE(AnCal,MONTH(G13),DAY(G13)),IF(AfișareCelebrateOficial,tblSărbători[RECTIFICAT],tblSărbători[ZIUA]),0),6),INDEX(tblSărbători[],MATCH(DATE(AnCal,MONTH(G13),DAY(G13)),IF(AfișareCelebrateOficial,tblSărbători[RECTIFICAT],tblSărbători[ZIUA]),0),2),\"\"),\"\"),\"\")","v":""},{"$f":"IFERROR(IF(AfișareSărbători,IF(INDEX(tblSărbători[],MATCH(DATE(AnCal,MONTH(H13),DAY(H13)),IF(AfișareCelebrateOficial,tblSărbători[RECTIFICAT],tblSărbători[ZIUA]),0),6),INDEX(tblSărbători[],MATCH(DATE(AnCal,MONTH(H13),DAY(H13)),IF(AfișareCelebrateOficial,tblSărbători[RECTIFICAT],tblSărbători[ZIUA]),0),2),\"\"),\"\"),\"\")","v":""}]
[null,{"$f":"Zile+DATE(AnCal,11,1)-WEEKDAY(DATE(AnCal,11,1),(ÎnceputSăptămână=\"Luni\")+1)+36","v":"2018-12-02"},"2018-12-03","NOTE"]
[null,{"$f":"IFERROR(IF(AfișareSărbători,IF(INDEX(tblSărbători[],MATCH(DATE(AnCal,MONTH(B15),DAY(B15)),IF(AfișareCelebrateOficial,tblSărbători[RECTIFICAT],tblSărbători[ZIUA]),0),6),INDEX(tblSărbători[],MATCH(DATE(AnCal,MONTH(B15),DAY(B15)),IF(AfișareCelebrateOficial,tblSărbători[RECTIFICAT],tblSărbători[ZIUA]),0),2),\"\"),\"\"),\"\")","v":""},{"$f":"IFERROR(IF(AfișareSărbători,IF(INDEX(tblSărbători[],MATCH(DATE(AnCal,MONTH(C15),DAY(C15)),IF(AfișareCelebrateOficial,tblSărbători[RECTIFICAT],tblSărbători[ZIUA]),0),6),INDEX(tblSărbători[],MATCH(DATE(AnCal,MONTH(C15),DAY(C15)),IF(AfișareCelebrateOficial,tblSărbători[RECTIFICAT],tblSărbători[ZIUA]),0),2),\"\"),\"\"),\"\")","v":""}]

{"sheet":"Decembrie","index":12,"n_rows":16,"n_cols":8,"rows_kept":16,"merged":[[1,1,1,3],[14,3,14,7],[15,3,15,7],[16,1,16,7]]}
[]
[null,{"$f":"B9","v":"2018-12-09"}]
[]
[null,{"$f":"ÎnceputSăptămână","v":"DUMINICĂ"},{"$f":"UPPER(TEXT(C5,\"dddd\"))","v":"LUNI"},"MARȚI","MIERCURI","JOI","VINERI","SÂMBĂTĂ"]
[null,{"$f":"Zile+DATE(AnCal,12,1)-WEEKDAY(DATE(AnCal,12,1),(ÎnceputSăptămână=\"Luni\")+1)+1","v":"2018-11-25"},"2018-11-26","2018-11-27","2018-11-28","2018-11-29","2018-11-30","2018-12-01"]
[null,{"$f":"IFERROR(IF(AfișareSărbători,IF(INDEX(tblSărbători[],MATCH(DATE(AnCal-(DAY(B5)>15)+(ROW()>6),MONTH(B5),DAY(B5)),IF(AfișareCelebrateOficial,tblSărbători[RECTIFICAT],tblSărbători[ZIUA]),0),6),INDEX(tblSărbători[],MATCH(DATE(AnCal-(DAY(B5)>15)+(ROW()>6),MONTH(B5),DAY(B5)),IF(AfișareCelebrateOficial,tblSărbători[RECTIFICAT],tblSărbători[ZIUA]),0),2),\"\"),\"\"),\"\")","v":""},{"$f":"IFERROR(IF(AfișareSărbători,IF(INDEX(tblSărbători[],MATCH(DATE(AnCal-(DAY(C5)>15)+(ROW()>6),MONTH(C5),DAY(C5)),IF(AfișareCelebrateOficial,tblSărbători[RECTIFICAT],tblSărbători[ZIUA]),0),6),INDEX(tblSărbători[],MATCH(DATE(AnCal-(DAY(C5)>15)+(ROW()>6),MONTH(C5),DAY(C5)),IF(AfișareCelebrateOficial,tblSărbători[RECTIFICAT],tblSărbători[ZIUA]),0),2),\"\"),\"\"),\"\")","v":""},{"$f":"IFERROR(IF(AfișareSărbători,IF(INDEX(tblSărbători[],MATCH(DATE(AnCal-(DAY(D5)>15)+(ROW()>6),MONTH(D5),DAY(D5)),IF(AfișareCelebrateOficial,tblSărbători[RECTIFICAT],tblSărbători[ZIUA]),0),6),INDEX(tblSărbători[],MATCH(DATE(AnCal-(DAY(D5)>15)+(ROW()>6),MONTH(D5),DAY(D5)),IF(AfișareCelebrateOficial,tblSărbători[RECTIFICAT],tblSărbători[ZIUA]),0),2),\"\"),\"\"),\"\")","v":""},{"$f":"IFERROR(IF(AfișareSărbători,IF(INDEX(tblSărbători[],MATCH(DATE(AnCal-(DAY(E5)>15)+(ROW()>6),MONTH(E5),DAY(E5)),IF(AfișareCelebrateOficial,tblSărbători[RECTIFICAT],tblSărbători[ZIUA]),0),6),INDEX(tblSărbători[],MATCH(DATE(AnCal-(DAY(E5)>15)+(ROW()>6),MONTH(E5),DAY(E5)),IF(AfișareCelebrateOficial,tblSărbători[RECTIFICAT],tblSărbători[ZIUA]),0),2),\"\"),\"\"),\"\")","v":""},{"$f":"IFERROR(IF(AfișareSărbători,IF(INDEX(tblSărbători[],MATCH(DATE(AnCal-(DAY(F5)>15)+(ROW()>6),MONTH(F5),DAY(F5)),IF(AfișareCelebrateOficial,tblSărbători[RECTIFICAT],tblSărbători[ZIUA]),0),6),INDEX(tblSărbători[],MATCH(DATE(AnCal-(DAY(F5)>15)+(ROW()>6),MONTH(F5),DAY(F5)),IF(AfișareCelebrateOficial,tblSărbători[RECTIFICAT],tblSărbători[ZIUA]),0),2),\"\"),\"\"),\"\")","v":""},{"$f":"IFERROR(IF(AfișareSărbători,IF(INDEX(tblSărbători[],MATCH(DATE(AnCal-(DAY(G5)>15)+(ROW()>6),MONTH(G5),DAY(G5)),IF(AfișareCelebrateOficial,tblSărbători[RECTIFICAT],tblSărbători[ZIUA]),0),6),INDEX(tblSărbători[],MATCH(DATE(AnCal-(DAY(G5)>15)+(ROW()>6),MONTH(G5),DAY(G5)),IF(AfișareCelebrateOficial,tblSărbători[RECTIFICAT],tblSărbători[ZIUA]),0),2),\"\"),\"\"),\"\")","v":""},{"$f":"IFERROR(IF(AfișareSărbători,IF(INDEX(tblSărbători[],MATCH(DATE(AnCal-(DAY(H5)>15)+(ROW()>6),MONTH(H5),DAY(H5)),IF(AfișareCelebrateOficial,tblSărbători[RECTIFICAT],tblSărbători[ZIUA]),0),6),INDEX(tblSărbători[],MATCH(DATE(AnCal-(DAY(H5)>15)+(ROW()>6),MONTH(H5),DAY(H5)),IF(AfișareCelebrateOficial,tblSărbători[RECTIFICAT],tblSărbători[ZIUA]),0),2),\"\"),\"\"),\"\")","v":""}]
[null,{"$f":"Zile+DATE(AnCal,12,1)-WEEKDAY(DATE(AnCal,12,1),(ÎnceputSăptămână=\"Luni\")+1)+8","v":"2018-12-02"},"2018-12-03","2018-12-04","2018-12-05","2018-12-06","2018-12-07","2018-12-08"]
[null,{"$f":"IFERROR(IF(AfișareSărbători,IF(INDEX(tblSărbători[],MATCH(DATE(AnCal,MONTH(B7),DAY(B7)),IF(AfișareCelebrateOficial,tblSărbători[RECTIFICAT],tblSărbători[ZIUA]),0),6),INDEX(tblSărbători[],MATCH(DATE(AnCal,MONTH(B7),DAY(B7)),IF(AfișareCelebrateOficial,tblSărbători[RECTIFICAT],tblSărbători[ZIUA]),0),2),\"\"),\"\"),\"\")","v":""},{"$f":"IFERROR(IF(AfișareSărbători,IF(INDEX(tblSărbători[],MATCH(DATE(AnCal,MONTH(C7),DAY(C7)),IF(AfișareCelebrateOficial,tblSărbători[RECTIFICAT],tblSărbători[ZIUA]),0),6),INDEX(tblSărbători[],MATCH(DATE(AnCal,MONTH(C7),DAY(C7)),IF(AfișareCelebrateOficial,tblSărbători[RECTIFICAT],tblSărbători[ZIUA]),0),2),\"\"),\"\"),\"\")","v":""},{"$f":"IFERROR(IF(AfișareSărbători,IF(INDEX(tblSărbători[],MATCH(DATE(AnCal,MONTH(D7),DAY(D7)),IF(AfișareCelebrateOficial,tblSărbători[RECTIFICAT],tblSărbători[ZIUA]),0),6),INDEX(tblSărbători[],MATCH(DATE(AnCal,MONTH(D7),DAY(D7)),IF(AfișareCelebrateOficial,tblSărbători[RECTIFICAT],tblSărbători[ZIUA]),0),2),\"\"),\"\"),\"\")","v":""},{"$f":"IFERROR(IF(AfișareSărbători,IF(INDEX(tblSărbători[],MATCH(DATE(AnCal,MONTH(E7),DAY(E7)),IF(AfișareCelebrateOficial,tblSărbători[RECTIFICAT],tblSărbători[ZIUA]),0),6),INDEX(tblSărbători[],MATCH(DATE(AnCal,MONTH(E7),DAY(E7)),IF(AfișareCelebrateOficial,tblSărbători[RECTIFICAT],tblSărbători[ZIUA]),0),2),\"\"),\"\"),\"\")","v":""},{"$f":"IFERROR(IF(AfișareSărbători,IF(INDEX(tblSărbători[],MATCH(DATE(AnCal,MONTH(F7),DAY(F7)),IF(AfișareCelebrateOficial,tblSărbători[RECTIFICAT],tblSărbători[ZIUA]),0),6),INDEX(tblSărbători[],MATCH(DATE(AnCal,MONTH(F7),DAY(F7)),IF(AfișareCelebrateOficial,tblSărbători[RECTIFICAT],tblSărbători[ZIUA]),0),2),\"\"),\"\"),\"\")","v":""},{"$f":"IFERROR(IF(AfișareSărbători,IF(INDEX(tblSărbători[],MATCH(DATE(AnCal,MONTH(G7),DAY(G7)),IF(AfișareCelebrateOficial,tblSărbători[RECTIFICAT],tblSărbători[ZIUA]),0),6),INDEX(tblSărbători[],MATCH(DATE(AnCal,MONTH(G7),DAY(G7)),IF(AfișareCelebrateOficial,tblSărbători[RECTIFICAT],tblSărbători[ZIUA]),0),2),\"\"),\"\"),\"\")","v":""},{"$f":"IFERROR(IF(AfișareSărbători,IF(INDEX(tblSărbători[],MATCH(DATE(AnCal,MONTH(H7),DAY(H7)),IF(AfișareCelebrateOficial,tblSărbători[RECTIFICAT],tblSărbători[ZIUA]),0),6),INDEX(tblSărbători[],MATCH(DATE(AnCal,MONTH(H7),DAY(H7)),IF(AfișareCelebrateOficial,tblSărbători[RECTIFICAT],tblSărbători[ZIUA]),0),2),\"\"),\"\"),\"\")","v":""}]
[null,{"$f":"Zile+DATE(AnCal,12,1)-WEEKDAY(DATE(AnCal,12,1),(ÎnceputSăptămână=\"Luni\")+1)+15","v":"2018-12-09"},"2018-12-10","2018-12-11","2018-12-12","2018-12-13","2018-12-14","2018-12-15"]
[null,{"$f":"IFERROR(IF(AfișareSărbători,IF(INDEX(tblSărbători[],MATCH(DATE(AnCal,MONTH(B9),DAY(B9)),IF(AfișareCelebrateOficial,tblSărbători[RECTIFICAT],tblSărbători[ZIUA]),0),6),INDEX(tblSărbători[],MATCH(DATE(AnCal,MONTH(B9),DAY(B9)),IF(AfișareCelebrateOficial,tblSărbători[RECTIFICAT],tblSărbători[ZIUA]),0),2),\"\"),\"\"),\"\")","v":""},{"$f":"IFERROR(IF(AfișareSărbători,IF(INDEX(tblSărbători[],MATCH(DATE(AnCal,MONTH(C9),DAY(C9)),IF(AfișareCelebrateOficial,tblSărbători[RECTIFICAT],tblSărbători[ZIUA]),0),6),INDEX(tblSărbători[],MATCH(DATE(AnCal,MONTH(C9),DAY(C9)),IF(AfișareCelebrateOficial,tblSărbători[RECTIFICAT],tblSărbători[ZIUA]),0),2),\"\"),\"\"),\"\")","v":""},{"$f":"IFERROR(IF(AfișareSărbători,IF(INDEX(tblSărbători[],MATCH(DATE(AnCal,MONTH(D9),DAY(D9)),IF(AfișareCelebrateOficial,tblSărbători[RECTIFICAT],tblSărbători[ZIUA]),0),6),INDEX(tblSărbători[],MATCH(DATE(AnCal,MONTH(D9),DAY(D9)),IF(AfișareCelebrateOficial,tblSărbători[RECTIFICAT],tblSărbători[ZIUA]),0),2),\"\"),\"\"),\"\")","v":""},{"$f":"IFERROR(IF(AfișareSărbători,IF(INDEX(tblSărbători[],MATCH(DATE(AnCal,MONTH(E9),DAY(E9)),IF(AfișareCelebrateOficial,tblSărbători[RECTIFICAT],tblSărbători[ZIUA]),0),6),INDEX(tblSărbători[],MATCH(DATE(AnCal,MONTH(E9),DAY(E9)),IF(AfișareCelebrateOficial,tblSărbători[RECTIFICAT],tblSărbători[ZIUA]),0),2),\"\"),\"\"),\"\")","v":""},{"$f":"IFERROR(IF(AfișareSărbători,IF(INDEX(tblSărbători[],MATCH(DATE(AnCal,MONTH(F9),DAY(F9)),IF(AfișareCelebrateOficial,tblSărbători[RECTIFICAT],tblSărbători[ZIUA]),0),6),INDEX(tblSărbători[],MATCH(DATE(AnCal,MONTH(F9),DAY(F9)),IF(AfișareCelebrateOficial,tblSărbători[RECTIFICAT],tblSărbători[ZIUA]),0),2),\"\"),\"\"),\"\")","v":""},{"$f":"IFERROR(IF(AfișareSărbători,IF(INDEX(tblSărbători[],MATCH(DATE(AnCal,MONTH(G9),DAY(G9)),IF(AfișareCelebrateOficial,tblSărbători[RECTIFICAT],tblSărbători[ZIUA]),0),6),INDEX(tblSărbători[],MATCH(DATE(AnCal,MONTH(G9),DAY(G9)),IF(AfișareCelebrateOficial,tblSărbători[RECTIFICAT],tblSărbători[ZIUA]),0),2),\"\"),\"\"),\"\")","v":""},{"$f":"IFERROR(IF(AfișareSărbători,IF(INDEX(tblSărbători[],MATCH(DATE(AnCal,MONTH(H9),DAY(H9)),IF(AfișareCelebrateOficial,tblSărbători[RECTIFICAT],tblSărbători[ZIUA]),0),6),INDEX(tblSărbători[],MATCH(DATE(AnCal,MONTH(H9),DAY(H9)),IF(AfișareCelebrateOficial,tblSărbători[RECTIFICAT],tblSărbători[ZIUA]),0),2),\"\"),\"\"),\"\")","v":""}]
[null,{"$f":"Zile+DATE(AnCal,12,1)-WEEKDAY(DATE(AnCal,12,1),(ÎnceputSăptămână=\"Luni\")+1)+22","v":"2018-12-16"},"2018-12-17","2018-12-18","2018-12-19","2018-12-20","2018-12-21","2018-12-22"]
[null,{"$f":"IFERROR(IF(AfișareSărbători,IF(INDEX(tblSărbători[],MATCH(DATE(AnCal,MONTH(B11),DAY(B11)),IF(AfișareCelebrateOficial,tblSărbători[RECTIFICAT],tblSărbători[ZIUA]),0),6),INDEX(tblSărbători[],MATCH(DATE(AnCal,MONTH(B11),DAY(B11)),IF(AfișareCelebrateOficial,tblSărbători[RECTIFICAT],tblSărbători[ZIUA]),0),2),\"\"),\"\"),\"\")","v":""},{"$f":"IFERROR(IF(AfișareSărbători,IF(INDEX(tblSărbători[],MATCH(DATE(AnCal,MONTH(C11),DAY(C11)),IF(AfișareCelebrateOficial,tblSărbători[RECTIFICAT],tblSărbători[ZIUA]),0),6),INDEX(tblSărbători[],MATCH(DATE(AnCal,MONTH(C11),DAY(C11)),IF(AfișareCelebrateOficial,tblSărbători[RECTIFICAT],tblSărbători[ZIUA]),0),2),\"\"),\"\"),\"\")","v":""},{"$f":"IFERROR(IF(AfișareSărbători,IF(INDEX(tblSărbători[],MATCH(DATE(AnCal,MONTH(D11),DAY(D11)),IF(AfișareCelebrateOficial,tblSărbători[RECTIFICAT],tblSărbători[ZIUA]),0),6),INDEX(tblSărbători[],MATCH(DATE(AnCal,MONTH(D11),DAY(D11)),IF(AfișareCelebrateOficial,tblSărbători[RECTIFICAT],tblSărbători[ZIUA]),0),2),\"\"),\"\"),\"\")","v":""},{"$f":"IFERROR(IF(AfișareSărbători,IF(INDEX(tblSărbători[],MATCH(DATE(AnCal,MONTH(E11),DAY(E11)),IF(AfișareCelebrateOficial,tblSărbători[RECTIFICAT],tblSărbători[ZIUA]),0),6),INDEX(tblSărbători[],MATCH(DATE(AnCal,MONTH(E11),DAY(E11)),IF(AfișareCelebrateOficial,tblSărbători[RECTIFICAT],tblSărbători[ZIUA]),0),2),\"\"),\"\"),\"\")","v":""},{"$f":"IFERROR(IF(AfișareSărbători,IF(INDEX(tblSărbători[],MATCH(DATE(AnCal,MONTH(F11),DAY(F11)),IF(AfișareCelebrateOficial,tblSărbători[RECTIFICAT],tblSărbători[ZIUA]),0),6),INDEX(tblSărbători[],MATCH(DATE(AnCal,MONTH(F11),DAY(F11)),IF(AfișareCelebrateOficial,tblSărbători[RECTIFICAT],tblSărbători[ZIUA]),0),2),\"\"),\"\"),\"\")","v":""},{"$f":"IFERROR(IF(AfișareSărbători,IF(INDEX(tblSărbători[],MATCH(DATE(AnCal,MONTH(G11),DAY(G11)),IF(AfișareCelebrateOficial,tblSărbători[RECTIFICAT],tblSărbători[ZIUA]),0),6),INDEX(tblSărbători[],MATCH(DATE(AnCal,MONTH(G11),DAY(G11)),IF(AfișareCelebrateOficial,tblSărbători[RECTIFICAT],tblSărbători[ZIUA]),0),2),\"\"),\"\"),\"\")","v":""},{"$f":"IFERROR(IF(AfișareSărbători,IF(INDEX(tblSărbători[],MATCH(DATE(AnCal,MONTH(H11),DAY(H11)),IF(AfișareCelebrateOficial,tblSărbători[RECTIFICAT],tblSărbători[ZIUA]),0),6),INDEX(tblSărbători[],MATCH(DATE(AnCal,MONTH(H11),DAY(H11)),IF(AfișareCelebrateOficial,tblSărbători[RECTIFICAT],tblSărbători[ZIUA]),0),2),\"\"),\"\"),\"\")","v":""}]
[null,{"$f":"Zile+DATE(AnCal,12,1)-WEEKDAY(DATE(AnCal,12,1),(ÎnceputSăptămână=\"Luni\")+1)+29","v":"2018-12-23"},"2018-12-24","2018-12-25","2018-12-26","2018-12-27","2018-12-28","2018-12-29"]
[null,{"$f":"IFERROR(IF(AfișareSărbători,IF(INDEX(tblSărbători[],MATCH(DATE(AnCal,MONTH(B13),DAY(B13)),IF(AfișareCelebrateOficial,tblSărbători[RECTIFICAT],tblSărbători[ZIUA]),0),6),INDEX(tblSărbători[],MATCH(DATE(AnCal,MONTH(B13),DAY(B13)),IF(AfișareCelebrateOficial,tblSărbători[RECTIFICAT],tblSărbători[ZIUA]),0),2),\"\"),\"\"),\"\")","v":""},{"$f":"IFERROR(IF(AfișareSărbători,IF(INDEX(tblSărbători[],MATCH(DATE(AnCal,MONTH(C13),DAY(C13)),IF(AfișareCelebrateOficial,tblSărbători[RECTIFICAT],tblSărbători[ZIUA]),0),6),INDEX(tblSărbători[],MATCH(DATE(AnCal,MONTH(C13),DAY(C13)),IF(AfișareCelebrateOficial,tblSărbători[RECTIFICAT],tblSărbători[ZIUA]),0),2),\"\"),\"\"),\"\")","v":""},{"$f":"IFERROR(IF(AfișareSărbători,IF(INDEX(tblSărbători[],MATCH(DATE(AnCal,MONTH(D13),DAY(D13)),IF(AfișareCelebrateOficial,tblSărbători[RECTIFICAT],tblSărbători[ZIUA]),0),6),INDEX(tblSărbători[],MATCH(DATE(AnCal,MONTH(D13),DAY(D13)),IF(AfișareCelebrateOficial,tblSărbători[RECTIFICAT],tblSărbători[ZIUA]),0),2),\"\"),\"\"),\"\")","v":"Crăciunul"},{"$f":"IFERROR(IF(AfișareSărbători,IF(INDEX(tblSărbători[],MATCH(DATE(AnCal,MONTH(E13),DAY(E13)),IF(AfișareCelebrateOficial,tblSărbători[RECTIFICAT],tblSărbători[ZIUA]),0),6),INDEX(tblSărbători[],MATCH(DATE(AnCal,MONTH(E13),DAY(E13)),IF(AfișareCelebrateOficial,tblSărbători[RECTIFICAT],tblSărbători[ZIUA]),0),2),\"\"),\"\"),\"\")","v":""},{"$f":"IFERROR(IF(AfișareSărbători,IF(INDEX(tblSărbători[],MATCH(DATE(AnCal,MONTH(F13),DAY(F13)),IF(AfișareCelebrateOficial,tblSărbători[RECTIFICAT],tblSărbători[ZIUA]),0),6),INDEX(tblSărbători[],MATCH(DATE(AnCal,MONTH(F13),DAY(F13)),IF(AfișareCelebrateOficial,tblSărbători[RECTIFICAT],tblSărbători[ZIUA]),0),2),\"\"),\"\"),\"\")","v":""},{"$f":"IFERROR(IF(AfișareSărbători,IF(INDEX(tblSărbători[],MATCH(DATE(AnCal,MONTH(G13),DAY(G13)),IF(AfișareCelebrateOficial,tblSărbători[RECTIFICAT],tblSărbători[ZIUA]),0),6),INDEX(tblSărbători[],MATCH(DATE(AnCal,MONTH(G13),DAY(G13)),IF(AfișareCelebrateOficial,tblSărbători[RECTIFICAT],tblSărbători[ZIUA]),0),2),\"\"),\"\"),\"\")","v":""},{"$f":"IFERROR(IF(AfișareSărbători,IF(INDEX(tblSărbători[],MATCH(DATE(AnCal,MONTH(H13),DAY(H13)),IF(AfișareCelebrateOficial,tblSărbători[RECTIFICAT],tblSărbători[ZIUA]),0),6),INDEX(tblSărbători[],MATCH(DATE(AnCal,MONTH(H13),DAY(H13)),IF(AfișareCelebrateOficial,tblSărbători[RECTIFICAT],tblSărbători[ZIUA]),0),2),\"\"),\"\"),\"\")","v":""}]
[null,{"$f":"Zile+DATE(AnCal,12,1)-WEEKDAY(DATE(AnCal,12,1),(ÎnceputSăptămână=\"Luni\")+1)+36","v":"2018-12-30"},"2018-12-31","NOTE"]
[null,{"$f":"IFERROR(IF(AfișareSărbători,IF(INDEX(tblSărbători[],MATCH(DATE(AnCal,MONTH(B15),DAY(B15)),IF(AfișareCelebrateOficial,tblSărbători[RECTIFICAT],tblSărbători[ZIUA]),0),6),INDEX(tblSărbători[],MATCH(DATE(AnCal,MONTH(B15),DAY(B15)),IF(AfișareCelebrateOficial,tblSărbători[RECTIFICAT],tblSărbători[ZIUA]),0),2),\"\"),\"\"),\"\")","v":""},{"$f":"IFERROR(IF(AfișareSărbători,IF(INDEX(tblSărbători[],MATCH(DATE(AnCal,MONTH(C15),DAY(C15)),IF(AfișareCelebrateOficial,tblSărbători[RECTIFICAT],tblSărbători[ZIUA]),0),6),INDEX(tblSărbători[],MATCH(DATE(AnCal,MONTH(C15),DAY(C15)),IF(AfișareCelebrateOficial,tblSărbători[RECTIFICAT],tblSărbători[ZIUA]),0),2),\"\"),\"\"),\"\")","v":""}]

{"sheet":"Sărbători","index":13,"n_rows":14,"n_cols":8,"rows_kept":14}
[]
[null,"SĂRBĂTORI DIN ROMÂNIA",{"$nulls":5}," "]
[]
[null,"ZIUA","SĂRBĂTOARE","ARE LOC ÎN","ZIUA SĂPTĂMÂNII","RECTIFICAT","AFIȘARE"]
[null,{"$f":"DATE(AnCal,1,1)","v":"2018-01-01"},"Anul Nou","1 ianuarie",{"$f":"IFERROR(WEEKDAY(tblSărbători[[#This Row],[ZIUA]],IF(ÎnceputSăptămână=\"LUNI\",2,1)),0)","v":2},{"$f":"IF(ISTEXT(tblSărbători[[#This Row],[ZIUA]]),\"Necelebrat oficial\",IF(tblSărbători[[#This Row],[ZIUA SĂPTĂMÂNII]]=1,tblSărbători[[#This Row],[ZIUA]]+1,IF(tblSărbători[[#This Row],[ZIUA SĂPTĂMÂNII]]=7,tblSărbători[[#This Row],[ZIUA]]-1,tblSărbători[[#This Row],[ZIUA]])))","v":"2018-01-01"},true]
[null,{"$f":"IF(MOD(AnCal,4)=1,DATE(AnCal,1,20)+(WEEKDAY(DATE(AnCal,1,20))=1),\"Necelebrat oficial\")","v":"Necelebrat oficial"},"Ceremonia de învestire a președintelui SUA","Pe 20 ianuarie, o dată la patru ani, după alegerile prezidențiale",{"$f":"IFERROR(WEEKDAY(tblSărbători[[#This Row],[ZIUA]],IF(ÎnceputSăptămână=\"LUNI\",2,1)),0)","v":0},{"$f":"IF(ISTEXT(tblSărbători[[#This Row],[ZIUA]]),\"Necelebrat oficial\",IF(tblSărbători[[#This Row],[ZIUA SĂPTĂMÂNII]]=1,tblSărbători[[#This Row],[ZIUA]]+1,IF(tblSărbători[[#This Row],[ZIUA SĂPTĂMÂNII]]=7,tblSărbători[[#This Row],[ZIUA]]-1,tblSărbători[[#This Row],[ZIUA]])))","v":"Necelebrat oficial"},true]
[null,{"$f":"DATE(AnCal,2,1+((3-(2>=WEEKDAY(DATE(AnCal,2,1))))*7)+(2-WEEKDAY(DATE(AnCal,2,1))))","v":"2018-02-19"},"Ziua Președinților","A treia zi de luni din februarie",{"$f":"IFERROR(WEEKDAY(tblSărbători[[#This Row],[ZIUA]],IF(ÎnceputSăptămână=\"LUNI\",2,1)),0)","v":2},{"$f":"IF(ISTEXT(tblSărbători[[#This Row],[ZIUA]]),\"Necelebrat oficial\",IF(tblSărbători[[#This Row],[ZIUA SĂPTĂMÂNII]]=1,tblSărbători[[#This Row],[ZIUA]]+1,IF(tblSărbători[[#This Row],[ZIUA SĂPTĂMÂNII]]=7,tblSărbători[[#This Row],[ZIUA]]-1,tblSărbători[[#This Row],[ZIUA]])))","v":"2018-02-19"},true]
[null,{"$f":"DATE(AnCal,5,1+((MaiZileDeLuni-(2>=WEEKDAY(DATE(AnCal,5,1))))*7)+(2-WEEKDAY(DATE(AnCal,5,1))))","v":"2018-05-28"},"Memorial Day","Ultima zi de luni din mai",{"$f":"IFERROR(WEEKDAY(tblSărbători[[#This Row],[ZIUA]],IF(ÎnceputSăptămână=\"LUNI\",2,1)),0)","v":2},{"$f":"IF(ISTEXT(tblSărbători[[#This Row],[ZIUA]]),\"Necelebrat oficial\",IF(tblSărbători[[#This Row],[ZIUA SĂPTĂMÂNII]]=1,tblSărbători[[#This Row],[ZIUA]]+1,IF(tblSărbători[[#This Row],[ZIUA SĂPTĂMÂNII]]=7,tblSărbători[[#This Row],[ZIUA]]-1,tblSărbători[[#This Row],[ZIUA]])))","v":"2018-05-28"},true]
[null,{"$f":"DATE(AnCal,7,4)","v":"2018-07-04"},"Ziua independenței","04.07.2018",{"$f":"IFERROR(WEEKDAY(tblSărbători[[#This Row],[ZIUA]],IF(ÎnceputSăptămână=\"LUNI\",2,1)),0)","v":4},{"$f":"IF(ISTEXT(tblSărbători[[#This Row],[ZIUA]]),\"Necelebrat oficial\",IF(tblSărbători[[#This Row],[ZIUA SĂPTĂMÂNII]]=1,tblSărbători[[#This Row],[ZIUA]]+1,IF(tblSărbători[[#This Row],[ZIUA SĂPTĂMÂNII]]=7,tblSărbători[[#This Row],[ZIUA]]-1,tblSărbători[[#This Row],[ZIUA]])))","v":"2018-07-04"},true]
[null,{"$f":"DATE(AnCal,9,1+((1-(2>=WEEKDAY(DATE(AnCal,9,1))))*7)+(2-WEEKDAY(DATE(AnCal,9,1))))","v":"2018-09-03"},"Ziua Muncii","Prima zi de luni din septembrie",{"$f":"IFERROR(WEEKDAY(tblSărbători[[#This Row],[ZIUA]],IF(ÎnceputSăptămână=\"LUNI\",2,1)),0)","v":2},{"$f":"IF(ISTEXT(tblSărbători[[#This Row],[ZIUA]]),\"Necelebrat oficial\",IF(tblSărbători[[#This Row],[ZIUA SĂPTĂMÂNII]]=1,tblSărbători[[#This Row],[ZIUA]]+1,IF(tblSărbători[[#This Row],[ZIUA SĂPTĂMÂNII]]=7,tblSărbători[[#This Row],[ZIUA]]-1,tblSărbători[[#This Row],[ZIUA]])))","v":"2018-09-03"},true]
[null,{"$f":"DATE(AnCal,10,1+((2-(2>=WEEKDAY(DATE(AnCal,10,1))))*7)+(2-WEEKDAY(DATE(AnCal,10,1))))","v":"2018-10-08"},"Ziua lui Columb","A doua zi de luni din octombrie",{"$f":"IFERROR(WEEKDAY(tblSărbători[[#This Row],[ZIUA]],IF(ÎnceputSăptămână=\"LUNI\",2,1)),0)","v":2},{"$f":"IF(ISTEXT(tblSărbători[[#This Row],[ZIUA]]),\"Necelebrat oficial\",IF(tblSărbători[[#This Row],[ZIUA SĂPTĂMÂNII]]=1,tblSărbători[[#This Row],[ZIUA]]+1,IF(tblSărbători[[#This Row],[ZIUA SĂPTĂMÂNII]]=7,tblSărbători[[#This Row],[ZIUA]]-1,tblSărbători[[#This Row],[ZIUA]])))","v":"2018-10-08"},true]
[null,{"$f":"DATE(AnCal,11,11)","v":"2018-11-11"},"Ziua Veteranilor","11 noiembrie",{"$f":"IFERROR(WEEKDAY(tblSărbători[[#This Row],[ZIUA]],IF(ÎnceputSăptămână=\"LUNI\",2,1)),0)","v":1},{"$f":"IF(ISTEXT(tblSărbători[[#This Row],[ZIUA]]),\"Necelebrat oficial\",IF(tblSărbători[[#This Row],[ZIUA SĂPTĂMÂNII]]=1,tblSărbători[[#This Row],[ZIUA]]+1,IF(tblSărbători[[#This Row],[ZIUA SĂPTĂMÂNII]]=7,tblSărbători[[#This Row],[ZIUA]]-1,tblSărbători[[#This Row],[ZIUA]])))","v":"2018-11-12"},true]
[null,{"$f":"DATE(AnCal,11,1+((4-(5>=WEEKDAY(DATE(AnCal,11,1))))*7)+(5-WEEKDAY(DATE(AnCal,11,1))))","v":"2018-11-22"},"Ziua Recunoștinței","A patra zi de joi din noiembrie",{"$f":"IFERROR(WEEKDAY(tblSărbători[[#This Row],[ZIUA]],IF(ÎnceputSăptămână=\"LUNI\",2,1)),0)","v":5},{"$f":"IF(ISTEXT(tblSărbători[[#This Row],[ZIUA]]),\"Necelebrat oficial\",IF(tblSărbători[[#This Row],[ZIUA SĂPTĂMÂNII]]=1,tblSărbători[[#This Row],[ZIUA]]+1,IF(tblSărbători[[#This Row],[ZIUA SĂPTĂMÂNII]]=7,tblSărbători[[#This Row],[ZIUA]]-1,tblSărbători[[#This Row],[ZIUA]])))","v":"2018-11-22"},true]
[null,{"$f":"DATE(AnCal,12,25)","v":"2018-12-25"},"Crăciunul","25 decembrie",{"$f":"IFERROR(WEEKDAY(tblSărbători[[#This Row],[ZIUA]],IF(ÎnceputSăptămână=\"LUNI\",2,1)),0)","v":3},{"$f":"IF(ISTEXT(tblSărbători[[#This Row],[ZIUA]]),\"Necelebrat oficial\",IF(tblSărbători[[#This Row],[ZIUA SĂPTĂMÂNII]]=1,tblSărbători[[#This Row],[ZIUA]]+1,IF(tblSărbători[[#This Row],[ZIUA SĂPTĂMÂNII]]=7,tblSărbători[[#This Row],[ZIUA]]-1,tblSărbători[[#This Row],[ZIUA]])))","v":"2018-12-25"},true]